Workbook

Sheet Intro
G1: Electricity Distribution Network Service Providers
G2: Post Tax Revenue Model
K3: Version: 02
K4: Date: 19 June 2009
B7: Introduction
C12: This model illustrates the basic elements of the AER's building block calculation and associated price and revenue constraints for distribution businesses.
C14: The model is intended to produce X factors that are applicable to revenue caps, price caps and revenue yield forms of control.
C16: Building block revenues and cash flows are modelled in nominal terms unless specified otherwise.
C18: Before using the PTRM, Excel’s iteration mode of calculation needs to be selected.
C19: To do so, select Options from the Tools menu in Excel, then select the Calculation tab.
C20: Make sure that Manual (rather than Automatic) is selected and tick the iteration box.
C22: To run the 'Fix_Te' macro manually, select Macro from the Tools menu, and then select Macros. Highlight 'Fix_Te' and click on Run.
C26: INSTRUCTIONS FOR USE
C28: 1. Fill out cells in "input" sheet. These cells are highlighted blue.
C29: Input data required include:
D30: by asset class-
E31: opening asset life
E32: remaining life
E33: useful life
E34: remaining tax life
E35: standard tax life
E36: forecast capex
E37: forecast disposals
E38: forecast customer contributions
D39: forecast total opex
D40: WACC parameters
D41: actual prices per each tariff component
D42: forecast quantities per each tariff component
C44: Input expenditure data should be valued in real terms of the year indicated, as at the end of that year.
C46: 2. Select X factors and P-0 on the "X factor" sheet
C47: Clause 6.2.6 requires that the form of control applicable to "standard direct control" services be of a CPI-X form.
C48: This sheet provides for the calculation of X factors under three basic forms of control, namely a weighted average price cap, revenue cap and revenue yield.
C49: These may be amended to suit the particular form of control applicable to the DNSP
C51: The value of X may differ for each year of the period but must be set such that the NPV of revenues is equal to the NPV of the total building block revenue requirement for the period.
C52: The X factor sheet provides input values for each X but contains macro buttons which can be used to goal seek a value of P0 for each form of control to equate the NPVs of forecast and required revenues
C57: AMENDMENT RECORD
C59: version no. | D59: date of issue | F59: details of amendments
C60: version 01 | D60: 2008-06-26 | F60: -
C62: version 02 | D62: 2009-06-19 | F62: 1. totals in row 37 of the "Input" sheet changed to sum rows 7 to 36
F63: 2. depreciation on capex calculated in rows 169 to 178 and 182 to 191 of the "Assets" sheet changed to refer to correct capex inputs for each year
F64: 3. tax depreciation totals in row 479 of the "Assets" sheet changed to include tax depreciation calculated for all asset classes

Sheet Input
E2: Input Variables | G2: Input cells are in blue
E5: ="Opening Regulated Asset Base for "&Q7&" ($m Nominal)" -> Opening Regulated Asset Base for 2014-15 ($m Nominal)
G6: Asset Class Name | J6: Opening Asset Value | K6: Assets Under Construction | L6: Remaining Life | M6: Standard Life | N6: Opening Tax Value | O6: Tax Remaining Life | P6: Tax Standard Life | Q6: Base Financial Year
E7: Asset Class 1 | G7: Metering Capex | J7: 94.89574071 | L7: 19.7 | M7: 15 | N7: 88.47348487 | O7: 14.26006604 | P7: 25 | Q7: 2014-15
E8: Asset Class 2 | G8: Equity raising costs | J8: 0.2102455241 | L8: 19.7 | M8: =A1stdlife -> 15 | N8: 0.2137537268 | O8: =A1taxremlife -> 14.26006604 | P8: =A1taxstdlife -> 25
E9: Asset Class 3
E10: Asset Class 4
E11: Asset Class 5
E12: Asset Class 6
E13: Asset Class 7
E14: Asset Class 8
E15: Asset Class 9
E16: Asset Class 10
E17: Total | J17: =SUM(J7:J16)+K17 -> 95.10598623 | K17: =SUM(K7:K16) -> 0 | N17: =SUM(N7:N16) -> 88.68723859
E19: ="Forecast Capital Expenditure – As Incurred ($m Real "&CONCATENATE(LEFT(Q7, 4)-1 &"-" &IF(Q7>"2009-10",,"0") &RIGHT(Q7,2)-1)&")" -> Forecast Capital Expenditure – As Incurred ($m Real 2013-14)
E20: Year | F20: 2013-14 | G20: =Q7 -> 2014-15 | H20: =CONCATENATE(LEFT(G20, 4)+1 &"-" &IF(G20>"2007-08",,"0") &RIGHT(G20,2)+1) -> 2015-16 | I20: =CONCATENATE(LEFT(H20, 4)+1 &"-" &IF(H20>"2007-08",,"0") &RIGHT(H20,2)+1) -> 2016-17 | J20: 2017-18 | K20: 2018-19 | L20: 2019-20 | M20: 2020-21 | N20: 2021-22 | O20: 2022-23 | P20: 2023-24
E21: =Asset1 -> Metering Capex | G21: 9.001563864 | H21: 10.78606908 | I21: 14.54260281 | J21: 13.95219383 | K21: 13.76800144
E22: =Asset2 -> Equity raising costs | G22: 0.07611464647
E23: =Asset3 -> 0
E24: =Asset4 -> 0
E25: =Asset5 -> 0
E26: =Asset6 -> 0
E27: =Asset6 -> 0
E28: =Asset8 -> 0
E29: =Asset9 -> 0
E30: =Asset10 -> 0
E31: Total | G31: =SUM(G21:G30) -> 9.077678511 | H31: 10.78606908 | I31: 14.54260281 | J31: 13.95219383 | K31: 13.76800144 | L31: 0 | M31: 0 | N31: 0 | O31: 0 | P31: 0
Q32: =SUM(G31:P31) -> 62.12654568
E33: ="Forecast Asset Disposal – as incurred ($m Real "&CONCATENATE(LEFT(Q7, 4)-1 &"-" &IF(Q7>"2009-10",,"0") &RIGHT(Q7,2)-1)&")" -> Forecast Asset Disposal – as incurred ($m Real 2013-14)
E34: Year | G34: =G20 -> 2014-15 | H34: 2015-16 | I34: 2016-17 | J34: 2017-18 | K34: 2018-19 | L34: 2019-20 | M34: 2020-21 | N34: 2021-22 | O34: 2022-23 | P34: 2023-24
E35: =Asset1 -> Metering Capex
E36: =Asset2 -> Equity raising costs
E37: =Asset3 -> 0
E38: =Asset4 -> 0
E39: =Asset5 -> 0
E40: =Asset6 -> 0
E41: =Asset7 -> 0
E42: =Asset8 -> 0
E43: =Asset9 -> 0
E44: =Asset10 -> 0
E45: Total | G45: =SUM(G35:G44) -> 0 | H45: 0 | I45: 0 | J45: 0 | K45: 0 | L45: 0 | M45: 0 | N45: 0 | O45: 0 | P45: 0
Q46: =SUM(G45:P45) -> 0
E47: ="Forecast Customer Contributions – As Incurred ($m Real "&CONCATENATE(LEFT(Q7, 4)-1 &"-" &IF(Q7>"2009-10",,"0") &RIGHT(Q7,2)-1)&")" -> Forecast Customer Contributions – As Incurred ($m Real 2013-14)
E48: Year | G48: =G34 -> 2014-15 | H48: 2015-16 | I48: 2016-17 | J48: 2017-18 | K48: 2018-19 | L48: 2019-20 | M48: 2020-21 | N48: 2021-22 | O48: 2022-23 | P48: 2023-24
E49: =Asset1 -> Metering Capex | H49: 3.216585779 | I49: 6.71677741 | J49: 3.356370786 | K49: 3.268016375
E50: =Asset2 -> Equity raising costs
E51: =Asset3 -> 0
E52: =Asset4 -> 0
E53: =Asset5 -> 0
E54: =Asset6 -> 0
E55: =Asset7 -> 0
E56: =Asset8 -> 0
E57: =Asset9 -> 0
E58: =Asset10 -> 0
E59: Total | G59: =SUM(G49:G58) -> 0 | H59: 3.216585779 | I59: 6.71677741 | J59: 3.356370786 | K59: 3.268016375 | L59: 0 | M59: 0 | N59: 0 | O59: 0 | P59: 0
G60: =G63/A1taxremlife -> 0.6312427894 | Q60: =SUM(G59:P59) -> 16.55775035
E61: ="Forecast Net Capital Expenditure – As Incurred ($m Real "&CONCATENATE(LEFT(Q7, 4)-1 &"-" &IF(Q7>"2009-10",,"0") &RIGHT(Q7,2)-1)&")" -> Forecast Net Capital Expenditure – As Incurred ($m Real 2013-14)
E62: Year | G62: =G20 -> 2014-15 | H62: 2015-16 | I62: 2016-17 | J62: 2017-18 | K62: 2018-19 | L62: 2019-20 | M62: 2020-21 | N62: 2021-22 | O62: 2022-23 | P62: 2023-24
E63: =Asset1 -> Metering Capex | G63: =G21-G35-G49 -> 9.001563864 | H63: 7.569483301 | I63: 7.825825401 | J63: 10.59582305 | K63: 10.49998507 | L63: 0 | M63: 0 | N63: 0 | O63: 0 | P63: 0
E64: =Asset2 -> Equity raising costs | G64: =G22-G36-G50 -> 0.07611464647 | H64: 0 | I64: 0 | J64: 0 | K64: 0 | L64: 0 | M64: 0 | N64: 0 | O64: 0 | P64: 0
E65: =Asset3 -> 0 | G65: =G23-G37-G51 -> 0 | H65: 0 | I65: 0 | J65: 0 | K65: 0 | L65: 0 | M65: 0 | N65: 0 | O65: 0 | P65: 0
E66: =Asset4 -> 0 | G66: =G24-G38-G52 -> 0 | H66: 0 | I66: 0 | J66: 0 | K66: 0 | L66: 0 | M66: 0 | N66: 0 | O66: 0 | P66: 0
E67: =Asset5 -> 0 | G67: =G25-G39-G53 -> 0 | H67: 0 | I67: 0 | J67: 0 | K67: 0 | L67: 0 | M67: 0 | N67: 0 | O67: 0 | P67: 0
E68: =Asset6 -> 0 | G68: =G26-G40-G54 -> 0 | H68: 0 | I68: 0 | J68: 0 | K68: 0 | L68: 0 | M68: 0 | N68: 0 | O68: 0 | P68: 0
E69: =E27 -> 0 | G69: =G27-G41-G55 -> 0 | H69: 0 | I69: 0 | J69: 0 | K69: 0 | L69: 0 | M69: 0 | N69: 0 | O69: 0 | P69: 0
E70: =Asset8 -> 0 | G70: =G28-G42-G56 -> 0 | H70: 0 | I70: 0 | J70: 0 | K70: 0 | L70: 0 | M70: 0 | N70: 0 | O70: 0 | P70: 0
E71: =Asset9 -> 0 | G71: =G29-G43-G57 -> 0 | H71: 0 | I71: 0 | J71: 0 | K71: 0 | L71: 0 | M71: 0 | N71: 0 | O71: 0 | P71: 0
E72: =Asset10 -> 0 | G72: =G30-G44-G58 -> 0 | H72: 0 | I72: 0 | J72: 0 | K72: 0 | L72: 0 | M72: 0 | N72: 0 | O72: 0 | P72: 0
E73: Total | G73: =SUM(G63:G72) -> 9.077678511 | H73: 7.569483301 | I73: 7.825825401 | J73: 10.59582305 | K73: 10.49998507 | L73: 0 | M73: 0 | N73: 0 | O73: 0 | P73: 0
Q74: =SUM(G73:P73) -> 45.56879533
E75: ="Forecast Operating and Maintenance Expenditure ($m Real "&CONCATENATE(LEFT(Q7, 4)-1 &"-" &IF(Q7>"2009-10",,"0") &RIGHT(Q7,2)-1)&")" -> Forecast Operating and Maintenance Expenditure ($m Real 2013-14)
E76: Year | G76: =G20 -> 2014-15 | H76: 2015-16 | I76: 2016-17 | J76: 2017-18 | K76: 2018-19 | L76: 2019-20 | M76: 2020-21 | N76: 2021-22 | O76: 2022-23 | P76: 2023-24
E77: Controllable opex | G77: 24.60535058 | H77: 24.46855648 | I77: 24.35052092 | J77: 24.09131232 | K77: 24.19361844
E79: Debt raising costs | G79: =(Dr*Dv*Assets!G162)/Assets!G7 -> 0.05649295582 | H79: =(Dr*Dv*Assets!H162)/Assets!H7 -> 0.05918189007 | I79: =(Dr*Dv*Assets!I162)/Assets!I7 -> 0.06057719332 | J79: =(Dr*Dv*Assets!J162)/Assets!J7 -> 0.06182051408 | K79: =(Dr*Dv*Assets!K162)/Assets!K7 -> 0.0644400417
E80: Carry over amounts
L81: =IF(L77=0,0,(Dr*Dv*Assets!K161)/Assets!L7) -> 0 | M81: =IF(M77=0,0,(Dr*Dv*Assets!L161)/Assets!M7) -> 0 | N81: =IF(N77=0,0,(Dr*Dv*Assets!M161)/Assets!N7) -> 0 | O81: =IF(O77=0,0,(Dr*Dv*Assets!N161)/Assets!O7) -> 0 | P81: =IF(P77=0,0,(Dr*Dv*Assets!O161)/Assets!P7) -> 0
E82: Total | G82: =SUM(G77:G81) -> 24.66184353 | H82: 24.52773837 | I82: 24.41109812 | J82: 24.15313283 | K82: 24.25805848 | L82: 0 | M82: 0 | N82: 0 | O82: 0 | P82: 0
Q83: =SUM(G82:P82) -> 122.0118713
E84: Cost of Capital
G85: Value
E86: Nominal Risk Free Rate Rf | G86: 0.0477
E87: Inflation Rate f | G87: 0.025
E88: Debt Risk Premium DRP | G88: 0.0321
E89: Market Risk Premium MRP | G89: 0.0656
E90: Utilisation of Imputation (Franking) Credits g | G90: 0.25
E91: Proportion of Debt Funding D/V | G91: 0.6
E92: Equity Beta βe | G92: 0.82
E93: Debt Raising Cost Benchmark Dr | F93: Dr | G93: 0.00099
E95: ="Price/ revenue constraint for "&CONCATENATE(LEFT(Q7, 4)-1 &"-" &IF(Q7>"2009-10",,"0") &RIGHT(Q7,2)-1)& " ($m Nominal)" -> Price/ revenue constraint for 2013-14 ($m Nominal)
G96: Value
E97: Maximum Allowed Revenue
E98: Revenue yield (c/kWh)

Sheet WACC
B2: Cost of Capital Parameters
F6: Input Data & Calculated Inputs | G6: Basic Building Block Model
B7: Nominal Risk Free Rate | D7: Rf | F7: 0.0477
B8: Real Risk Free Rate | D8: Rrf | F8: 0.02214634146
B9: Inflation Rate | D9: f | F9: 0.025
B10: Cost of Debt Margin | D10: DRP | F10: 0.0321
B11: Nominal Pre-tax Cost of Debt | D11: Rd | F11: 0.0798
B12: Real Pre-tax Cost of Debt | D12: Rrd | F12: 0.05346341463
B13: Market Risk Premium | D13: MRP | F13: 0.0656
B14: Corporate Tax Rate | D14: T | F14: 0.3
B15: Effective Tax Rate for Equity (From Relevant Cash flows) | D15: Te | F15: 0.2421077761 | G15: 0.2421077761
B16: Effective Tax Rate for Debt (Effective Debt Shield) | D16: Td | F16: =G16 -> 0.3 | G16: 0.3
B17: Utilisation of Imputation (Franking) Credits | D17: g | F17: 0.25
B18: Proportion of Equity Funding | D18: E/V | F18: 0.4
B19: Proportion of Debt Funding | D19: D/V | F19: 0.6
B20: Equity Beta | D20: βe | F20: 0.82
B22: WACC Analysis
F24: Formula Approximation
B25: Post-tax Nominal Return on Equity(pre-imp) | F25: =F7+F20*(F13) -> 0.101492 | G25: 0.101413804
B26: Post-tax Real Return on Equity(pre-imp) | F26: =(1+F25)/(1+F9)-1 -> 0.07462634146 | G26: 0.07459348691
B27: Nominal Vanilla WACC | F27: =F18*F25+F19*F11 -> 0.0884768 | G27: 0.0884768
B28: Real Vanilla WACC | F28: =F18*F26+F19*F12 -> 0.06192858537 | G28: 0.06196713205
B29: Post-tax Nominal WACC | F29: =F25*((1-F15)/(1-F15*(1-F17)))*F18+F11*F19*(1-F16) -> 0.07111042623 | G29: 0.08539138422
B30: Post-tax Real WACC | F30: =(1+F29)/(1+F9)-1 -> 0.04498578169 | G30: 0.05895603053
B31: Pre-tax Nominal WACC | F31: =F25*(1/(1-F15*(1-F17)))*F18+F11*F19 -> 0.0974839213 | G31: 0.09758491329
B32: Pre-tax Real WACC | F32: =(1+F31)/(1+F9)-1 -> 0.07071602078 | G32: 0.07085598699
B33: Nominal Tax Allowance | F33: =F31-F27 -> 0.009007121303 | G33: 0.00910811329
B34: Real Tax Allowance | F34: =F32-F28 -> 0.008787435418 | G34: 0.008927401625
F37: Numbers in White cells are calculated on this sheet from input parameters.
F38: Numbers in Orange cells are transferred from relevant sheets

Sheet Assets
B2: Asset Roll Forward
F3: 0 | G3: =F3+1 -> 1 | H3: 2 | I3: 3 | J3: 4 | K3: 5 | L3: 6 | M3: 7 | N3: 8 | O3: 9 | P3: 10
B4: Year | F4: =Input!F20 -> 2013-14 | G4: =Input!G20 -> 2014-15 | H4: =Input!H20 -> 2015-16 | I4: =Input!I20 -> 2016-17 | J4: =Input!J20 -> 2017-18 | K4: =Input!K20 -> 2018-19 | L4: =Input!L20 -> 2019-20 | M4: =Input!M20 -> 2020-21 | N4: =Input!N20 -> 2021-22 | O4: =Input!O20 -> 2022-23 | P4: =Input!P20 -> 2023-24
B6: Inflation Assumption (CPI % increase) | D6: =f -> 0.025 | G6: =Analysis!G7 -> 0.02449888641 | H6: =$D$6 -> 0.025 | I6: 0.025 | J6: 0.025 | K6: 0.025 | L6: 0.025 | M6: 0.025 | N6: 0.025 | O6: 0.025 | P6: 0.025
B7: Cumulative Inflation Index (CPI end period) | F7: 1 | G7: =F7*(1+G6) -> 1.024498886 | H7: =G7*(1+H6) -> 1.050111359 | I7: =H7*(1+I6) -> 1.076364143 | J7: =I7*(1+J6) -> 1.103273246 | K7: 1.130855077 | L7: 1.159126454 | M7: 1.188104616 | N7: 1.217807231 | O7: 1.248252412 | P7: =O7*(1+P6) -> 1.279458722
B9: Closing Regulated Asset Base | F9: =RAB -> 95.10598623
B10: Real Capex | G10: =SUM(G11:G20) -> 9.354540373 | H10: =SUM(H11:H20) -> 7.800346428 | I10: 8.064506755 | J10: 10.91898709 | K10: 10.82022613 | L10: 0 | M10: 0 | N10: 0 | O10: 0 | P10: 0
C11: =Asset1 -> Metering Capex | G11: =Input!G63*(1+rvanilla)^0.5 -> 9.276104291 | H11: =Input!H63*(1+rvanilla)^0.5 -> 7.800346428 | I11: =Input!I63*(1+rvanilla)^0.5 -> 8.064506755 | J11: =Input!J63*(1+rvanilla)^0.5 -> 10.91898709 | K11: =Input!K63*(1+rvanilla)^0.5 -> 10.82022613 | L11: =Input!L63*(1+rvanilla)^0.5 -> 0 | M11: =Input!M63*(1+rvanilla)^0.5 -> 0 | N11: =Input!N63*(1+rvanilla)^0.5 -> 0 | O11: =Input!O63*(1+rvanilla)^0.5 -> 0 | P11: =Input!P63*(1+rvanilla)^0.5 -> 0
C12: =Asset2 -> Equity raising costs | G12: =Input!G64*(1+rvanilla)^0.5 -> 0.07843608171 | H12: =Input!H64*(1+rvanilla)^0.5 -> 0 | I12: =Input!I64*(1+rvanilla)^0.5 -> 0 | J12: =Input!J64*(1+rvanilla)^0.5 -> 0 | K12: =Input!K64*(1+rvanilla)^0.5 -> 0 | L12: =Input!L64*(1+rvanilla)^0.5 -> 0 | M12: =Input!M64*(1+rvanilla)^0.5 -> 0 | N12: =Input!N64*(1+rvanilla)^0.5 -> 0 | O12: =Input!O64*(1+rvanilla)^0.5 -> 0 | P12: =Input!P64*(1+rvanilla)^0.5 -> 0
C13: =Asset3 -> 0 | G13: =Input!G65*(1+rvanilla)^0.5 -> 0 | H13: =Input!H65*(1+rvanilla)^0.5 -> 0 | I13: =Input!I65*(1+rvanilla)^0.5 -> 0 | J13: =Input!J65*(1+rvanilla)^0.5 -> 0 | K13: =Input!K65*(1+rvanilla)^0.5 -> 0 | L13: =Input!L65*(1+rvanilla)^0.5 -> 0 | M13: =Input!M65*(1+rvanilla)^0.5 -> 0 | N13: =Input!N65*(1+rvanilla)^0.5 -> 0 | O13: =Input!O65*(1+rvanilla)^0.5 -> 0 | P13: =Input!P65*(1+rvanilla)^0.5 -> 0
C14: =Asset4 -> 0 | G14: =Input!G66*(1+rvanilla)^0.5 -> 0 | H14: =Input!H66*(1+rvanilla)^0.5 -> 0 | I14: =Input!I66*(1+rvanilla)^0.5 -> 0 | J14: =Input!J66*(1+rvanilla)^0.5 -> 0 | K14: =Input!K66*(1+rvanilla)^0.5 -> 0 | L14: =Input!L66*(1+rvanilla)^0.5 -> 0 | M14: =Input!M66*(1+rvanilla)^0.5 -> 0 | N14: =Input!N66*(1+rvanilla)^0.5 -> 0 | O14: =Input!O66*(1+rvanilla)^0.5 -> 0 | P14: =Input!P66*(1+rvanilla)^0.5 -> 0
C15: =Asset5 -> 0 | G15: =Input!G67*(1+rvanilla)^0.5 -> 0 | H15: =Input!H67*(1+rvanilla)^0.5 -> 0 | I15: =Input!I67*(1+rvanilla)^0.5 -> 0 | J15: =Input!J67*(1+rvanilla)^0.5 -> 0 | K15: =Input!K67*(1+rvanilla)^0.5 -> 0 | L15: =Input!L67*(1+rvanilla)^0.5 -> 0 | M15: =Input!M67*(1+rvanilla)^0.5 -> 0 | N15: =Input!N67*(1+rvanilla)^0.5 -> 0 | O15: =Input!O67*(1+rvanilla)^0.5 -> 0 | P15: =Input!P67*(1+rvanilla)^0.5 -> 0
C16: =Asset6 -> 0 | G16: =Input!G68*(1+rvanilla)^0.5 -> 0 | H16: =Input!H68*(1+rvanilla)^0.5 -> 0 | I16: =Input!I68*(1+rvanilla)^0.5 -> 0 | J16: =Input!J68*(1+rvanilla)^0.5 -> 0 | K16: =Input!K68*(1+rvanilla)^0.5 -> 0 | L16: =Input!L68*(1+rvanilla)^0.5 -> 0 | M16: =Input!M68*(1+rvanilla)^0.5 -> 0 | N16: =Input!N68*(1+rvanilla)^0.5 -> 0 | O16: =Input!O68*(1+rvanilla)^0.5 -> 0 | P16: =Input!P68*(1+rvanilla)^0.5 -> 0
C17: =Asset7 -> 0 | G17: =Input!G69*(1+rvanilla)^0.5 -> 0 | H17: =Input!H69*(1+rvanilla)^0.5 -> 0 | I17: =Input!I69*(1+rvanilla)^0.5 -> 0 | J17: =Input!J69*(1+rvanilla)^0.5 -> 0 | K17: =Input!K69*(1+rvanilla)^0.5 -> 0 | L17: =Input!L69*(1+rvanilla)^0.5 -> 0 | M17: =Input!M69*(1+rvanilla)^0.5 -> 0 | N17: =Input!N69*(1+rvanilla)^0.5 -> 0 | O17: =Input!O69*(1+rvanilla)^0.5 -> 0 | P17: =Input!P69*(1+rvanilla)^0.5 -> 0
C18: =Asset8 -> 0 | G18: =Input!G70*(1+rvanilla)^0.5 -> 0 | H18: =Input!H70*(1+rvanilla)^0.5 -> 0 | I18: =Input!I70*(1+rvanilla)^0.5 -> 0 | J18: =Input!J70*(1+rvanilla)^0.5 -> 0 | K18: =Input!K70*(1+rvanilla)^0.5 -> 0 | L18: =Input!L70*(1+rvanilla)^0.5 -> 0 | M18: =Input!M70*(1+rvanilla)^0.5 -> 0 | N18: =Input!N70*(1+rvanilla)^0.5 -> 0 | O18: =Input!O70*(1+rvanilla)^0.5 -> 0 | P18: =Input!P70*(1+rvanilla)^0.5 -> 0
C19: =Asset9 -> 0 | G19: =Input!G71*(1+rvanilla)^0.5 -> 0 | H19: =Input!H71*(1+rvanilla)^0.5 -> 0 | I19: =Input!I71*(1+rvanilla)^0.5 -> 0 | J19: =Input!J71*(1+rvanilla)^0.5 -> 0 | K19: =Input!K71*(1+rvanilla)^0.5 -> 0 | L19: =Input!L71*(1+rvanilla)^0.5 -> 0 | M19: =Input!M71*(1+rvanilla)^0.5 -> 0 | N19: =Input!N71*(1+rvanilla)^0.5 -> 0 | O19: =Input!O71*(1+rvanilla)^0.5 -> 0 | P19: =Input!P71*(1+rvanilla)^0.5 -> 0
C20: =Asset10 -> 0 | G20: =Input!G72*(1+rvanilla)^0.5 -> 0 | H20: =Input!H72*(1+rvanilla)^0.5 -> 0 | I20: =Input!I72*(1+rvanilla)^0.5 -> 0 | J20: =Input!J72*(1+rvanilla)^0.5 -> 0 | K20: =Input!K72*(1+rvanilla)^0.5 -> 0 | L20: =Input!L72*(1+rvanilla)^0.5 -> 0 | M20: =Input!M72*(1+rvanilla)^0.5 -> 0 | N20: =Input!N72*(1+rvanilla)^0.5 -> 0 | O20: =Input!O72*(1+rvanilla)^0.5 -> 0 | P20: =Input!P72*(1+rvanilla)^0.5 -> 0
B21: Nominal Capex | G21: =SUM(G22:G31) -> 9.583716195 | H21: 8.191232385 | I21: 8.680345898 | J21: 12.04662634 | K21: 12.23610765 | L21: 0 | M21: 0 | N21: 0 | O21: 0 | P21: 0
C22: =Asset1 -> Metering Capex | G22: =G11*G$7 -> 9.503358517 | H22: 8.191232385 | I22: 8.680345898 | J22: 12.04662634 | K22: 12.23610765 | L22: 0 | M22: 0 | N22: 0 | O22: 0 | P22: 0
C23: =Asset2 -> Equity raising costs | G23: =G12*G$7 -> 0.08035767836 | H23: 0 | I23: 0 | J23: 0 | K23: 0 | L23: 0 | M23: 0 | N23: 0 | O23: 0 | P23: 0
C24: =Asset3 -> 0 | G24: =G13*G$7 -> 0 | H24: 0 | I24: 0 | J24: 0 | K24: 0 | L24: 0 | M24: 0 | N24: 0 | O24: 0 | P24: 0
C25: =Asset4 -> 0 | G25: =G14*G$7 -> 0 | H25: 0 | I25: 0 | J25: 0 | K25: 0 | L25: 0 | M25: 0 | N25: 0 | O25: 0 | P25: 0
C26: =Asset5 -> 0 | G26: =G15*G$7 -> 0 | H26: 0 | I26: 0 | J26: 0 | K26: 0 | L26: 0 | M26: 0 | N26: 0 | O26: 0 | P26: 0
C27: =Asset6 -> 0 | G27: =G16*G$7 -> 0 | H27: 0 | I27: 0 | J27: 0 | K27: 0 | L27: 0 | M27: 0 | N27: 0 | O27: 0 | P27: 0
C28: =Asset7 -> 0 | G28: =G17*G$7 -> 0 | H28: 0 | I28: 0 | J28: 0 | K28: 0 | L28: 0 | M28: 0 | N28: 0 | O28: 0 | P28: 0
C29: =Asset8 -> 0 | G29: =G18*G$7 -> 0 | H29: 0 | I29: 0 | J29: 0 | K29: 0 | L29: 0 | M29: 0 | N29: 0 | O29: 0 | P29: 0
C30: =Asset9 -> 0 | G30: =G19*G$7 -> 0 | H30: 0 | I30: 0 | J30: 0 | K30: 0 | L30: 0 | M30: 0 | N30: 0 | O30: 0 | P30: 0
C31: =Asset10 -> 0 | G31: =G20*G$7 -> 0 | H31: 0 | I31: 0 | J31: 0 | K31: 0 | L31: 0 | M31: 0 | N31: 0 | O31: 0 | P31: 0
B33: Real Asset Values
B35: Real Straight-line Depreciation | G35: =G48+G61+G74+G87+G100+G113+G126+G139+G152 -> 4.827715037 | H35: =H48+H61+H74+H87+H100+H113+H126+H139+H152 -> 5.451351062 | I35: 5.971374157 | J35: 6.509007941 | K35: 7.236940414 | L35: 7.958288822 | M35: 7.958288822 | N35: 7.958288822 | O35: 7.958288822 | P35: 7.958288822
B36: =C48 -> Metering Capex | D36: Initial Asset Base | G36: =IF(G$3>A1remlife,A1value-SUM($F36:F36),IF(A1remlife="N/A","n/a",A1value/A1remlife)) -> 4.817042676 | H36: =IF(H$3>A1remlife,A1value-SUM($F36:G36),IF(A1remlife="N/A","n/a",A1value/A1remlife)) -> 4.817042676 | I36: =IF(I$3>A1remlife,A1value-SUM($F36:H36),IF(A1remlife="N/A","n/a",A1value/A1remlife)) -> 4.817042676 | J36: =IF(J$3>A1remlife,A1value-SUM($F36:I36),IF(A1remlife="N/A","n/a",A1value/A1remlife)) -> 4.817042676 | K36: =IF(K$3>A1remlife,A1value-SUM($F36:J36),IF(A1remlife="N/A","n/a",A1value/A1remlife)) -> 4.817042676 | L36: =IF(L$3>A1remlife,A1value-SUM($F36:K36),IF(A1remlife="N/A","n/a",A1value/A1remlife)) -> 4.817042676 | M36: =IF(M$3>A1remlife,A1value-SUM($F36:L36),IF(A1remlife="N/A","n/a",A1value/A1remlife)) -> 4.817042676 | N36: =IF(N$3>A1remlife,A1value-SUM($F36:M36),IF(A1remlife="N/A","n/a",A1value/A1remlife)) -> 4.817042676 | O36: =IF(O$3>A1remlife,A1value-SUM($F36:N36),IF(A1remlife="N/A","n/a",A1value/A1remlife)) -> 4.817042676 | P36: =IF(P$3>A1remlife,A1value-SUM($F36:O36),IF(A1remlife="N/A","n/a",A1value/A1remlife)) -> 4.817042676
D37: Capex | E37: 0
E38: 1 | H38: =IF(A1stdlife="n/a","n/a",IF(H$3>(A1stdlife+$E38),(Input!$G$63*(1+rvanilla)^0.5)-SUM($G38:G38),(Input!$G$63*(1+rvanilla)^0.5)/A1stdlife)) -> 0.6184069528 | I38: =IF(A1stdlife="n/a","n/a",IF(I$3>(A1stdlife+$E38),(Input!$G$63*(1+rvanilla)^0.5)-SUM($G38:H38),(Input!$G$63*(1+rvanilla)^0.5)/A1stdlife)) -> 0.6184069528 | J38: =IF(A1stdlife="n/a","n/a",IF(J$3>(A1stdlife+$E38),(Input!$G$63*(1+rvanilla)^0.5)-SUM($G38:I38),(Input!$G$63*(1+rvanilla)^0.5)/A1stdlife)) -> 0.6184069528 | K38: =IF(A1stdlife="n/a","n/a",IF(K$3>(A1stdlife+$E38),(Input!$G$63*(1+rvanilla)^0.5)-SUM($G38:J38),(Input!$G$63*(1+rvanilla)^0.5)/A1stdlife)) -> 0.6184069528 | L38: =IF(A1stdlife="n/a","n/a",IF(L$3>(A1stdlife+$E38),(Input!$G$63*(1+rvanilla)^0.5)-SUM($G38:K38),(Input!$G$63*(1+rvanilla)^0.5)/A1stdlife)) -> 0.6184069528 | M38: =IF(A1stdlife="n/a","n/a",IF(M$3>(A1stdlife+$E38),(Input!$G$63*(1+rvanilla)^0.5)-SUM($G38:L38),(Input!$G$63*(1+rvanilla)^0.5)/A1stdlife)) -> 0.6184069528 | N38: =IF(A1stdlife="n/a","n/a",IF(N$3>(A1stdlife+$E38),(Input!$G$63*(1+rvanilla)^0.5)-SUM($G38:M38),(Input!$G$63*(1+rvanilla)^0.5)/A1stdlife)) -> 0.6184069528 | O38: =IF(A1stdlife="n/a","n/a",IF(O$3>(A1stdlife+$E38),(Input!$G$63*(1+rvanilla)^0.5)-SUM($G38:N38),(Input!$G$63*(1+rvanilla)^0.5)/A1stdlife)) -> 0.6184069528 | P38: =IF(A1stdlife="n/a","n/a",IF(P$3>(A1stdlife+$E38),(Input!$G$63*(1+rvanilla)^0.5)-SUM($G38:O38),(Input!$G$63*(1+rvanilla)^0.5)/A1stdlife)) -> 0.6184069528
E39: 2 | I39: =IF(A1stdlife="n/a","n/a",IF(I$3>(A1stdlife+$E39),(Input!$H$63*(1+rvanilla)^0.5)-SUM($H39:H39),(Input!$H$63*(1+rvanilla)^0.5)/A1stdlife)) -> 0.5200230952 | J39: =IF(A1stdlife="n/a","n/a",IF(J$3>(A1stdlife+$E39),(Input!$H$63*(1+rvanilla)^0.5)-SUM($H39:I39),(Input!$H$63*(1+rvanilla)^0.5)/A1stdlife)) -> 0.5200230952 | K39: =IF(A1stdlife="n/a","n/a",IF(K$3>(A1stdlife+$E39),(Input!$H$63*(1+rvanilla)^0.5)-SUM($H39:J39),(Input!$H$63*(1+rvanilla)^0.5)/A1stdlife)) -> 0.5200230952 | L39: =IF(A1stdlife="n/a","n/a",IF(L$3>(A1stdlife+$E39),(Input!$H$63*(1+rvanilla)^0.5)-SUM($H39:K39),(Input!$H$63*(1+rvanilla)^0.5)/A1stdlife)) -> 0.5200230952 | M39: =IF(A1stdlife="n/a","n/a",IF(M$3>(A1stdlife+$E39),(Input!$H$63*(1+rvanilla)^0.5)-SUM($H39:L39),(Input!$H$63*(1+rvanilla)^0.5)/A1stdlife)) -> 0.5200230952 | N39: =IF(A1stdlife="n/a","n/a",IF(N$3>(A1stdlife+$E39),(Input!$H$63*(1+rvanilla)^0.5)-SUM($H39:M39),(Input!$H$63*(1+rvanilla)^0.5)/A1stdlife)) -> 0.5200230952 | O39: =IF(A1stdlife="n/a","n/a",IF(O$3>(A1stdlife+$E39),(Input!$H$63*(1+rvanilla)^0.5)-SUM($H39:N39),(Input!$H$63*(1+rvanilla)^0.5)/A1stdlife)) -> 0.5200230952 | P39: =IF(A1stdlife="n/a","n/a",IF(P$3>(A1stdlife+$E39),(Input!$H$63*(1+rvanilla)^0.5)-SUM($H39:O39),(Input!$H$63*(1+rvanilla)^0.5)/A1stdlife)) -> 0.5200230952
E40: 3 | J40: =IF(A1stdlife="n/a","n/a",IF(J$3>(A1stdlife+$E40),(Input!$I$63*(1+rvanilla)^0.5)-SUM($I40:I40),(Input!$I$63*(1+rvanilla)^0.5)/A1stdlife)) -> 0.5376337837 | K40: =IF(A1stdlife="n/a","n/a",IF(K$3>(A1stdlife+$E40),(Input!$I$63*(1+rvanilla)^0.5)-SUM($I40:J40),(Input!$I$63*(1+rvanilla)^0.5)/A1stdlife)) -> 0.5376337837 | L40: =IF(A1stdlife="n/a","n/a",IF(L$3>(A1stdlife+$E40),(Input!$I$63*(1+rvanilla)^0.5)-SUM($I40:K40),(Input!$I$63*(1+rvanilla)^0.5)/A1stdlife)) -> 0.5376337837 | M40: =IF(A1stdlife="n/a","n/a",IF(M$3>(A1stdlife+$E40),(Input!$I$63*(1+rvanilla)^0.5)-SUM($I40:L40),(Input!$I$63*(1+rvanilla)^0.5)/A1stdlife)) -> 0.5376337837 | N40: =IF(A1stdlife="n/a","n/a",IF(N$3>(A1stdlife+$E40),(Input!$I$63*(1+rvanilla)^0.5)-SUM($I40:M40),(Input!$I$63*(1+rvanilla)^0.5)/A1stdlife)) -> 0.5376337837 | O40: =IF(A1stdlife="n/a","n/a",IF(O$3>(A1stdlife+$E40),(Input!$I$63*(1+rvanilla)^0.5)-SUM($I40:N40),(Input!$I$63*(1+rvanilla)^0.5)/A1stdlife)) -> 0.5376337837 | P40: =IF(A1stdlife="n/a","n/a",IF(P$3>(A1stdlife+$E40),(Input!$I$63*(1+rvanilla)^0.5)-SUM($I40:O40),(Input!$I$63*(1+rvanilla)^0.5)/A1stdlife)) -> 0.5376337837
E41: 4 | K41: =IF(A1stdlife="n/a","n/a",IF(K$3>(A1stdlife+$E41),(Input!$J$63*(1+rvanilla)^0.5)-SUM($J41:J41),(Input!$J$63*(1+rvanilla)^0.5)/A1stdlife)) -> 0.7279324729 | L41: =IF(A1stdlife="n/a","n/a",IF(L$3>(A1stdlife+$E41),(Input!$J$63*(1+rvanilla)^0.5)-SUM($J41:K41),(Input!$J$63*(1+rvanilla)^0.5)/A1stdlife)) -> 0.7279324729 | M41: =IF(A1stdlife="n/a","n/a",IF(M$3>(A1stdlife+$E41),(Input!$J$63*(1+rvanilla)^0.5)-SUM($J41:L41),(Input!$J$63*(1+rvanilla)^0.5)/A1stdlife)) -> 0.7279324729 | N41: =IF(A1stdlife="n/a","n/a",IF(N$3>(A1stdlife+$E41),(Input!$J$63*(1+rvanilla)^0.5)-SUM($J41:M41),(Input!$J$63*(1+rvanilla)^0.5)/A1stdlife)) -> 0.7279324729 | O41: =IF(A1stdlife="n/a","n/a",IF(O$3>(A1stdlife+$E41),(Input!$J$63*(1+rvanilla)^0.5)-SUM($J41:N41),(Input!$J$63*(1+rvanilla)^0.5)/A1stdlife)) -> 0.7279324729 | P41: =IF(A1stdlife="n/a","n/a",IF(P$3>(A1stdlife+$E41),(Input!$J$63*(1+rvanilla)^0.5)-SUM($J41:O41),(Input!$J$63*(1+rvanilla)^0.5)/A1stdlife)) -> 0.7279324729
E42: 5 | L42: =IF(A1stdlife="n/a","n/a",IF(L$3>(A1stdlife+$E42),(Input!$K$63*(1+rvanilla)^0.5)-SUM($K42:K42),(Input!$K$63*(1+rvanilla)^0.5)/A1stdlife)) -> 0.7213484086 | M42: =IF(A1stdlife="n/a","n/a",IF(M$3>(A1stdlife+$E42),(Input!$K$63*(1+rvanilla)^0.5)-SUM($K42:L42),(Input!$K$63*(1+rvanilla)^0.5)/A1stdlife)) -> 0.7213484086 | N42: =IF(A1stdlife="n/a","n/a",IF(N$3>(A1stdlife+$E42),(Input!$K$63*(1+rvanilla)^0.5)-SUM($K42:M42),(Input!$K$63*(1+rvanilla)^0.5)/A1stdlife)) -> 0.7213484086 | O42: =IF(A1stdlife="n/a","n/a",IF(O$3>(A1stdlife+$E42),(Input!$K$63*(1+rvanilla)^0.5)-SUM($K42:N42),(Input!$K$63*(1+rvanilla)^0.5)/A1stdlife)) -> 0.7213484086 | P42: =IF(A1stdlife="n/a","n/a",IF(P$3>(A1stdlife+$E42),(Input!$K$63*(1+rvanilla)^0.5)-SUM($K42:O42),(Input!$K$63*(1+rvanilla)^0.5)/A1stdlife)) -> 0.7213484086
E43: 6 | M43: =IF(A1stdlife="n/a","n/a",IF(M$3>(A1stdlife+$E43),(Input!$L$63*(1+rvanilla)^0.5)-SUM($L43:L43),(Input!$L$63*(1+rvanilla)^0.5)/A1stdlife)) -> 0 | N43: =IF(A1stdlife="n/a","n/a",IF(N$3>(A1stdlife+$E43),(Input!$L$63*(1+rvanilla)^0.5)-SUM($L43:M43),(Input!$L$63*(1+rvanilla)^0.5)/A1stdlife)) -> 0 | O43: =IF(A1stdlife="n/a","n/a",IF(O$3>(A1stdlife+$E43),(Input!$L$63*(1+rvanilla)^0.5)-SUM($L43:N43),(Input!$L$63*(1+rvanilla)^0.5)/A1stdlife)) -> 0 | P43: =IF(A1stdlife="n/a","n/a",IF(P$3>(A1stdlife+$E43),(Input!$L$63*(1+rvanilla)^0.5)-SUM($L43:O43),(Input!$L$63*(1+rvanilla)^0.5)/A1stdlife)) -> 0
E44: 7 | N44: =IF(A1stdlife="n/a","n/a",IF(N$3>(A1stdlife+$E44),(Input!$M$63*(1+rvanilla)^0.5)-SUM($M44:M44),(Input!$M$63*(1+rvanilla)^0.5)/A1stdlife)) -> 0 | O44: =IF(A1stdlife="n/a","n/a",IF(O$3>(A1stdlife+$E44),(Input!$M$63*(1+rvanilla)^0.5)-SUM($M44:N44),(Input!$M$63*(1+rvanilla)^0.5)/A1stdlife)) -> 0 | P44: =IF(A1stdlife="n/a","n/a",IF(P$3>(A1stdlife+$E44),(Input!$M$63*(1+rvanilla)^0.5)-SUM($M44:O44),(Input!$M$63*(1+rvanilla)^0.5)/A1stdlife)) -> 0
E45: 8 | O45: =IF(A1stdlife="n/a","n/a",IF(O$3>(A1stdlife+$E45),(Input!$N$63*(1+rvanilla)^0.5)-SUM($N45:N45),(Input!$N$63*(1+rvanilla)^0.5)/A1stdlife)) -> 0 | P45: =IF(A1stdlife="n/a","n/a",IF(P$3>(A1stdlife+$E45),(Input!$N$63*(1+rvanilla)^0.5)-SUM($N45:O45),(Input!$N$63*(1+rvanilla)^0.5)/A1stdlife)) -> 0
E46: 9 | P46: =IF(A1stdlife="n/a","n/a",IF(P$3>(A1stdlife+$E46),(Input!$O$63*(1+rvanilla)^0.5)-SUM($O46:O46),(Input!$O$63*(1+rvanilla)^0.5)/A1stdlife)) -> 0
E47: 10
C48: =Asset1 -> Metering Capex | G48: =SUM(G36:G47) -> 4.817042676 | H48: =SUM(H36:H47) -> 5.435449628 | I48: =SUM(I36:I47) -> 5.955472724 | J48: 6.493106507 | K48: 7.22103898 | L48: 7.942387389 | M48: 7.942387389 | N48: 7.942387389 | O48: 7.942387389 | P48: 7.942387389
B49: =C61 -> Equity raising costs | D49: Initial Asset Base | G49: =IF(G$3>A2remlife,A2value-SUM($F49:F49),IF(A2remlife="N/A","n/a",A2value/A2remlife)) -> 0.01067236163 | H49: =IF(H$3>A2remlife,A2value-SUM($F49:G49),IF(A2remlife="N/A","n/a",A2value/A2remlife)) -> 0.01067236163 | I49: =IF(I$3>A2remlife,A2value-SUM($F49:H49),IF(A2remlife="N/A","n/a",A2value/A2remlife)) -> 0.01067236163 | J49: =IF(J$3>A2remlife,A2value-SUM($F49:I49),IF(A2remlife="N/A","n/a",A2value/A2remlife)) -> 0.01067236163 | K49: =IF(K$3>A2remlife,A2value-SUM($F49:J49),IF(A2remlife="N/A","n/a",A2value/A2remlife)) -> 0.01067236163 | L49: =IF(L$3>A2remlife,A2value-SUM($F49:K49),IF(A2remlife="N/A","n/a",A2value/A2remlife)) -> 0.01067236163 | M49: =IF(M$3>A2remlife,A2value-SUM($F49:L49),IF(A2remlife="N/A","n/a",A2value/A2remlife)) -> 0.01067236163 | N49: =IF(N$3>A2remlife,A2value-SUM($F49:M49),IF(A2remlife="N/A","n/a",A2value/A2remlife)) -> 0.01067236163 | O49: =IF(O$3>A2remlife,A2value-SUM($F49:N49),IF(A2remlife="N/A","n/a",A2value/A2remlife)) -> 0.01067236163 | P49: =IF(P$3>A2remlife,A2value-SUM($F49:O49),IF(A2remlife="N/A","n/a",A2value/A2remlife)) -> 0.01067236163
D50: Capex | E50: 0
E51: 1 | H51: =IF(A2stdlife="n/a","n/a",IF(H$3>(A2stdlife+$E51),(Input!$G$64*(1+rvanilla)^0.5)-SUM($G51:G51),(Input!$G$64*(1+rvanilla)^0.5)/A2stdlife)) -> 0.005229072114 | I51: =IF(A2stdlife="n/a","n/a",IF(I$3>(A2stdlife+$E51),(Input!$G$64*(1+rvanilla)^0.5)-SUM($G51:H51),(Input!$G$64*(1+rvanilla)^0.5)/A2stdlife)) -> 0.005229072114 | J51: =IF(A2stdlife="n/a","n/a",IF(J$3>(A2stdlife+$E51),(Input!$G$64*(1+rvanilla)^0.5)-SUM($G51:I51),(Input!$G$64*(1+rvanilla)^0.5)/A2stdlife)) -> 0.005229072114 | K51: =IF(A2stdlife="n/a","n/a",IF(K$3>(A2stdlife+$E51),(Input!$G$64*(1+rvanilla)^0.5)-SUM($G51:J51),(Input!$G$64*(1+rvanilla)^0.5)/A2stdlife)) -> 0.005229072114 | L51: =IF(A2stdlife="n/a","n/a",IF(L$3>(A2stdlife+$E51),(Input!$G$64*(1+rvanilla)^0.5)-SUM($G51:K51),(Input!$G$64*(1+rvanilla)^0.5)/A2stdlife)) -> 0.005229072114 | M51: =IF(A2stdlife="n/a","n/a",IF(M$3>(A2stdlife+$E51),(Input!$G$64*(1+rvanilla)^0.5)-SUM($G51:L51),(Input!$G$64*(1+rvanilla)^0.5)/A2stdlife)) -> 0.005229072114 | N51: =IF(A2stdlife="n/a","n/a",IF(N$3>(A2stdlife+$E51),(Input!$G$64*(1+rvanilla)^0.5)-SUM($G51:M51),(Input!$G$64*(1+rvanilla)^0.5)/A2stdlife)) -> 0.005229072114 | O51: =IF(A2stdlife="n/a","n/a",IF(O$3>(A2stdlife+$E51),(Input!$G$64*(1+rvanilla)^0.5)-SUM($G51:N51),(Input!$G$64*(1+rvanilla)^0.5)/A2stdlife)) -> 0.005229072114 | P51: =IF(A2stdlife="n/a","n/a",IF(P$3>(A2stdlife+$E51),(Input!$G$64*(1+rvanilla)^0.5)-SUM($G51:O51),(Input!$G$64*(1+rvanilla)^0.5)/A2stdlife)) -> 0.005229072114
E52: 2 | I52: =IF(A2stdlife="n/a","n/a",IF(I$3>(A2stdlife+$E52),(Input!$H$64*(1+rvanilla)^0.5)-SUM($H52:H52),(Input!$H$64*(1+rvanilla)^0.5)/A2stdlife)) -> 0 | J52: =IF(A2stdlife="n/a","n/a",IF(J$3>(A2stdlife+$E52),(Input!$H$64*(1+rvanilla)^0.5)-SUM($H52:I52),(Input!$H$64*(1+rvanilla)^0.5)/A2stdlife)) -> 0 | K52: =IF(A2stdlife="n/a","n/a",IF(K$3>(A2stdlife+$E52),(Input!$H$64*(1+rvanilla)^0.5)-SUM($H52:J52),(Input!$H$64*(1+rvanilla)^0.5)/A2stdlife)) -> 0 | L52: =IF(A2stdlife="n/a","n/a",IF(L$3>(A2stdlife+$E52),(Input!$H$64*(1+rvanilla)^0.5)-SUM($H52:K52),(Input!$H$64*(1+rvanilla)^0.5)/A2stdlife)) -> 0 | M52: =IF(A2stdlife="n/a","n/a",IF(M$3>(A2stdlife+$E52),(Input!$H$64*(1+rvanilla)^0.5)-SUM($H52:L52),(Input!$H$64*(1+rvanilla)^0.5)/A2stdlife)) -> 0 | N52: =IF(A2stdlife="n/a","n/a",IF(N$3>(A2stdlife+$E52),(Input!$H$64*(1+rvanilla)^0.5)-SUM($H52:M52),(Input!$H$64*(1+rvanilla)^0.5)/A2stdlife)) -> 0 | O52: =IF(A2stdlife="n/a","n/a",IF(O$3>(A2stdlife+$E52),(Input!$H$64*(1+rvanilla)^0.5)-SUM($H52:N52),(Input!$H$64*(1+rvanilla)^0.5)/A2stdlife)) -> 0 | P52: =IF(A2stdlife="n/a","n/a",IF(P$3>(A2stdlife+$E52),(Input!$H$64*(1+rvanilla)^0.5)-SUM($H52:O52),(Input!$H$64*(1+rvanilla)^0.5)/A2stdlife)) -> 0
E53: 3 | J53: =IF(A2stdlife="n/a","n/a",IF(J$3>(A2stdlife+$E53),(Input!$I$64*(1+rvanilla)^0.5)-SUM($I53:I53),(Input!$I$64*(1+rvanilla)^0.5)/A2stdlife)) -> 0 | K53: =IF(A2stdlife="n/a","n/a",IF(K$3>(A2stdlife+$E53),(Input!$I$64*(1+rvanilla)^0.5)-SUM($I53:J53),(Input!$I$64*(1+rvanilla)^0.5)/A2stdlife)) -> 0 | L53: =IF(A2stdlife="n/a","n/a",IF(L$3>(A2stdlife+$E53),(Input!$I$64*(1+rvanilla)^0.5)-SUM($I53:K53),(Input!$I$64*(1+rvanilla)^0.5)/A2stdlife)) -> 0 | M53: =IF(A2stdlife="n/a","n/a",IF(M$3>(A2stdlife+$E53),(Input!$I$64*(1+rvanilla)^0.5)-SUM($I53:L53),(Input!$I$64*(1+rvanilla)^0.5)/A2stdlife)) -> 0 | N53: =IF(A2stdlife="n/a","n/a",IF(N$3>(A2stdlife+$E53),(Input!$I$64*(1+rvanilla)^0.5)-SUM($I53:M53),(Input!$I$64*(1+rvanilla)^0.5)/A2stdlife)) -> 0 | O53: =IF(A2stdlife="n/a","n/a",IF(O$3>(A2stdlife+$E53),(Input!$I$64*(1+rvanilla)^0.5)-SUM($I53:N53),(Input!$I$64*(1+rvanilla)^0.5)/A2stdlife)) -> 0 | P53: =IF(A2stdlife="n/a","n/a",IF(P$3>(A2stdlife+$E53),(Input!$I$64*(1+rvanilla)^0.5)-SUM($I53:O53),(Input!$I$64*(1+rvanilla)^0.5)/A2stdlife)) -> 0
E54: 4 | K54: =IF(A2stdlife="n/a","n/a",IF(K$3>(A2stdlife+$E54),(Input!$J$64*(1+rvanilla)^0.5)-SUM($J54:J54),(Input!$J$64*(1+rvanilla)^0.5)/A2stdlife)) -> 0 | L54: =IF(A2stdlife="n/a","n/a",IF(L$3>(A2stdlife+$E54),(Input!$J$64*(1+rvanilla)^0.5)-SUM($J54:K54),(Input!$J$64*(1+rvanilla)^0.5)/A2stdlife)) -> 0 | M54: =IF(A2stdlife="n/a","n/a",IF(M$3>(A2stdlife+$E54),(Input!$J$64*(1+rvanilla)^0.5)-SUM($J54:L54),(Input!$J$64*(1+rvanilla)^0.5)/A2stdlife)) -> 0 | N54: =IF(A2stdlife="n/a","n/a",IF(N$3>(A2stdlife+$E54),(Input!$J$64*(1+rvanilla)^0.5)-SUM($J54:M54),(Input!$J$64*(1+rvanilla)^0.5)/A2stdlife)) -> 0 | O54: =IF(A2stdlife="n/a","n/a",IF(O$3>(A2stdlife+$E54),(Input!$J$64*(1+rvanilla)^0.5)-SUM($J54:N54),(Input!$J$64*(1+rvanilla)^0.5)/A2stdlife)) -> 0 | P54: =IF(A2stdlife="n/a","n/a",IF(P$3>(A2stdlife+$E54),(Input!$J$64*(1+rvanilla)^0.5)-SUM($J54:O54),(Input!$J$64*(1+rvanilla)^0.5)/A2stdlife)) -> 0
E55: 5 | L55: =IF(A2stdlife="n/a","n/a",IF(L$3>(A2stdlife+$E55),(Input!$K$64*(1+rvanilla)^0.5)-SUM($K55:K55),(Input!$K$64*(1+rvanilla)^0.5)/A2stdlife)) -> 0 | M55: =IF(A2stdlife="n/a","n/a",IF(M$3>(A2stdlife+$E55),(Input!$K$64*(1+rvanilla)^0.5)-SUM($K55:L55),(Input!$K$64*(1+rvanilla)^0.5)/A2stdlife)) -> 0 | N55: =IF(A2stdlife="n/a","n/a",IF(N$3>(A2stdlife+$E55),(Input!$K$64*(1+rvanilla)^0.5)-SUM($K55:M55),(Input!$K$64*(1+rvanilla)^0.5)/A2stdlife)) -> 0 | O55: =IF(A2stdlife="n/a","n/a",IF(O$3>(A2stdlife+$E55),(Input!$K$64*(1+rvanilla)^0.5)-SUM($K55:N55),(Input!$K$64*(1+rvanilla)^0.5)/A2stdlife)) -> 0 | P55: =IF(A2stdlife="n/a","n/a",IF(P$3>(A2stdlife+$E55),(Input!$K$64*(1+rvanilla)^0.5)-SUM($K55:O55),(Input!$K$64*(1+rvanilla)^0.5)/A2stdlife)) -> 0
E56: 6 | M56: =IF(A2stdlife="n/a","n/a",IF(M$3>(A2stdlife+$E56),(Input!$L$64*(1+rvanilla)^0.5)-SUM($L56:L56),(Input!$L$64*(1+rvanilla)^0.5)/A2stdlife)) -> 0 | N56: =IF(A2stdlife="n/a","n/a",IF(N$3>(A2stdlife+$E56),(Input!$L$64*(1+rvanilla)^0.5)-SUM($L56:M56),(Input!$L$64*(1+rvanilla)^0.5)/A2stdlife)) -> 0 | O56: =IF(A2stdlife="n/a","n/a",IF(O$3>(A2stdlife+$E56),(Input!$L$64*(1+rvanilla)^0.5)-SUM($L56:N56),(Input!$L$64*(1+rvanilla)^0.5)/A2stdlife)) -> 0 | P56: =IF(A2stdlife="n/a","n/a",IF(P$3>(A2stdlife+$E56),(Input!$L$64*(1+rvanilla)^0.5)-SUM($L56:O56),(Input!$L$64*(1+rvanilla)^0.5)/A2stdlife)) -> 0
E57: 7 | N57: =IF(A2stdlife="n/a","n/a",IF(N$3>(A2stdlife+$E57),(Input!$M$64*(1+rvanilla)^0.5)-SUM($M57:M57),(Input!$M$64*(1+rvanilla)^0.5)/A2stdlife)) -> 0 | O57: =IF(A2stdlife="n/a","n/a",IF(O$3>(A2stdlife+$E57),(Input!$M$64*(1+rvanilla)^0.5)-SUM($M57:N57),(Input!$M$64*(1+rvanilla)^0.5)/A2stdlife)) -> 0 | P57: =IF(A2stdlife="n/a","n/a",IF(P$3>(A2stdlife+$E57),(Input!$M$64*(1+rvanilla)^0.5)-SUM($M57:O57),(Input!$M$64*(1+rvanilla)^0.5)/A2stdlife)) -> 0
E58: 8 | O58: =IF(A2stdlife="n/a","n/a",IF(O$3>(A2stdlife+$E58),(Input!$N$64*(1+rvanilla)^0.5)-SUM($N58:N58),(Input!$N$64*(1+rvanilla)^0.5)/A2stdlife)) -> 0 | P58: =IF(A2stdlife="n/a","n/a",IF(P$3>(A2stdlife+$E58),(Input!$N$64*(1+rvanilla)^0.5)-SUM($N58:O58),(Input!$N$64*(1+rvanilla)^0.5)/A2stdlife)) -> 0
E59: 9 | P59: =IF(A2stdlife="n/a","n/a",IF(P$3>(A2stdlife+$E59),(Input!$O$64*(1+rvanilla)^0.5)-SUM($O59:O59),(Input!$O$64*(1+rvanilla)^0.5)/A2stdlife)) -> 0
E60: 10
C61: =Asset2 -> Equity raising costs | G61: =SUM(G49:G60) -> 0.01067236163 | H61: =SUM(H49:H60) -> 0.01590143374 | I61: 0.01590143374 | J61: 0.01590143374 | K61: 0.01590143374 | L61: 0.01590143374 | M61: 0.01590143374 | N61: 0.01590143374 | O61: 0.01590143374 | P61: 0.01590143374
B62: =C74 -> 0 | D62: Initial Asset Base | G62: =IF(G$3>A3remlife,A3value-SUM($F62:F62),IF(A3remlife="N/A","n/a",A3value/A3remlife)) -> 0 | H62: =IF(H$3>A3remlife,A3value-SUM($F62:G62),IF(A3remlife="N/A","n/a",A3value/A3remlife)) -> 0 | I62: =IF(I$3>A3remlife,A3value-SUM($F62:H62),IF(A3remlife="N/A","n/a",A3value/A3remlife)) -> 0 | J62: =IF(J$3>A3remlife,A3value-SUM($F62:I62),IF(A3remlife="N/A","n/a",A3value/A3remlife)) -> 0 | K62: =IF(K$3>A3remlife,A3value-SUM($F62:J62),IF(A3remlife="N/A","n/a",A3value/A3remlife)) -> 0 | L62: =IF(L$3>A3remlife,A3value-SUM($F62:K62),IF(A3remlife="N/A","n/a",A3value/A3remlife)) -> 0 | M62: =IF(M$3>A3remlife,A3value-SUM($F62:L62),IF(A3remlife="N/A","n/a",A3value/A3remlife)) -> 0 | N62: =IF(N$3>A3remlife,A3value-SUM($F62:M62),IF(A3remlife="N/A","n/a",A3value/A3remlife)) -> 0 | O62: =IF(O$3>A3remlife,A3value-SUM($F62:N62),IF(A3remlife="N/A","n/a",A3value/A3remlife)) -> 0 | P62: =IF(P$3>A3remlife,A3value-SUM($F62:O62),IF(A3remlife="N/A","n/a",A3value/A3remlife)) -> 0
D63: Capex | E63: 0
E64: 1 | H64: =IF(A3stdlife="n/a","n/a",IF(H$3>(A3stdlife+$E64),(Input!$G$65*(1+rvanilla)^0.5)-SUM($G64:G64),(Input!$G$65*(1+rvanilla)^0.5)/A3stdlife)) -> 0 | I64: =IF(A3stdlife="n/a","n/a",IF(I$3>(A3stdlife+$E64),(Input!$G$65*(1+rvanilla)^0.5)-SUM($G64:H64),(Input!$G$65*(1+rvanilla)^0.5)/A3stdlife)) -> 0 | J64: =IF(A3stdlife="n/a","n/a",IF(J$3>(A3stdlife+$E64),(Input!$G$65*(1+rvanilla)^0.5)-SUM($G64:I64),(Input!$G$65*(1+rvanilla)^0.5)/A3stdlife)) -> 0 | K64: =IF(A3stdlife="n/a","n/a",IF(K$3>(A3stdlife+$E64),(Input!$G$65*(1+rvanilla)^0.5)-SUM($G64:J64),(Input!$G$65*(1+rvanilla)^0.5)/A3stdlife)) -> 0 | L64: =IF(A3stdlife="n/a","n/a",IF(L$3>(A3stdlife+$E64),(Input!$G$65*(1+rvanilla)^0.5)-SUM($G64:K64),(Input!$G$65*(1+rvanilla)^0.5)/A3stdlife)) -> 0 | M64: =IF(A3stdlife="n/a","n/a",IF(M$3>(A3stdlife+$E64),(Input!$G$65*(1+rvanilla)^0.5)-SUM($G64:L64),(Input!$G$65*(1+rvanilla)^0.5)/A3stdlife)) -> 0 | N64: =IF(A3stdlife="n/a","n/a",IF(N$3>(A3stdlife+$E64),(Input!$G$65*(1+rvanilla)^0.5)-SUM($G64:M64),(Input!$G$65*(1+rvanilla)^0.5)/A3stdlife)) -> 0 | O64: =IF(A3stdlife="n/a","n/a",IF(O$3>(A3stdlife+$E64),(Input!$G$65*(1+rvanilla)^0.5)-SUM($G64:N64),(Input!$G$65*(1+rvanilla)^0.5)/A3stdlife)) -> 0 | P64: =IF(A3stdlife="n/a","n/a",IF(P$3>(A3stdlife+$E64),(Input!$G$65*(1+rvanilla)^0.5)-SUM($G64:O64),(Input!$G$65*(1+rvanilla)^0.5)/A3stdlife)) -> 0
E65: 2 | I65: =IF(A3stdlife="n/a","n/a",IF(I$3>(A3stdlife+$E65),(Input!$H$65*(1+rvanilla)^0.5)-SUM($H65:H65),(Input!$H$65*(1+rvanilla)^0.5)/A3stdlife)) -> 0 | J65: =IF(A3stdlife="n/a","n/a",IF(J$3>(A3stdlife+$E65),(Input!$H$65*(1+rvanilla)^0.5)-SUM($H65:I65),(Input!$H$65*(1+rvanilla)^0.5)/A3stdlife)) -> 0 | K65: =IF(A3stdlife="n/a","n/a",IF(K$3>(A3stdlife+$E65),(Input!$H$65*(1+rvanilla)^0.5)-SUM($H65:J65),(Input!$H$65*(1+rvanilla)^0.5)/A3stdlife)) -> 0 | L65: =IF(A3stdlife="n/a","n/a",IF(L$3>(A3stdlife+$E65),(Input!$H$65*(1+rvanilla)^0.5)-SUM($H65:K65),(Input!$H$65*(1+rvanilla)^0.5)/A3stdlife)) -> 0 | M65: =IF(A3stdlife="n/a","n/a",IF(M$3>(A3stdlife+$E65),(Input!$H$65*(1+rvanilla)^0.5)-SUM($H65:L65),(Input!$H$65*(1+rvanilla)^0.5)/A3stdlife)) -> 0 | N65: =IF(A3stdlife="n/a","n/a",IF(N$3>(A3stdlife+$E65),(Input!$H$65*(1+rvanilla)^0.5)-SUM($H65:M65),(Input!$H$65*(1+rvanilla)^0.5)/A3stdlife)) -> 0 | O65: =IF(A3stdlife="n/a","n/a",IF(O$3>(A3stdlife+$E65),(Input!$H$65*(1+rvanilla)^0.5)-SUM($H65:N65),(Input!$H$65*(1+rvanilla)^0.5)/A3stdlife)) -> 0 | P65: =IF(A3stdlife="n/a","n/a",IF(P$3>(A3stdlife+$E65),(Input!$H$65*(1+rvanilla)^0.5)-SUM($H65:O65),(Input!$H$65*(1+rvanilla)^0.5)/A3stdlife)) -> 0
E66: 3 | J66: =IF(A3stdlife="n/a","n/a",IF(J$3>(A3stdlife+$E66),(Input!$I$65*(1+rvanilla)^0.5)-SUM($I66:I66),(Input!$I$65*(1+rvanilla)^0.5)/A3stdlife)) -> 0 | K66: =IF(A3stdlife="n/a","n/a",IF(K$3>(A3stdlife+$E66),(Input!$I$65*(1+rvanilla)^0.5)-SUM($I66:J66),(Input!$I$65*(1+rvanilla)^0.5)/A3stdlife)) -> 0 | L66: =IF(A3stdlife="n/a","n/a",IF(L$3>(A3stdlife+$E66),(Input!$I$65*(1+rvanilla)^0.5)-SUM($I66:K66),(Input!$I$65*(1+rvanilla)^0.5)/A3stdlife)) -> 0 | M66: =IF(A3stdlife="n/a","n/a",IF(M$3>(A3stdlife+$E66),(Input!$I$65*(1+rvanilla)^0.5)-SUM($I66:L66),(Input!$I$65*(1+rvanilla)^0.5)/A3stdlife)) -> 0 | N66: =IF(A3stdlife="n/a","n/a",IF(N$3>(A3stdlife+$E66),(Input!$I$65*(1+rvanilla)^0.5)-SUM($I66:M66),(Input!$I$65*(1+rvanilla)^0.5)/A3stdlife)) -> 0 | O66: =IF(A3stdlife="n/a","n/a",IF(O$3>(A3stdlife+$E66),(Input!$I$65*(1+rvanilla)^0.5)-SUM($I66:N66),(Input!$I$65*(1+rvanilla)^0.5)/A3stdlife)) -> 0 | P66: =IF(A3stdlife="n/a","n/a",IF(P$3>(A3stdlife+$E66),(Input!$I$65*(1+rvanilla)^0.5)-SUM($I66:O66),(Input!$I$65*(1+rvanilla)^0.5)/A3stdlife)) -> 0
E67: 4 | K67: =IF(A3stdlife="n/a","n/a",IF(K$3>(A3stdlife+$E67),(Input!$J$65*(1+rvanilla)^0.5)-SUM($J67:J67),(Input!$J$65*(1+rvanilla)^0.5)/A3stdlife)) -> 0 | L67: =IF(A3stdlife="n/a","n/a",IF(L$3>(A3stdlife+$E67),(Input!$J$65*(1+rvanilla)^0.5)-SUM($J67:K67),(Input!$J$65*(1+rvanilla)^0.5)/A3stdlife)) -> 0 | M67: =IF(A3stdlife="n/a","n/a",IF(M$3>(A3stdlife+$E67),(Input!$J$65*(1+rvanilla)^0.5)-SUM($J67:L67),(Input!$J$65*(1+rvanilla)^0.5)/A3stdlife)) -> 0 | N67: =IF(A3stdlife="n/a","n/a",IF(N$3>(A3stdlife+$E67),(Input!$J$65*(1+rvanilla)^0.5)-SUM($J67:M67),(Input!$J$65*(1+rvanilla)^0.5)/A3stdlife)) -> 0 | O67: =IF(A3stdlife="n/a","n/a",IF(O$3>(A3stdlife+$E67),(Input!$J$65*(1+rvanilla)^0.5)-SUM($J67:N67),(Input!$J$65*(1+rvanilla)^0.5)/A3stdlife)) -> 0 | P67: =IF(A3stdlife="n/a","n/a",IF(P$3>(A3stdlife+$E67),(Input!$J$65*(1+rvanilla)^0.5)-SUM($J67:O67),(Input!$J$65*(1+rvanilla)^0.5)/A3stdlife)) -> 0
E68: 5 | L68: =IF(A3stdlife="n/a","n/a",IF(L$3>(A3stdlife+$E68),(Input!$K$65*(1+rvanilla)^0.5)-SUM($K68:K68),(Input!$K$65*(1+rvanilla)^0.5)/A3stdlife)) -> 0 | M68: =IF(A3stdlife="n/a","n/a",IF(M$3>(A3stdlife+$E68),(Input!$K$65*(1+rvanilla)^0.5)-SUM($K68:L68),(Input!$K$65*(1+rvanilla)^0.5)/A3stdlife)) -> 0 | N68: =IF(A3stdlife="n/a","n/a",IF(N$3>(A3stdlife+$E68),(Input!$K$65*(1+rvanilla)^0.5)-SUM($K68:M68),(Input!$K$65*(1+rvanilla)^0.5)/A3stdlife)) -> 0 | O68: =IF(A3stdlife="n/a","n/a",IF(O$3>(A3stdlife+$E68),(Input!$K$65*(1+rvanilla)^0.5)-SUM($K68:N68),(Input!$K$65*(1+rvanilla)^0.5)/A3stdlife)) -> 0 | P68: =IF(A3stdlife="n/a","n/a",IF(P$3>(A3stdlife+$E68),(Input!$K$65*(1+rvanilla)^0.5)-SUM($K68:O68),(Input!$K$65*(1+rvanilla)^0.5)/A3stdlife)) -> 0
E69: 6 | M69: =IF(A3stdlife="n/a","n/a",IF(M$3>(A3stdlife+$E69),(Input!$L$65*(1+rvanilla)^0.5)-SUM($L69:L69),(Input!$L$65*(1+rvanilla)^0.5)/A3stdlife)) -> 0 | N69: =IF(A3stdlife="n/a","n/a",IF(N$3>(A3stdlife+$E69),(Input!$L$65*(1+rvanilla)^0.5)-SUM($L69:M69),(Input!$L$65*(1+rvanilla)^0.5)/A3stdlife)) -> 0 | O69: =IF(A3stdlife="n/a","n/a",IF(O$3>(A3stdlife+$E69),(Input!$L$65*(1+rvanilla)^0.5)-SUM($L69:N69),(Input!$L$65*(1+rvanilla)^0.5)/A3stdlife)) -> 0 | P69: =IF(A3stdlife="n/a","n/a",IF(P$3>(A3stdlife+$E69),(Input!$L$65*(1+rvanilla)^0.5)-SUM($L69:O69),(Input!$L$65*(1+rvanilla)^0.5)/A3stdlife)) -> 0
E70: 7 | N70: =IF(A3stdlife="n/a","n/a",IF(N$3>(A3stdlife+$E70),(Input!$M$65*(1+rvanilla)^0.5)-SUM($M70:M70),(Input!$M$65*(1+rvanilla)^0.5)/A3stdlife)) -> 0 | O70: =IF(A3stdlife="n/a","n/a",IF(O$3>(A3stdlife+$E70),(Input!$M$65*(1+rvanilla)^0.5)-SUM($M70:N70),(Input!$M$65*(1+rvanilla)^0.5)/A3stdlife)) -> 0 | P70: =IF(A3stdlife="n/a","n/a",IF(P$3>(A3stdlife+$E70),(Input!$M$65*(1+rvanilla)^0.5)-SUM($M70:O70),(Input!$M$65*(1+rvanilla)^0.5)/A3stdlife)) -> 0
E71: 8 | O71: =IF(A3stdlife="n/a","n/a",IF(O$3>(A3stdlife+$E71),(Input!$N$65*(1+rvanilla)^0.5)-SUM($N71:N71),(Input!$N$65*(1+rvanilla)^0.5)/A3stdlife)) -> 0 | P71: =IF(A3stdlife="n/a","n/a",IF(P$3>(A3stdlife+$E71),(Input!$N$65*(1+rvanilla)^0.5)-SUM($N71:O71),(Input!$N$65*(1+rvanilla)^0.5)/A3stdlife)) -> 0
E72: 9 | P72: =IF(A3stdlife="n/a","n/a",IF(P$3>(A3stdlife+$E72),(Input!$O$65*(1+rvanilla)^0.5)-SUM($O72:O72),(Input!$O$65*(1+rvanilla)^0.5)/A3stdlife)) -> 0
E73: 10
C74: =Asset3 -> 0 | G74: =SUM(G62:G73) -> 0 | H74: =SUM(H62:H73) -> 0 | I74: 0 | J74: 0 | K74: 0 | L74: 0 | M74: 0 | N74: 0 | O74: 0 | P74: 0
B75: =C87 -> 0 | D75: Initial Asset Base | G75: =IF(G$3>A4remlife,A4value-SUM($F75:F75),IF(A4remlife="N/A","n/a",A4value/A4remlife)) -> 0 | H75: =IF(H$3>A4remlife,A4value-SUM($F75:G75),IF(A4remlife="N/A","n/a",A4value/A4remlife)) -> 0 | I75: =IF(I$3>A4remlife,A4value-SUM($F75:H75),IF(A4remlife="N/A","n/a",A4value/A4remlife)) -> 0 | J75: =IF(J$3>A4remlife,A4value-SUM($F75:I75),IF(A4remlife="N/A","n/a",A4value/A4remlife)) -> 0 | K75: =IF(K$3>A4remlife,A4value-SUM($F75:J75),IF(A4remlife="N/A","n/a",A4value/A4remlife)) -> 0 | L75: =IF(L$3>A4remlife,A4value-SUM($F75:K75),IF(A4remlife="N/A","n/a",A4value/A4remlife)) -> 0 | M75: =IF(M$3>A4remlife,A4value-SUM($F75:L75),IF(A4remlife="N/A","n/a",A4value/A4remlife)) -> 0 | N75: =IF(N$3>A4remlife,A4value-SUM($F75:M75),IF(A4remlife="N/A","n/a",A4value/A4remlife)) -> 0 | O75: =IF(O$3>A4remlife,A4value-SUM($F75:N75),IF(A4remlife="N/A","n/a",A4value/A4remlife)) -> 0 | P75: =IF(P$3>A4remlife,A4value-SUM($F75:O75),IF(A4remlife="N/A","n/a",A4value/A4remlife)) -> 0
D76: Capex | E76: 0
E77: 1 | H77: =IF(A4stdlife="n/a","n/a",IF(H$3>(A4stdlife+$E77),(Input!$G$66*(1+rvanilla)^0.5)-SUM($G77:G77),(Input!$G$66*(1+rvanilla)^0.5)/A4stdlife)) -> 0 | I77: =IF(A4stdlife="n/a","n/a",IF(I$3>(A4stdlife+$E77),(Input!$G$66*(1+rvanilla)^0.5)-SUM($G77:H77),(Input!$G$66*(1+rvanilla)^0.5)/A4stdlife)) -> 0 | J77: =IF(A4stdlife="n/a","n/a",IF(J$3>(A4stdlife+$E77),(Input!$G$66*(1+rvanilla)^0.5)-SUM($G77:I77),(Input!$G$66*(1+rvanilla)^0.5)/A4stdlife)) -> 0 | K77: =IF(A4stdlife="n/a","n/a",IF(K$3>(A4stdlife+$E77),(Input!$G$66*(1+rvanilla)^0.5)-SUM($G77:J77),(Input!$G$66*(1+rvanilla)^0.5)/A4stdlife)) -> 0 | L77: =IF(A4stdlife="n/a","n/a",IF(L$3>(A4stdlife+$E77),(Input!$G$66*(1+rvanilla)^0.5)-SUM($G77:K77),(Input!$G$66*(1+rvanilla)^0.5)/A4stdlife)) -> 0 | M77: =IF(A4stdlife="n/a","n/a",IF(M$3>(A4stdlife+$E77),(Input!$G$66*(1+rvanilla)^0.5)-SUM($G77:L77),(Input!$G$66*(1+rvanilla)^0.5)/A4stdlife)) -> 0 | N77: =IF(A4stdlife="n/a","n/a",IF(N$3>(A4stdlife+$E77),(Input!$G$66*(1+rvanilla)^0.5)-SUM($G77:M77),(Input!$G$66*(1+rvanilla)^0.5)/A4stdlife)) -> 0 | O77: =IF(A4stdlife="n/a","n/a",IF(O$3>(A4stdlife+$E77),(Input!$G$66*(1+rvanilla)^0.5)-SUM($G77:N77),(Input!$G$66*(1+rvanilla)^0.5)/A4stdlife)) -> 0 | P77: =IF(A4stdlife="n/a","n/a",IF(P$3>(A4stdlife+$E77),(Input!$G$66*(1+rvanilla)^0.5)-SUM($G77:O77),(Input!$G$66*(1+rvanilla)^0.5)/A4stdlife)) -> 0
E78: 2 | I78: =IF(A4stdlife="n/a","n/a",IF(I$3>(A4stdlife+$E78),(Input!$H$66*(1+rvanilla)^0.5)-SUM($H78:H78),(Input!$H$66*(1+rvanilla)^0.5)/A4stdlife)) -> 0 | J78: =IF(A4stdlife="n/a","n/a",IF(J$3>(A4stdlife+$E78),(Input!$H$66*(1+rvanilla)^0.5)-SUM($H78:I78),(Input!$H$66*(1+rvanilla)^0.5)/A4stdlife)) -> 0 | K78: =IF(A4stdlife="n/a","n/a",IF(K$3>(A4stdlife+$E78),(Input!$H$66*(1+rvanilla)^0.5)-SUM($H78:J78),(Input!$H$66*(1+rvanilla)^0.5)/A4stdlife)) -> 0 | L78: =IF(A4stdlife="n/a","n/a",IF(L$3>(A4stdlife+$E78),(Input!$H$66*(1+rvanilla)^0.5)-SUM($H78:K78),(Input!$H$66*(1+rvanilla)^0.5)/A4stdlife)) -> 0 | M78: =IF(A4stdlife="n/a","n/a",IF(M$3>(A4stdlife+$E78),(Input!$H$66*(1+rvanilla)^0.5)-SUM($H78:L78),(Input!$H$66*(1+rvanilla)^0.5)/A4stdlife)) -> 0 | N78: =IF(A4stdlife="n/a","n/a",IF(N$3>(A4stdlife+$E78),(Input!$H$66*(1+rvanilla)^0.5)-SUM($H78:M78),(Input!$H$66*(1+rvanilla)^0.5)/A4stdlife)) -> 0 | O78: =IF(A4stdlife="n/a","n/a",IF(O$3>(A4stdlife+$E78),(Input!$H$66*(1+rvanilla)^0.5)-SUM($H78:N78),(Input!$H$66*(1+rvanilla)^0.5)/A4stdlife)) -> 0 | P78: =IF(A4stdlife="n/a","n/a",IF(P$3>(A4stdlife+$E78),(Input!$H$66*(1+rvanilla)^0.5)-SUM($H78:O78),(Input!$H$66*(1+rvanilla)^0.5)/A4stdlife)) -> 0
E79: 3 | J79: =IF(A4stdlife="n/a","n/a",IF(J$3>(A4stdlife+$E79),(Input!$I$66*(1+rvanilla)^0.5)-SUM($I79:I79),(Input!$I$66*(1+rvanilla)^0.5)/A4stdlife)) -> 0 | K79: =IF(A4stdlife="n/a","n/a",IF(K$3>(A4stdlife+$E79),(Input!$I$66*(1+rvanilla)^0.5)-SUM($I79:J79),(Input!$I$66*(1+rvanilla)^0.5)/A4stdlife)) -> 0 | L79: =IF(A4stdlife="n/a","n/a",IF(L$3>(A4stdlife+$E79),(Input!$I$66*(1+rvanilla)^0.5)-SUM($I79:K79),(Input!$I$66*(1+rvanilla)^0.5)/A4stdlife)) -> 0 | M79: =IF(A4stdlife="n/a","n/a",IF(M$3>(A4stdlife+$E79),(Input!$I$66*(1+rvanilla)^0.5)-SUM($I79:L79),(Input!$I$66*(1+rvanilla)^0.5)/A4stdlife)) -> 0 | N79: =IF(A4stdlife="n/a","n/a",IF(N$3>(A4stdlife+$E79),(Input!$I$66*(1+rvanilla)^0.5)-SUM($I79:M79),(Input!$I$66*(1+rvanilla)^0.5)/A4stdlife)) -> 0 | O79: =IF(A4stdlife="n/a","n/a",IF(O$3>(A4stdlife+$E79),(Input!$I$66*(1+rvanilla)^0.5)-SUM($I79:N79),(Input!$I$66*(1+rvanilla)^0.5)/A4stdlife)) -> 0 | P79: =IF(A4stdlife="n/a","n/a",IF(P$3>(A4stdlife+$E79),(Input!$I$66*(1+rvanilla)^0.5)-SUM($I79:O79),(Input!$I$66*(1+rvanilla)^0.5)/A4stdlife)) -> 0
E80: 4 | K80: =IF(A4stdlife="n/a","n/a",IF(K$3>(A4stdlife+$E80),(Input!$J$66*(1+rvanilla)^0.5)-SUM($J80:J80),(Input!$J$66*(1+rvanilla)^0.5)/A4stdlife)) -> 0 | L80: =IF(A4stdlife="n/a","n/a",IF(L$3>(A4stdlife+$E80),(Input!$J$66*(1+rvanilla)^0.5)-SUM($J80:K80),(Input!$J$66*(1+rvanilla)^0.5)/A4stdlife)) -> 0 | M80: =IF(A4stdlife="n/a","n/a",IF(M$3>(A4stdlife+$E80),(Input!$J$66*(1+rvanilla)^0.5)-SUM($J80:L80),(Input!$J$66*(1+rvanilla)^0.5)/A4stdlife)) -> 0 | N80: =IF(A4stdlife="n/a","n/a",IF(N$3>(A4stdlife+$E80),(Input!$J$66*(1+rvanilla)^0.5)-SUM($J80:M80),(Input!$J$66*(1+rvanilla)^0.5)/A4stdlife)) -> 0 | O80: =IF(A4stdlife="n/a","n/a",IF(O$3>(A4stdlife+$E80),(Input!$J$66*(1+rvanilla)^0.5)-SUM($J80:N80),(Input!$J$66*(1+rvanilla)^0.5)/A4stdlife)) -> 0 | P80: =IF(A4stdlife="n/a","n/a",IF(P$3>(A4stdlife+$E80),(Input!$J$66*(1+rvanilla)^0.5)-SUM($J80:O80),(Input!$J$66*(1+rvanilla)^0.5)/A4stdlife)) -> 0
E81: 5 | L81: =IF(A4stdlife="n/a","n/a",IF(L$3>(A4stdlife+$E81),(Input!$K$66*(1+rvanilla)^0.5)-SUM($K81:K81),(Input!$K$66*(1+rvanilla)^0.5)/A4stdlife)) -> 0 | M81: =IF(A4stdlife="n/a","n/a",IF(M$3>(A4stdlife+$E81),(Input!$K$66*(1+rvanilla)^0.5)-SUM($K81:L81),(Input!$K$66*(1+rvanilla)^0.5)/A4stdlife)) -> 0 | N81: =IF(A4stdlife="n/a","n/a",IF(N$3>(A4stdlife+$E81),(Input!$K$66*(1+rvanilla)^0.5)-SUM($K81:M81),(Input!$K$66*(1+rvanilla)^0.5)/A4stdlife)) -> 0 | O81: =IF(A4stdlife="n/a","n/a",IF(O$3>(A4stdlife+$E81),(Input!$K$66*(1+rvanilla)^0.5)-SUM($K81:N81),(Input!$K$66*(1+rvanilla)^0.5)/A4stdlife)) -> 0 | P81: =IF(A4stdlife="n/a","n/a",IF(P$3>(A4stdlife+$E81),(Input!$K$66*(1+rvanilla)^0.5)-SUM($K81:O81),(Input!$K$66*(1+rvanilla)^0.5)/A4stdlife)) -> 0
E82: 6 | M82: =IF(A4stdlife="n/a","n/a",IF(M$3>(A4stdlife+$E82),(Input!$L$66*(1+rvanilla)^0.5)-SUM($L82:L82),(Input!$L$66*(1+rvanilla)^0.5)/A4stdlife)) -> 0 | N82: =IF(A4stdlife="n/a","n/a",IF(N$3>(A4stdlife+$E82),(Input!$L$66*(1+rvanilla)^0.5)-SUM($L82:M82),(Input!$L$66*(1+rvanilla)^0.5)/A4stdlife)) -> 0 | O82: =IF(A4stdlife="n/a","n/a",IF(O$3>(A4stdlife+$E82),(Input!$L$66*(1+rvanilla)^0.5)-SUM($L82:N82),(Input!$L$66*(1+rvanilla)^0.5)/A4stdlife)) -> 0 | P82: =IF(A4stdlife="n/a","n/a",IF(P$3>(A4stdlife+$E82),(Input!$L$66*(1+rvanilla)^0.5)-SUM($L82:O82),(Input!$L$66*(1+rvanilla)^0.5)/A4stdlife)) -> 0
E83: 7 | N83: =IF(A4stdlife="n/a","n/a",IF(N$3>(A4stdlife+$E83),(Input!$M$66*(1+rvanilla)^0.5)-SUM($M83:M83),(Input!$M$66*(1+rvanilla)^0.5)/A4stdlife)) -> 0 | O83: =IF(A4stdlife="n/a","n/a",IF(O$3>(A4stdlife+$E83),(Input!$M$66*(1+rvanilla)^0.5)-SUM($M83:N83),(Input!$M$66*(1+rvanilla)^0.5)/A4stdlife)) -> 0 | P83: =IF(A4stdlife="n/a","n/a",IF(P$3>(A4stdlife+$E83),(Input!$M$66*(1+rvanilla)^0.5)-SUM($M83:O83),(Input!$M$66*(1+rvanilla)^0.5)/A4stdlife)) -> 0
E84: 8 | O84: =IF(A4stdlife="n/a","n/a",IF(O$3>(A4stdlife+$E84),(Input!$N$66*(1+rvanilla)^0.5)-SUM($N84:N84),(Input!$N$66*(1+rvanilla)^0.5)/A4stdlife)) -> 0 | P84: =IF(A4stdlife="n/a","n/a",IF(P$3>(A4stdlife+$E84),(Input!$N$66*(1+rvanilla)^0.5)-SUM($N84:O84),(Input!$N$66*(1+rvanilla)^0.5)/A4stdlife)) -> 0
E85: 9 | P85: =IF(A4stdlife="n/a","n/a",IF(P$3>(A4stdlife+$E85),(Input!$O$66*(1+rvanilla)^0.5)-SUM($O85:O85),(Input!$O$66*(1+rvanilla)^0.5)/A4stdlife)) -> 0
E86: 10
C87: =Asset4 -> 0 | G87: =SUM(G75:G86) -> 0 | H87: 0 | I87: 0 | J87: 0 | K87: 0 | L87: 0 | M87: 0 | N87: 0 | O87: 0 | P87: 0
B88: =C100 -> 0 | D88: Initial Asset Base | G88: =IF(G$3>A5remlife,A5value-SUM($F88:F88),IF(A5remlife="N/A","n/a",A5value/A5remlife)) -> 0 | H88: =IF(H$3>A5remlife,A5value-SUM($F88:G88),IF(A5remlife="N/A","n/a",A5value/A5remlife)) -> 0 | I88: =IF(I$3>A5remlife,A5value-SUM($F88:H88),IF(A5remlife="N/A","n/a",A5value/A5remlife)) -> 0 | J88: =IF(J$3>A5remlife,A5value-SUM($F88:I88),IF(A5remlife="N/A","n/a",A5value/A5remlife)) -> 0 | K88: =IF(K$3>A5remlife,A5value-SUM($F88:J88),IF(A5remlife="N/A","n/a",A5value/A5remlife)) -> 0 | L88: =IF(L$3>A5remlife,A5value-SUM($F88:K88),IF(A5remlife="N/A","n/a",A5value/A5remlife)) -> 0 | M88: =IF(M$3>A5remlife,A5value-SUM($F88:L88),IF(A5remlife="N/A","n/a",A5value/A5remlife)) -> 0 | N88: =IF(N$3>A5remlife,A5value-SUM($F88:M88),IF(A5remlife="N/A","n/a",A5value/A5remlife)) -> 0 | O88: =IF(O$3>A5remlife,A5value-SUM($F88:N88),IF(A5remlife="N/A","n/a",A5value/A5remlife)) -> 0 | P88: =IF(P$3>A5remlife,A5value-SUM($F88:O88),IF(A5remlife="N/A","n/a",A5value/A5remlife)) -> 0
D89: Capex | E89: 0
E90: 1 | H90: =IF(A5stdlife="n/a","n/a",IF(H$3>(A5stdlife+$E90),(Input!$G$67*(1+rvanilla)^0.5)-SUM($G90:G90),(Input!$G$67*(1+rvanilla)^0.5)/A5stdlife)) -> 0 | I90: =IF(A5stdlife="n/a","n/a",IF(I$3>(A5stdlife+$E90),(Input!$G$67*(1+rvanilla)^0.5)-SUM($G90:H90),(Input!$G$67*(1+rvanilla)^0.5)/A5stdlife)) -> 0 | J90: =IF(A5stdlife="n/a","n/a",IF(J$3>(A5stdlife+$E90),(Input!$G$67*(1+rvanilla)^0.5)-SUM($G90:I90),(Input!$G$67*(1+rvanilla)^0.5)/A5stdlife)) -> 0 | K90: =IF(A5stdlife="n/a","n/a",IF(K$3>(A5stdlife+$E90),(Input!$G$67*(1+rvanilla)^0.5)-SUM($G90:J90),(Input!$G$67*(1+rvanilla)^0.5)/A5stdlife)) -> 0 | L90: =IF(A5stdlife="n/a","n/a",IF(L$3>(A5stdlife+$E90),(Input!$G$67*(1+rvanilla)^0.5)-SUM($G90:K90),(Input!$G$67*(1+rvanilla)^0.5)/A5stdlife)) -> 0 | M90: =IF(A5stdlife="n/a","n/a",IF(M$3>(A5stdlife+$E90),(Input!$G$67*(1+rvanilla)^0.5)-SUM($G90:L90),(Input!$G$67*(1+rvanilla)^0.5)/A5stdlife)) -> 0 | N90: =IF(A5stdlife="n/a","n/a",IF(N$3>(A5stdlife+$E90),(Input!$G$67*(1+rvanilla)^0.5)-SUM($G90:M90),(Input!$G$67*(1+rvanilla)^0.5)/A5stdlife)) -> 0 | O90: =IF(A5stdlife="n/a","n/a",IF(O$3>(A5stdlife+$E90),(Input!$G$67*(1+rvanilla)^0.5)-SUM($G90:N90),(Input!$G$67*(1+rvanilla)^0.5)/A5stdlife)) -> 0 | P90: =IF(A5stdlife="n/a","n/a",IF(P$3>(A5stdlife+$E90),(Input!$G$67*(1+rvanilla)^0.5)-SUM($G90:O90),(Input!$G$67*(1+rvanilla)^0.5)/A5stdlife)) -> 0
E91: 2 | I91: =IF(A5stdlife="n/a","n/a",IF(I$3>(A5stdlife+$E91),(Input!$H$67*(1+rvanilla)^0.5)-SUM($H91:H91),(Input!$H$67*(1+rvanilla)^0.5)/A5stdlife)) -> 0 | J91: =IF(A5stdlife="n/a","n/a",IF(J$3>(A5stdlife+$E91),(Input!$H$67*(1+rvanilla)^0.5)-SUM($H91:I91),(Input!$H$67*(1+rvanilla)^0.5)/A5stdlife)) -> 0 | K91: =IF(A5stdlife="n/a","n/a",IF(K$3>(A5stdlife+$E91),(Input!$H$67*(1+rvanilla)^0.5)-SUM($H91:J91),(Input!$H$67*(1+rvanilla)^0.5)/A5stdlife)) -> 0 | L91: =IF(A5stdlife="n/a","n/a",IF(L$3>(A5stdlife+$E91),(Input!$H$67*(1+rvanilla)^0.5)-SUM($H91:K91),(Input!$H$67*(1+rvanilla)^0.5)/A5stdlife)) -> 0 | M91: =IF(A5stdlife="n/a","n/a",IF(M$3>(A5stdlife+$E91),(Input!$H$67*(1+rvanilla)^0.5)-SUM($H91:L91),(Input!$H$67*(1+rvanilla)^0.5)/A5stdlife)) -> 0 | N91: =IF(A5stdlife="n/a","n/a",IF(N$3>(A5stdlife+$E91),(Input!$H$67*(1+rvanilla)^0.5)-SUM($H91:M91),(Input!$H$67*(1+rvanilla)^0.5)/A5stdlife)) -> 0 | O91: =IF(A5stdlife="n/a","n/a",IF(O$3>(A5stdlife+$E91),(Input!$H$67*(1+rvanilla)^0.5)-SUM($H91:N91),(Input!$H$67*(1+rvanilla)^0.5)/A5stdlife)) -> 0 | P91: =IF(A5stdlife="n/a","n/a",IF(P$3>(A5stdlife+$E91),(Input!$H$67*(1+rvanilla)^0.5)-SUM($H91:O91),(Input!$H$67*(1+rvanilla)^0.5)/A5stdlife)) -> 0
E92: 3 | J92: =IF(A5stdlife="n/a","n/a",IF(J$3>(A5stdlife+$E92),(Input!$I$67*(1+rvanilla)^0.5)-SUM($I92:I92),(Input!$I$67*(1+rvanilla)^0.5)/A5stdlife)) -> 0 | K92: =IF(A5stdlife="n/a","n/a",IF(K$3>(A5stdlife+$E92),(Input!$I$67*(1+rvanilla)^0.5)-SUM($I92:J92),(Input!$I$67*(1+rvanilla)^0.5)/A5stdlife)) -> 0 | L92: =IF(A5stdlife="n/a","n/a",IF(L$3>(A5stdlife+$E92),(Input!$I$67*(1+rvanilla)^0.5)-SUM($I92:K92),(Input!$I$67*(1+rvanilla)^0.5)/A5stdlife)) -> 0 | M92: =IF(A5stdlife="n/a","n/a",IF(M$3>(A5stdlife+$E92),(Input!$I$67*(1+rvanilla)^0.5)-SUM($I92:L92),(Input!$I$67*(1+rvanilla)^0.5)/A5stdlife)) -> 0 | N92: =IF(A5stdlife="n/a","n/a",IF(N$3>(A5stdlife+$E92),(Input!$I$67*(1+rvanilla)^0.5)-SUM($I92:M92),(Input!$I$67*(1+rvanilla)^0.5)/A5stdlife)) -> 0 | O92: =IF(A5stdlife="n/a","n/a",IF(O$3>(A5stdlife+$E92),(Input!$I$67*(1+rvanilla)^0.5)-SUM($I92:N92),(Input!$I$67*(1+rvanilla)^0.5)/A5stdlife)) -> 0 | P92: =IF(A5stdlife="n/a","n/a",IF(P$3>(A5stdlife+$E92),(Input!$I$67*(1+rvanilla)^0.5)-SUM($I92:O92),(Input!$I$67*(1+rvanilla)^0.5)/A5stdlife)) -> 0
E93: 4 | K93: =IF(A5stdlife="n/a","n/a",IF(K$3>(A5stdlife+$E93),(Input!$J$67*(1+rvanilla)^0.5)-SUM($J93:J93),(Input!$J$67*(1+rvanilla)^0.5)/A5stdlife)) -> 0 | L93: =IF(A5stdlife="n/a","n/a",IF(L$3>(A5stdlife+$E93),(Input!$J$67*(1+rvanilla)^0.5)-SUM($J93:K93),(Input!$J$67*(1+rvanilla)^0.5)/A5stdlife)) -> 0 | M93: =IF(A5stdlife="n/a","n/a",IF(M$3>(A5stdlife+$E93),(Input!$J$67*(1+rvanilla)^0.5)-SUM($J93:L93),(Input!$J$67*(1+rvanilla)^0.5)/A5stdlife)) -> 0 | N93: =IF(A5stdlife="n/a","n/a",IF(N$3>(A5stdlife+$E93),(Input!$J$67*(1+rvanilla)^0.5)-SUM($J93:M93),(Input!$J$67*(1+rvanilla)^0.5)/A5stdlife)) -> 0 | O93: =IF(A5stdlife="n/a","n/a",IF(O$3>(A5stdlife+$E93),(Input!$J$67*(1+rvanilla)^0.5)-SUM($J93:N93),(Input!$J$67*(1+rvanilla)^0.5)/A5stdlife)) -> 0 | P93: =IF(A5stdlife="n/a","n/a",IF(P$3>(A5stdlife+$E93),(Input!$J$67*(1+rvanilla)^0.5)-SUM($J93:O93),(Input!$J$67*(1+rvanilla)^0.5)/A5stdlife)) -> 0
E94: 5 | L94: =IF(A5stdlife="n/a","n/a",IF(L$3>(A5stdlife+$E94),(Input!$K$67*(1+rvanilla)^0.5)-SUM($K94:K94),(Input!$K$67*(1+rvanilla)^0.5)/A5stdlife)) -> 0 | M94: =IF(A5stdlife="n/a","n/a",IF(M$3>(A5stdlife+$E94),(Input!$K$67*(1+rvanilla)^0.5)-SUM($K94:L94),(Input!$K$67*(1+rvanilla)^0.5)/A5stdlife)) -> 0 | N94: =IF(A5stdlife="n/a","n/a",IF(N$3>(A5stdlife+$E94),(Input!$K$67*(1+rvanilla)^0.5)-SUM($K94:M94),(Input!$K$67*(1+rvanilla)^0.5)/A5stdlife)) -> 0 | O94: =IF(A5stdlife="n/a","n/a",IF(O$3>(A5stdlife+$E94),(Input!$K$67*(1+rvanilla)^0.5)-SUM($K94:N94),(Input!$K$67*(1+rvanilla)^0.5)/A5stdlife)) -> 0 | P94: =IF(A5stdlife="n/a","n/a",IF(P$3>(A5stdlife+$E94),(Input!$K$67*(1+rvanilla)^0.5)-SUM($K94:O94),(Input!$K$67*(1+rvanilla)^0.5)/A5stdlife)) -> 0
E95: 6 | M95: =IF(A5stdlife="n/a","n/a",IF(M$3>(A5stdlife+$E95),(Input!$L$67*(1+rvanilla)^0.5)-SUM($L95:L95),(Input!$L$67*(1+rvanilla)^0.5)/A5stdlife)) -> 0 | N95: =IF(A5stdlife="n/a","n/a",IF(N$3>(A5stdlife+$E95),(Input!$L$67*(1+rvanilla)^0.5)-SUM($L95:M95),(Input!$L$67*(1+rvanilla)^0.5)/A5stdlife)) -> 0 | O95: =IF(A5stdlife="n/a","n/a",IF(O$3>(A5stdlife+$E95),(Input!$L$67*(1+rvanilla)^0.5)-SUM($L95:N95),(Input!$L$67*(1+rvanilla)^0.5)/A5stdlife)) -> 0 | P95: =IF(A5stdlife="n/a","n/a",IF(P$3>(A5stdlife+$E95),(Input!$L$67*(1+rvanilla)^0.5)-SUM($L95:O95),(Input!$L$67*(1+rvanilla)^0.5)/A5stdlife)) -> 0
E96: 7 | N96: =IF(A5stdlife="n/a","n/a",IF(N$3>(A5stdlife+$E96),(Input!$M$67*(1+rvanilla)^0.5)-SUM($M96:M96),(Input!$M$67*(1+rvanilla)^0.5)/A5stdlife)) -> 0 | O96: =IF(A5stdlife="n/a","n/a",IF(O$3>(A5stdlife+$E96),(Input!$M$67*(1+rvanilla)^0.5)-SUM($M96:N96),(Input!$M$67*(1+rvanilla)^0.5)/A5stdlife)) -> 0 | P96: =IF(A5stdlife="n/a","n/a",IF(P$3>(A5stdlife+$E96),(Input!$M$67*(1+rvanilla)^0.5)-SUM($M96:O96),(Input!$M$67*(1+rvanilla)^0.5)/A5stdlife)) -> 0
E97: 8 | O97: =IF(A5stdlife="n/a","n/a",IF(O$3>(A5stdlife+$E97),(Input!$N$67*(1+rvanilla)^0.5)-SUM($N97:N97),(Input!$N$67*(1+rvanilla)^0.5)/A5stdlife)) -> 0 | P97: =IF(A5stdlife="n/a","n/a",IF(P$3>(A5stdlife+$E97),(Input!$N$67*(1+rvanilla)^0.5)-SUM($N97:O97),(Input!$N$67*(1+rvanilla)^0.5)/A5stdlife)) -> 0
E98: 9 | P98: =IF(A5stdlife="n/a","n/a",IF(P$3>(A5stdlife+$E98),(Input!$O$67*(1+rvanilla)^0.5)-SUM($O98:O98),(Input!$O$67*(1+rvanilla)^0.5)/A5stdlife)) -> 0
E99: 10
C100: =Asset5 -> 0 | G100: =SUM(G88:G99) -> 0 | H100: 0 | I100: 0 | J100: 0 | K100: 0 | L100: 0 | M100: 0 | N100: 0 | O100: 0 | P100: 0
B101: =C113 -> 0 | D101: Initial Asset Base | G101: =IF(G$3>A6remlife,A6value-SUM($F101:F101),IF(A6remlife="N/A","n/a",A6value/A6remlife)) -> 0 | H101: =IF(H$3>A6remlife,A6value-SUM($F101:G101),IF(A6remlife="N/A","n/a",A6value/A6remlife)) -> 0 | I101: =IF(I$3>A6remlife,A6value-SUM($F101:H101),IF(A6remlife="N/A","n/a",A6value/A6remlife)) -> 0 | J101: =IF(J$3>A6remlife,A6value-SUM($F101:I101),IF(A6remlife="N/A","n/a",A6value/A6remlife)) -> 0 | K101: =IF(K$3>A6remlife,A6value-SUM($F101:J101),IF(A6remlife="N/A","n/a",A6value/A6remlife)) -> 0 | L101: =IF(L$3>A6remlife,A6value-SUM($F101:K101),IF(A6remlife="N/A","n/a",A6value/A6remlife)) -> 0 | M101: =IF(M$3>A6remlife,A6value-SUM($F101:L101),IF(A6remlife="N/A","n/a",A6value/A6remlife)) -> 0 | N101: =IF(N$3>A6remlife,A6value-SUM($F101:M101),IF(A6remlife="N/A","n/a",A6value/A6remlife)) -> 0 | O101: =IF(O$3>A6remlife,A6value-SUM($F101:N101),IF(A6remlife="N/A","n/a",A6value/A6remlife)) -> 0 | P101: =IF(P$3>A6remlife,A6value-SUM($F101:O101),IF(A6remlife="N/A","n/a",A6value/A6remlife)) -> 0
D102: Capex | E102: 0
E103: 1 | H103: =IF(A6stdlife="n/a","n/a",IF(H$3>(A6stdlife+$E103),(Input!$G$68*(1+rvanilla)^0.5)-SUM($G103:G103),(Input!$G$68*(1+rvanilla)^0.5)/A6stdlife)) -> 0 | I103: =IF(A6stdlife="n/a","n/a",IF(I$3>(A6stdlife+$E103),(Input!$G$68*(1+rvanilla)^0.5)-SUM($G103:H103),(Input!$G$68*(1+rvanilla)^0.5)/A6stdlife)) -> 0 | J103: =IF(A6stdlife="n/a","n/a",IF(J$3>(A6stdlife+$E103),(Input!$G$68*(1+rvanilla)^0.5)-SUM($G103:I103),(Input!$G$68*(1+rvanilla)^0.5)/A6stdlife)) -> 0 | K103: =IF(A6stdlife="n/a","n/a",IF(K$3>(A6stdlife+$E103),(Input!$G$68*(1+rvanilla)^0.5)-SUM($G103:J103),(Input!$G$68*(1+rvanilla)^0.5)/A6stdlife)) -> 0 | L103: =IF(A6stdlife="n/a","n/a",IF(L$3>(A6stdlife+$E103),(Input!$G$68*(1+rvanilla)^0.5)-SUM($G103:K103),(Input!$G$68*(1+rvanilla)^0.5)/A6stdlife)) -> 0 | M103: =IF(A6stdlife="n/a","n/a",IF(M$3>(A6stdlife+$E103),(Input!$G$68*(1+rvanilla)^0.5)-SUM($G103:L103),(Input!$G$68*(1+rvanilla)^0.5)/A6stdlife)) -> 0 | N103: =IF(A6stdlife="n/a","n/a",IF(N$3>(A6stdlife+$E103),(Input!$G$68*(1+rvanilla)^0.5)-SUM($G103:M103),(Input!$G$68*(1+rvanilla)^0.5)/A6stdlife)) -> 0 | O103: =IF(A6stdlife="n/a","n/a",IF(O$3>(A6stdlife+$E103),(Input!$G$68*(1+rvanilla)^0.5)-SUM($G103:N103),(Input!$G$68*(1+rvanilla)^0.5)/A6stdlife)) -> 0 | P103: =IF(A6stdlife="n/a","n/a",IF(P$3>(A6stdlife+$E103),(Input!$G$68*(1+rvanilla)^0.5)-SUM($G103:O103),(Input!$G$68*(1+rvanilla)^0.5)/A6stdlife)) -> 0
E104: 2 | I104: =IF(A6stdlife="n/a","n/a",IF(I$3>(A6stdlife+$E104),(Input!$H$68*(1+rvanilla)^0.5)-SUM($H104:H104),(Input!$H$68*(1+rvanilla)^0.5)/A6stdlife)) -> 0 | J104: =IF(A6stdlife="n/a","n/a",IF(J$3>(A6stdlife+$E104),(Input!$H$68*(1+rvanilla)^0.5)-SUM($H104:I104),(Input!$H$68*(1+rvanilla)^0.5)/A6stdlife)) -> 0 | K104: =IF(A6stdlife="n/a","n/a",IF(K$3>(A6stdlife+$E104),(Input!$H$68*(1+rvanilla)^0.5)-SUM($H104:J104),(Input!$H$68*(1+rvanilla)^0.5)/A6stdlife)) -> 0 | L104: =IF(A6stdlife="n/a","n/a",IF(L$3>(A6stdlife+$E104),(Input!$H$68*(1+rvanilla)^0.5)-SUM($H104:K104),(Input!$H$68*(1+rvanilla)^0.5)/A6stdlife)) -> 0 | M104: =IF(A6stdlife="n/a","n/a",IF(M$3>(A6stdlife+$E104),(Input!$H$68*(1+rvanilla)^0.5)-SUM($H104:L104),(Input!$H$68*(1+rvanilla)^0.5)/A6stdlife)) -> 0 | N104: =IF(A6stdlife="n/a","n/a",IF(N$3>(A6stdlife+$E104),(Input!$H$68*(1+rvanilla)^0.5)-SUM($H104:M104),(Input!$H$68*(1+rvanilla)^0.5)/A6stdlife)) -> 0 | O104: =IF(A6stdlife="n/a","n/a",IF(O$3>(A6stdlife+$E104),(Input!$H$68*(1+rvanilla)^0.5)-SUM($H104:N104),(Input!$H$68*(1+rvanilla)^0.5)/A6stdlife)) -> 0 | P104: =IF(A6stdlife="n/a","n/a",IF(P$3>(A6stdlife+$E104),(Input!$H$68*(1+rvanilla)^0.5)-SUM($H104:O104),(Input!$H$68*(1+rvanilla)^0.5)/A6stdlife)) -> 0
E105: 3 | J105: =IF(A6stdlife="n/a","n/a",IF(J$3>(A6stdlife+$E105),(Input!$I$68*(1+rvanilla)^0.5)-SUM($I105:I105),(Input!$I$68*(1+rvanilla)^0.5)/A6stdlife)) -> 0 | K105: =IF(A6stdlife="n/a","n/a",IF(K$3>(A6stdlife+$E105),(Input!$I$68*(1+rvanilla)^0.5)-SUM($I105:J105),(Input!$I$68*(1+rvanilla)^0.5)/A6stdlife)) -> 0 | L105: =IF(A6stdlife="n/a","n/a",IF(L$3>(A6stdlife+$E105),(Input!$I$68*(1+rvanilla)^0.5)-SUM($I105:K105),(Input!$I$68*(1+rvanilla)^0.5)/A6stdlife)) -> 0 | M105: =IF(A6stdlife="n/a","n/a",IF(M$3>(A6stdlife+$E105),(Input!$I$68*(1+rvanilla)^0.5)-SUM($I105:L105),(Input!$I$68*(1+rvanilla)^0.5)/A6stdlife)) -> 0 | N105: =IF(A6stdlife="n/a","n/a",IF(N$3>(A6stdlife+$E105),(Input!$I$68*(1+rvanilla)^0.5)-SUM($I105:M105),(Input!$I$68*(1+rvanilla)^0.5)/A6stdlife)) -> 0 | O105: =IF(A6stdlife="n/a","n/a",IF(O$3>(A6stdlife+$E105),(Input!$I$68*(1+rvanilla)^0.5)-SUM($I105:N105),(Input!$I$68*(1+rvanilla)^0.5)/A6stdlife)) -> 0 | P105: =IF(A6stdlife="n/a","n/a",IF(P$3>(A6stdlife+$E105),(Input!$I$68*(1+rvanilla)^0.5)-SUM($I105:O105),(Input!$I$68*(1+rvanilla)^0.5)/A6stdlife)) -> 0
E106: 4 | K106: =IF(A6stdlife="n/a","n/a",IF(K$3>(A6stdlife+$E106),(Input!$J$68*(1+rvanilla)^0.5)-SUM($J106:J106),(Input!$J$68*(1+rvanilla)^0.5)/A6stdlife)) -> 0 | L106: =IF(A6stdlife="n/a","n/a",IF(L$3>(A6stdlife+$E106),(Input!$J$68*(1+rvanilla)^0.5)-SUM($J106:K106),(Input!$J$68*(1+rvanilla)^0.5)/A6stdlife)) -> 0 | M106: =IF(A6stdlife="n/a","n/a",IF(M$3>(A6stdlife+$E106),(Input!$J$68*(1+rvanilla)^0.5)-SUM($J106:L106),(Input!$J$68*(1+rvanilla)^0.5)/A6stdlife)) -> 0 | N106: =IF(A6stdlife="n/a","n/a",IF(N$3>(A6stdlife+$E106),(Input!$J$68*(1+rvanilla)^0.5)-SUM($J106:M106),(Input!$J$68*(1+rvanilla)^0.5)/A6stdlife)) -> 0 | O106: =IF(A6stdlife="n/a","n/a",IF(O$3>(A6stdlife+$E106),(Input!$J$68*(1+rvanilla)^0.5)-SUM($J106:N106),(Input!$J$68*(1+rvanilla)^0.5)/A6stdlife)) -> 0 | P106: =IF(A6stdlife="n/a","n/a",IF(P$3>(A6stdlife+$E106),(Input!$J$68*(1+rvanilla)^0.5)-SUM($J106:O106),(Input!$J$68*(1+rvanilla)^0.5)/A6stdlife)) -> 0
E107: 5 | L107: =IF(A6stdlife="n/a","n/a",IF(L$3>(A6stdlife+$E107),(Input!$K$68*(1+rvanilla)^0.5)-SUM($K107:K107),(Input!$K$68*(1+rvanilla)^0.5)/A6stdlife)) -> 0 | M107: =IF(A6stdlife="n/a","n/a",IF(M$3>(A6stdlife+$E107),(Input!$K$68*(1+rvanilla)^0.5)-SUM($K107:L107),(Input!$K$68*(1+rvanilla)^0.5)/A6stdlife)) -> 0 | N107: =IF(A6stdlife="n/a","n/a",IF(N$3>(A6stdlife+$E107),(Input!$K$68*(1+rvanilla)^0.5)-SUM($K107:M107),(Input!$K$68*(1+rvanilla)^0.5)/A6stdlife)) -> 0 | O107: =IF(A6stdlife="n/a","n/a",IF(O$3>(A6stdlife+$E107),(Input!$K$68*(1+rvanilla)^0.5)-SUM($K107:N107),(Input!$K$68*(1+rvanilla)^0.5)/A6stdlife)) -> 0 | P107: =IF(A6stdlife="n/a","n/a",IF(P$3>(A6stdlife+$E107),(Input!$K$68*(1+rvanilla)^0.5)-SUM($K107:O107),(Input!$K$68*(1+rvanilla)^0.5)/A6stdlife)) -> 0
E108: 6 | M108: =IF(A6stdlife="n/a","n/a",IF(M$3>(A6stdlife+$E108),(Input!$L$68*(1+rvanilla)^0.5)-SUM($L108:L108),(Input!$L$68*(1+rvanilla)^0.5)/A6stdlife)) -> 0 | N108: =IF(A6stdlife="n/a","n/a",IF(N$3>(A6stdlife+$E108),(Input!$L$68*(1+rvanilla)^0.5)-SUM($L108:M108),(Input!$L$68*(1+rvanilla)^0.5)/A6stdlife)) -> 0 | O108: =IF(A6stdlife="n/a","n/a",IF(O$3>(A6stdlife+$E108),(Input!$L$68*(1+rvanilla)^0.5)-SUM($L108:N108),(Input!$L$68*(1+rvanilla)^0.5)/A6stdlife)) -> 0 | P108: =IF(A6stdlife="n/a","n/a",IF(P$3>(A6stdlife+$E108),(Input!$L$68*(1+rvanilla)^0.5)-SUM($L108:O108),(Input!$L$68*(1+rvanilla)^0.5)/A6stdlife)) -> 0
E109: 7 | N109: =IF(A6stdlife="n/a","n/a",IF(N$3>(A6stdlife+$E109),(Input!$M$68*(1+rvanilla)^0.5)-SUM($M109:M109),(Input!$M$68*(1+rvanilla)^0.5)/A6stdlife)) -> 0 | O109: =IF(A6stdlife="n/a","n/a",IF(O$3>(A6stdlife+$E109),(Input!$M$68*(1+rvanilla)^0.5)-SUM($M109:N109),(Input!$M$68*(1+rvanilla)^0.5)/A6stdlife)) -> 0 | P109: =IF(A6stdlife="n/a","n/a",IF(P$3>(A6stdlife+$E109),(Input!$M$68*(1+rvanilla)^0.5)-SUM($M109:O109),(Input!$M$68*(1+rvanilla)^0.5)/A6stdlife)) -> 0
E110: 8 | O110: =IF(A6stdlife="n/a","n/a",IF(O$3>(A6stdlife+$E110),(Input!$N$68*(1+rvanilla)^0.5)-SUM($N110:N110),(Input!$N$68*(1+rvanilla)^0.5)/A6stdlife)) -> 0 | P110: =IF(A6stdlife="n/a","n/a",IF(P$3>(A6stdlife+$E110),(Input!$N$68*(1+rvanilla)^0.5)-SUM($N110:O110),(Input!$N$68*(1+rvanilla)^0.5)/A6stdlife)) -> 0
E111: 9 | P111: =IF(A6stdlife="n/a","n/a",IF(P$3>(A6stdlife+$E111),(Input!$O$68*(1+rvanilla)^0.5)-SUM($O111:O111),(Input!$O$68*(1+rvanilla)^0.5)/A6stdlife)) -> 0
E112: 10
C113: =Asset6 -> 0 | G113: =SUM(G101:G112) -> 0 | H113: 0 | I113: 0 | J113: 0 | K113: 0 | L113: 0 | M113: 0 | N113: 0 | O113: 0 | P113: 0
B114: =C126 -> 0 | D114: Initial Asset Base | G114: =IF(G$3>A7remlife,A7value-SUM($F114:F114),IF(A7remlife="N/A","n/a",A7value/A7remlife)) -> 0 | H114: =IF(H$3>A7remlife,A7value-SUM($F114:G114),IF(A7remlife="N/A","n/a",A7value/A7remlife)) -> 0 | I114: =IF(I$3>A7remlife,A7value-SUM($F114:H114),IF(A7remlife="N/A","n/a",A7value/A7remlife)) -> 0 | J114: =IF(J$3>A7remlife,A7value-SUM($F114:I114),IF(A7remlife="N/A","n/a",A7value/A7remlife)) -> 0 | K114: =IF(K$3>A7remlife,A7value-SUM($F114:J114),IF(A7remlife="N/A","n/a",A7value/A7remlife)) -> 0 | L114: =IF(L$3>A7remlife,A7value-SUM($F114:K114),IF(A7remlife="N/A","n/a",A7value/A7remlife)) -> 0 | M114: =IF(M$3>A7remlife,A7value-SUM($F114:L114),IF(A7remlife="N/A","n/a",A7value/A7remlife)) -> 0 | N114: =IF(N$3>A7remlife,A7value-SUM($F114:M114),IF(A7remlife="N/A","n/a",A7value/A7remlife)) -> 0 | O114: =IF(O$3>A7remlife,A7value-SUM($F114:N114),IF(A7remlife="N/A","n/a",A7value/A7remlife)) -> 0 | P114: =IF(P$3>A7remlife,A7value-SUM($F114:O114),IF(A7remlife="N/A","n/a",A7value/A7remlife)) -> 0
D115: Capex | E115: 0
E116: 1 | H116: =IF(A7stdlife="n/a","n/a",IF(H$3>(A7stdlife+$E116),(Input!$G$69*(1+rvanilla)^0.5)-SUM($G116:G116),(Input!$G$69*(1+rvanilla)^0.5)/A7stdlife)) -> 0 | I116: =IF(A7stdlife="n/a","n/a",IF(I$3>(A7stdlife+$E116),(Input!$G$69*(1+rvanilla)^0.5)-SUM($G116:H116),(Input!$G$69*(1+rvanilla)^0.5)/A7stdlife)) -> 0 | J116: =IF(A7stdlife="n/a","n/a",IF(J$3>(A7stdlife+$E116),(Input!$G$69*(1+rvanilla)^0.5)-SUM($G116:I116),(Input!$G$69*(1+rvanilla)^0.5)/A7stdlife)) -> 0 | K116: =IF(A7stdlife="n/a","n/a",IF(K$3>(A7stdlife+$E116),(Input!$G$69*(1+rvanilla)^0.5)-SUM($G116:J116),(Input!$G$69*(1+rvanilla)^0.5)/A7stdlife)) -> 0 | L116: =IF(A7stdlife="n/a","n/a",IF(L$3>(A7stdlife+$E116),(Input!$G$69*(1+rvanilla)^0.5)-SUM($G116:K116),(Input!$G$69*(1+rvanilla)^0.5)/A7stdlife)) -> 0 | M116: =IF(A7stdlife="n/a","n/a",IF(M$3>(A7stdlife+$E116),(Input!$G$69*(1+rvanilla)^0.5)-SUM($G116:L116),(Input!$G$69*(1+rvanilla)^0.5)/A7stdlife)) -> 0 | N116: =IF(A7stdlife="n/a","n/a",IF(N$3>(A7stdlife+$E116),(Input!$G$69*(1+rvanilla)^0.5)-SUM($G116:M116),(Input!$G$69*(1+rvanilla)^0.5)/A7stdlife)) -> 0 | O116: =IF(A7stdlife="n/a","n/a",IF(O$3>(A7stdlife+$E116),(Input!$G$69*(1+rvanilla)^0.5)-SUM($G116:N116),(Input!$G$69*(1+rvanilla)^0.5)/A7stdlife)) -> 0 | P116: =IF(A7stdlife="n/a","n/a",IF(P$3>(A7stdlife+$E116),(Input!$G$69*(1+rvanilla)^0.5)-SUM($G116:O116),(Input!$G$69*(1+rvanilla)^0.5)/A7stdlife)) -> 0
E117: 2 | I117: =IF(A7stdlife="n/a","n/a",IF(I$3>(A7stdlife+$E117),(Input!$H$69*(1+rvanilla)^0.5)-SUM($H117:H117),(Input!$H$69*(1+rvanilla)^0.5)/A7stdlife)) -> 0 | J117: =IF(A7stdlife="n/a","n/a",IF(J$3>(A7stdlife+$E117),(Input!$H$69*(1+rvanilla)^0.5)-SUM($H117:I117),(Input!$H$69*(1+rvanilla)^0.5)/A7stdlife)) -> 0 | K117: =IF(A7stdlife="n/a","n/a",IF(K$3>(A7stdlife+$E117),(Input!$H$69*(1+rvanilla)^0.5)-SUM($H117:J117),(Input!$H$69*(1+rvanilla)^0.5)/A7stdlife)) -> 0 | L117: =IF(A7stdlife="n/a","n/a",IF(L$3>(A7stdlife+$E117),(Input!$H$69*(1+rvanilla)^0.5)-SUM($H117:K117),(Input!$H$69*(1+rvanilla)^0.5)/A7stdlife)) -> 0 | M117: =IF(A7stdlife="n/a","n/a",IF(M$3>(A7stdlife+$E117),(Input!$H$69*(1+rvanilla)^0.5)-SUM($H117:L117),(Input!$H$69*(1+rvanilla)^0.5)/A7stdlife)) -> 0 | N117: =IF(A7stdlife="n/a","n/a",IF(N$3>(A7stdlife+$E117),(Input!$H$69*(1+rvanilla)^0.5)-SUM($H117:M117),(Input!$H$69*(1+rvanilla)^0.5)/A7stdlife)) -> 0 | O117: =IF(A7stdlife="n/a","n/a",IF(O$3>(A7stdlife+$E117),(Input!$H$69*(1+rvanilla)^0.5)-SUM($H117:N117),(Input!$H$69*(1+rvanilla)^0.5)/A7stdlife)) -> 0 | P117: =IF(A7stdlife="n/a","n/a",IF(P$3>(A7stdlife+$E117),(Input!$H$69*(1+rvanilla)^0.5)-SUM($H117:O117),(Input!$H$69*(1+rvanilla)^0.5)/A7stdlife)) -> 0
E118: 3 | J118: =IF(A7stdlife="n/a","n/a",IF(J$3>(A7stdlife+$E118),(Input!$I$69*(1+rvanilla)^0.5)-SUM($I118:I118),(Input!$I$69*(1+rvanilla)^0.5)/A7stdlife)) -> 0 | K118: =IF(A7stdlife="n/a","n/a",IF(K$3>(A7stdlife+$E118),(Input!$I$69*(1+rvanilla)^0.5)-SUM($I118:J118),(Input!$I$69*(1+rvanilla)^0.5)/A7stdlife)) -> 0 | L118: =IF(A7stdlife="n/a","n/a",IF(L$3>(A7stdlife+$E118),(Input!$I$69*(1+rvanilla)^0.5)-SUM($I118:K118),(Input!$I$69*(1+rvanilla)^0.5)/A7stdlife)) -> 0 | M118: =IF(A7stdlife="n/a","n/a",IF(M$3>(A7stdlife+$E118),(Input!$I$69*(1+rvanilla)^0.5)-SUM($I118:L118),(Input!$I$69*(1+rvanilla)^0.5)/A7stdlife)) -> 0 | N118: =IF(A7stdlife="n/a","n/a",IF(N$3>(A7stdlife+$E118),(Input!$I$69*(1+rvanilla)^0.5)-SUM($I118:M118),(Input!$I$69*(1+rvanilla)^0.5)/A7stdlife)) -> 0 | O118: =IF(A7stdlife="n/a","n/a",IF(O$3>(A7stdlife+$E118),(Input!$I$69*(1+rvanilla)^0.5)-SUM($I118:N118),(Input!$I$69*(1+rvanilla)^0.5)/A7stdlife)) -> 0 | P118: =IF(A7stdlife="n/a","n/a",IF(P$3>(A7stdlife+$E118),(Input!$I$69*(1+rvanilla)^0.5)-SUM($I118:O118),(Input!$I$69*(1+rvanilla)^0.5)/A7stdlife)) -> 0
E119: 4 | K119: =IF(A7stdlife="n/a","n/a",IF(K$3>(A7stdlife+$E119),(Input!$J$69*(1+rvanilla)^0.5)-SUM($J119:J119),(Input!$J$69*(1+rvanilla)^0.5)/A7stdlife)) -> 0 | L119: =IF(A7stdlife="n/a","n/a",IF(L$3>(A7stdlife+$E119),(Input!$J$69*(1+rvanilla)^0.5)-SUM($J119:K119),(Input!$J$69*(1+rvanilla)^0.5)/A7stdlife)) -> 0 | M119: =IF(A7stdlife="n/a","n/a",IF(M$3>(A7stdlife+$E119),(Input!$J$69*(1+rvanilla)^0.5)-SUM($J119:L119),(Input!$J$69*(1+rvanilla)^0.5)/A7stdlife)) -> 0 | N119: =IF(A7stdlife="n/a","n/a",IF(N$3>(A7stdlife+$E119),(Input!$J$69*(1+rvanilla)^0.5)-SUM($J119:M119),(Input!$J$69*(1+rvanilla)^0.5)/A7stdlife)) -> 0 | O119: =IF(A7stdlife="n/a","n/a",IF(O$3>(A7stdlife+$E119),(Input!$J$69*(1+rvanilla)^0.5)-SUM($J119:N119),(Input!$J$69*(1+rvanilla)^0.5)/A7stdlife)) -> 0 | P119: =IF(A7stdlife="n/a","n/a",IF(P$3>(A7stdlife+$E119),(Input!$J$69*(1+rvanilla)^0.5)-SUM($J119:O119),(Input!$J$69*(1+rvanilla)^0.5)/A7stdlife)) -> 0
E120: 5 | L120: =IF(A7stdlife="n/a","n/a",IF(L$3>(A7stdlife+$E120),(Input!$K$69*(1+rvanilla)^0.5)-SUM($K120:K120),(Input!$K$69*(1+rvanilla)^0.5)/A7stdlife)) -> 0 | M120: =IF(A7stdlife="n/a","n/a",IF(M$3>(A7stdlife+$E120),(Input!$K$69*(1+rvanilla)^0.5)-SUM($K120:L120),(Input!$K$69*(1+rvanilla)^0.5)/A7stdlife)) -> 0 | N120: =IF(A7stdlife="n/a","n/a",IF(N$3>(A7stdlife+$E120),(Input!$K$69*(1+rvanilla)^0.5)-SUM($K120:M120),(Input!$K$69*(1+rvanilla)^0.5)/A7stdlife)) -> 0 | O120: =IF(A7stdlife="n/a","n/a",IF(O$3>(A7stdlife+$E120),(Input!$K$69*(1+rvanilla)^0.5)-SUM($K120:N120),(Input!$K$69*(1+rvanilla)^0.5)/A7stdlife)) -> 0 | P120: =IF(A7stdlife="n/a","n/a",IF(P$3>(A7stdlife+$E120),(Input!$K$69*(1+rvanilla)^0.5)-SUM($K120:O120),(Input!$K$69*(1+rvanilla)^0.5)/A7stdlife)) -> 0
E121: 6 | M121: =IF(A7stdlife="n/a","n/a",IF(M$3>(A7stdlife+$E121),(Input!$L$69*(1+rvanilla)^0.5)-SUM($L121:L121),(Input!$L$69*(1+rvanilla)^0.5)/A7stdlife)) -> 0 | N121: =IF(A7stdlife="n/a","n/a",IF(N$3>(A7stdlife+$E121),(Input!$L$69*(1+rvanilla)^0.5)-SUM($L121:M121),(Input!$L$69*(1+rvanilla)^0.5)/A7stdlife)) -> 0 | O121: =IF(A7stdlife="n/a","n/a",IF(O$3>(A7stdlife+$E121),(Input!$L$69*(1+rvanilla)^0.5)-SUM($L121:N121),(Input!$L$69*(1+rvanilla)^0.5)/A7stdlife)) -> 0 | P121: =IF(A7stdlife="n/a","n/a",IF(P$3>(A7stdlife+$E121),(Input!$L$69*(1+rvanilla)^0.5)-SUM($L121:O121),(Input!$L$69*(1+rvanilla)^0.5)/A7stdlife)) -> 0
E122: 7 | N122: =IF(A7stdlife="n/a","n/a",IF(N$3>(A7stdlife+$E122),(Input!$M$69*(1+rvanilla)^0.5)-SUM($M122:M122),(Input!$M$69*(1+rvanilla)^0.5)/A7stdlife)) -> 0 | O122: =IF(A7stdlife="n/a","n/a",IF(O$3>(A7stdlife+$E122),(Input!$M$69*(1+rvanilla)^0.5)-SUM($M122:N122),(Input!$M$69*(1+rvanilla)^0.5)/A7stdlife)) -> 0 | P122: =IF(A7stdlife="n/a","n/a",IF(P$3>(A7stdlife+$E122),(Input!$M$69*(1+rvanilla)^0.5)-SUM($M122:O122),(Input!$M$69*(1+rvanilla)^0.5)/A7stdlife)) -> 0
E123: 8 | O123: =IF(A7stdlife="n/a","n/a",IF(O$3>(A7stdlife+$E123),(Input!$N$69*(1+rvanilla)^0.5)-SUM($N123:N123),(Input!$N$69*(1+rvanilla)^0.5)/A7stdlife)) -> 0 | P123: =IF(A7stdlife="n/a","n/a",IF(P$3>(A7stdlife+$E123),(Input!$N$69*(1+rvanilla)^0.5)-SUM($N123:O123),(Input!$N$69*(1+rvanilla)^0.5)/A7stdlife)) -> 0
E124: 9 | P124: =IF(A7stdlife="n/a","n/a",IF(P$3>(A7stdlife+$E124),(Input!$O$69*(1+rvanilla)^0.5)-SUM($O124:O124),(Input!$O$69*(1+rvanilla)^0.5)/A7stdlife)) -> 0
E125: 10
C126: =Asset7 -> 0 | G126: =SUM(G114:G125) -> 0 | H126: 0 | I126: 0 | J126: 0 | K126: 0 | L126: 0 | M126: 0 | N126: 0 | O126: 0 | P126: 0
B127: =C139 -> 0 | D127: Initial Asset Base | G127: =IF(G$3>A8remlife,A8value-SUM($F127:F127),IF(A8remlife="N/A","n/a",A8value/A8remlife)) -> 0 | H127: =IF(H$3>A8remlife,A8value-SUM($F127:G127),IF(A8remlife="N/A","n/a",A8value/A8remlife)) -> 0 | I127: =IF(I$3>A8remlife,A8value-SUM($F127:H127),IF(A8remlife="N/A","n/a",A8value/A8remlife)) -> 0 | J127: =IF(J$3>A8remlife,A8value-SUM($F127:I127),IF(A8remlife="N/A","n/a",A8value/A8remlife)) -> 0 | K127: =IF(K$3>A8remlife,A8value-SUM($F127:J127),IF(A8remlife="N/A","n/a",A8value/A8remlife)) -> 0 | L127: =IF(L$3>A8remlife,A8value-SUM($F127:K127),IF(A8remlife="N/A","n/a",A8value/A8remlife)) -> 0 | M127: =IF(M$3>A8remlife,A8value-SUM($F127:L127),IF(A8remlife="N/A","n/a",A8value/A8remlife)) -> 0 | N127: =IF(N$3>A8remlife,A8value-SUM($F127:M127),IF(A8remlife="N/A","n/a",A8value/A8remlife)) -> 0 | O127: =IF(O$3>A8remlife,A8value-SUM($F127:N127),IF(A8remlife="N/A","n/a",A8value/A8remlife)) -> 0 | P127: =IF(P$3>A8remlife,A8value-SUM($F127:O127),IF(A8remlife="N/A","n/a",A8value/A8remlife)) -> 0
D128: Capex | E128: 0
E129: 1 | H129: =IF(A8stdlife="n/a","n/a",IF(H$3>(A8stdlife+$E129),(Input!$G$70*(1+rvanilla)^0.5)-SUM($G129:G129),(Input!$G$70*(1+rvanilla)^0.5)/A8stdlife)) -> 0 | I129: =IF(A8stdlife="n/a","n/a",IF(I$3>(A8stdlife+$E129),(Input!$G$70*(1+rvanilla)^0.5)-SUM($G129:H129),(Input!$G$70*(1+rvanilla)^0.5)/A8stdlife)) -> 0 | J129: =IF(A8stdlife="n/a","n/a",IF(J$3>(A8stdlife+$E129),(Input!$G$70*(1+rvanilla)^0.5)-SUM($G129:I129),(Input!$G$70*(1+rvanilla)^0.5)/A8stdlife)) -> 0 | K129: =IF(A8stdlife="n/a","n/a",IF(K$3>(A8stdlife+$E129),(Input!$G$70*(1+rvanilla)^0.5)-SUM($G129:J129),(Input!$G$70*(1+rvanilla)^0.5)/A8stdlife)) -> 0 | L129: =IF(A8stdlife="n/a","n/a",IF(L$3>(A8stdlife+$E129),(Input!$G$70*(1+rvanilla)^0.5)-SUM($G129:K129),(Input!$G$70*(1+rvanilla)^0.5)/A8stdlife)) -> 0 | M129: =IF(A8stdlife="n/a","n/a",IF(M$3>(A8stdlife+$E129),(Input!$G$70*(1+rvanilla)^0.5)-SUM($G129:L129),(Input!$G$70*(1+rvanilla)^0.5)/A8stdlife)) -> 0 | N129: =IF(A8stdlife="n/a","n/a",IF(N$3>(A8stdlife+$E129),(Input!$G$70*(1+rvanilla)^0.5)-SUM($G129:M129),(Input!$G$70*(1+rvanilla)^0.5)/A8stdlife)) -> 0 | O129: =IF(A8stdlife="n/a","n/a",IF(O$3>(A8stdlife+$E129),(Input!$G$70*(1+rvanilla)^0.5)-SUM($G129:N129),(Input!$G$70*(1+rvanilla)^0.5)/A8stdlife)) -> 0 | P129: =IF(A8stdlife="n/a","n/a",IF(P$3>(A8stdlife+$E129),(Input!$G$70*(1+rvanilla)^0.5)-SUM($G129:O129),(Input!$G$70*(1+rvanilla)^0.5)/A8stdlife)) -> 0
E130: 2 | I130: =IF(A8stdlife="n/a","n/a",IF(I$3>(A8stdlife+$E130),(Input!$H$70*(1+rvanilla)^0.5)-SUM($H130:H130),(Input!$H$70*(1+rvanilla)^0.5)/A8stdlife)) -> 0 | J130: =IF(A8stdlife="n/a","n/a",IF(J$3>(A8stdlife+$E130),(Input!$H$70*(1+rvanilla)^0.5)-SUM($H130:I130),(Input!$H$70*(1+rvanilla)^0.5)/A8stdlife)) -> 0 | K130: =IF(A8stdlife="n/a","n/a",IF(K$3>(A8stdlife+$E130),(Input!$H$70*(1+rvanilla)^0.5)-SUM($H130:J130),(Input!$H$70*(1+rvanilla)^0.5)/A8stdlife)) -> 0 | L130: =IF(A8stdlife="n/a","n/a",IF(L$3>(A8stdlife+$E130),(Input!$H$70*(1+rvanilla)^0.5)-SUM($H130:K130),(Input!$H$70*(1+rvanilla)^0.5)/A8stdlife)) -> 0 | M130: =IF(A8stdlife="n/a","n/a",IF(M$3>(A8stdlife+$E130),(Input!$H$70*(1+rvanilla)^0.5)-SUM($H130:L130),(Input!$H$70*(1+rvanilla)^0.5)/A8stdlife)) -> 0 | N130: =IF(A8stdlife="n/a","n/a",IF(N$3>(A8stdlife+$E130),(Input!$H$70*(1+rvanilla)^0.5)-SUM($H130:M130),(Input!$H$70*(1+rvanilla)^0.5)/A8stdlife)) -> 0 | O130: =IF(A8stdlife="n/a","n/a",IF(O$3>(A8stdlife+$E130),(Input!$H$70*(1+rvanilla)^0.5)-SUM($H130:N130),(Input!$H$70*(1+rvanilla)^0.5)/A8stdlife)) -> 0 | P130: =IF(A8stdlife="n/a","n/a",IF(P$3>(A8stdlife+$E130),(Input!$H$70*(1+rvanilla)^0.5)-SUM($H130:O130),(Input!$H$70*(1+rvanilla)^0.5)/A8stdlife)) -> 0
E131: 3 | J131: =IF(A8stdlife="n/a","n/a",IF(J$3>(A8stdlife+$E131),(Input!$I$70*(1+rvanilla)^0.5)-SUM($I131:I131),(Input!$I$70*(1+rvanilla)^0.5)/A8stdlife)) -> 0 | K131: =IF(A8stdlife="n/a","n/a",IF(K$3>(A8stdlife+$E131),(Input!$I$70*(1+rvanilla)^0.5)-SUM($I131:J131),(Input!$I$70*(1+rvanilla)^0.5)/A8stdlife)) -> 0 | L131: =IF(A8stdlife="n/a","n/a",IF(L$3>(A8stdlife+$E131),(Input!$I$70*(1+rvanilla)^0.5)-SUM($I131:K131),(Input!$I$70*(1+rvanilla)^0.5)/A8stdlife)) -> 0 | M131: =IF(A8stdlife="n/a","n/a",IF(M$3>(A8stdlife+$E131),(Input!$I$70*(1+rvanilla)^0.5)-SUM($I131:L131),(Input!$I$70*(1+rvanilla)^0.5)/A8stdlife)) -> 0 | N131: =IF(A8stdlife="n/a","n/a",IF(N$3>(A8stdlife+$E131),(Input!$I$70*(1+rvanilla)^0.5)-SUM($I131:M131),(Input!$I$70*(1+rvanilla)^0.5)/A8stdlife)) -> 0 | O131: =IF(A8stdlife="n/a","n/a",IF(O$3>(A8stdlife+$E131),(Input!$I$70*(1+rvanilla)^0.5)-SUM($I131:N131),(Input!$I$70*(1+rvanilla)^0.5)/A8stdlife)) -> 0 | P131: =IF(A8stdlife="n/a","n/a",IF(P$3>(A8stdlife+$E131),(Input!$I$70*(1+rvanilla)^0.5)-SUM($I131:O131),(Input!$I$70*(1+rvanilla)^0.5)/A8stdlife)) -> 0
E132: 4 | K132: =IF(A8stdlife="n/a","n/a",IF(K$3>(A8stdlife+$E132),(Input!$J$70*(1+rvanilla)^0.5)-SUM($J132:J132),(Input!$J$70*(1+rvanilla)^0.5)/A8stdlife)) -> 0 | L132: =IF(A8stdlife="n/a","n/a",IF(L$3>(A8stdlife+$E132),(Input!$J$70*(1+rvanilla)^0.5)-SUM($J132:K132),(Input!$J$70*(1+rvanilla)^0.5)/A8stdlife)) -> 0 | M132: =IF(A8stdlife="n/a","n/a",IF(M$3>(A8stdlife+$E132),(Input!$J$70*(1+rvanilla)^0.5)-SUM($J132:L132),(Input!$J$70*(1+rvanilla)^0.5)/A8stdlife)) -> 0 | N132: =IF(A8stdlife="n/a","n/a",IF(N$3>(A8stdlife+$E132),(Input!$J$70*(1+rvanilla)^0.5)-SUM($J132:M132),(Input!$J$70*(1+rvanilla)^0.5)/A8stdlife)) -> 0 | O132: =IF(A8stdlife="n/a","n/a",IF(O$3>(A8stdlife+$E132),(Input!$J$70*(1+rvanilla)^0.5)-SUM($J132:N132),(Input!$J$70*(1+rvanilla)^0.5)/A8stdlife)) -> 0 | P132: =IF(A8stdlife="n/a","n/a",IF(P$3>(A8stdlife+$E132),(Input!$J$70*(1+rvanilla)^0.5)-SUM($J132:O132),(Input!$J$70*(1+rvanilla)^0.5)/A8stdlife)) -> 0
E133: 5 | L133: =IF(A8stdlife="n/a","n/a",IF(L$3>(A8stdlife+$E133),(Input!$K$70*(1+rvanilla)^0.5)-SUM($K133:K133),(Input!$K$70*(1+rvanilla)^0.5)/A8stdlife)) -> 0 | M133: =IF(A8stdlife="n/a","n/a",IF(M$3>(A8stdlife+$E133),(Input!$K$70*(1+rvanilla)^0.5)-SUM($K133:L133),(Input!$K$70*(1+rvanilla)^0.5)/A8stdlife)) -> 0 | N133: =IF(A8stdlife="n/a","n/a",IF(N$3>(A8stdlife+$E133),(Input!$K$70*(1+rvanilla)^0.5)-SUM($K133:M133),(Input!$K$70*(1+rvanilla)^0.5)/A8stdlife)) -> 0 | O133: =IF(A8stdlife="n/a","n/a",IF(O$3>(A8stdlife+$E133),(Input!$K$70*(1+rvanilla)^0.5)-SUM($K133:N133),(Input!$K$70*(1+rvanilla)^0.5)/A8stdlife)) -> 0 | P133: =IF(A8stdlife="n/a","n/a",IF(P$3>(A8stdlife+$E133),(Input!$K$70*(1+rvanilla)^0.5)-SUM($K133:O133),(Input!$K$70*(1+rvanilla)^0.5)/A8stdlife)) -> 0
E134: 6 | M134: =IF(A8stdlife="n/a","n/a",IF(M$3>(A8stdlife+$E134),(Input!$L$70*(1+rvanilla)^0.5)-SUM($L134:L134),(Input!$L$70*(1+rvanilla)^0.5)/A8stdlife)) -> 0 | N134: =IF(A8stdlife="n/a","n/a",IF(N$3>(A8stdlife+$E134),(Input!$L$70*(1+rvanilla)^0.5)-SUM($L134:M134),(Input!$L$70*(1+rvanilla)^0.5)/A8stdlife)) -> 0 | O134: =IF(A8stdlife="n/a","n/a",IF(O$3>(A8stdlife+$E134),(Input!$L$70*(1+rvanilla)^0.5)-SUM($L134:N134),(Input!$L$70*(1+rvanilla)^0.5)/A8stdlife)) -> 0 | P134: =IF(A8stdlife="n/a","n/a",IF(P$3>(A8stdlife+$E134),(Input!$L$70*(1+rvanilla)^0.5)-SUM($L134:O134),(Input!$L$70*(1+rvanilla)^0.5)/A8stdlife)) -> 0
E135: 7 | N135: =IF(A8stdlife="n/a","n/a",IF(N$3>(A8stdlife+$E135),(Input!$M$70*(1+rvanilla)^0.5)-SUM($M135:M135),(Input!$M$70*(1+rvanilla)^0.5)/A8stdlife)) -> 0 | O135: =IF(A8stdlife="n/a","n/a",IF(O$3>(A8stdlife+$E135),(Input!$M$70*(1+rvanilla)^0.5)-SUM($M135:N135),(Input!$M$70*(1+rvanilla)^0.5)/A8stdlife)) -> 0 | P135: =IF(A8stdlife="n/a","n/a",IF(P$3>(A8stdlife+$E135),(Input!$M$70*(1+rvanilla)^0.5)-SUM($M135:O135),(Input!$M$70*(1+rvanilla)^0.5)/A8stdlife)) -> 0
E136: 8 | O136: =IF(A8stdlife="n/a","n/a",IF(O$3>(A8stdlife+$E136),(Input!$N$70*(1+rvanilla)^0.5)-SUM($N136:N136),(Input!$N$70*(1+rvanilla)^0.5)/A8stdlife)) -> 0 | P136: =IF(A8stdlife="n/a","n/a",IF(P$3>(A8stdlife+$E136),(Input!$N$70*(1+rvanilla)^0.5)-SUM($N136:O136),(Input!$N$70*(1+rvanilla)^0.5)/A8stdlife)) -> 0
E137: 9 | P137: =IF(A8stdlife="n/a","n/a",IF(P$3>(A8stdlife+$E137),(Input!$O$70*(1+rvanilla)^0.5)-SUM($O137:O137),(Input!$O$70*(1+rvanilla)^0.5)/A8stdlife)) -> 0
E138: 10
C139: =Asset8 -> 0 | G139: =SUM(G127:G138) -> 0 | H139: 0 | I139: 0 | J139: 0 | K139: 0 | L139: 0 | M139: 0 | N139: 0 | O139: 0 | P139: 0
B140: =C152 -> 0 | D140: Initial Asset Base | G140: =IF(G$3>A9remlife,A9value-SUM($F140:F140),IF(A9remlife="N/A","n/a",A9value/A9remlife)) -> 0 | H140: =IF(H$3>A9remlife,A9value-SUM($F140:G140),IF(A9remlife="N/A","n/a",A9value/A9remlife)) -> 0 | I140: =IF(I$3>A9remlife,A9value-SUM($F140:H140),IF(A9remlife="N/A","n/a",A9value/A9remlife)) -> 0 | J140: =IF(J$3>A9remlife,A9value-SUM($F140:I140),IF(A9remlife="N/A","n/a",A9value/A9remlife)) -> 0 | K140: =IF(K$3>A9remlife,A9value-SUM($F140:J140),IF(A9remlife="N/A","n/a",A9value/A9remlife)) -> 0 | L140: =IF(L$3>A9remlife,A9value-SUM($F140:K140),IF(A9remlife="N/A","n/a",A9value/A9remlife)) -> 0 | M140: =IF(M$3>A9remlife,A9value-SUM($F140:L140),IF(A9remlife="N/A","n/a",A9value/A9remlife)) -> 0 | N140: =IF(N$3>A9remlife,A9value-SUM($F140:M140),IF(A9remlife="N/A","n/a",A9value/A9remlife)) -> 0 | O140: =IF(O$3>A9remlife,A9value-SUM($F140:N140),IF(A9remlife="N/A","n/a",A9value/A9remlife)) -> 0 | P140: =IF(P$3>A9remlife,A9value-SUM($F140:O140),IF(A9remlife="N/A","n/a",A9value/A9remlife)) -> 0
D141: Capex | E141: 0
E142: 1 | H142: =IF(A9stdlife="n/a","n/a",IF(H$3>(A9stdlife+$E142),(Input!$G$71*(1+rvanilla)^0.5)-SUM($G142:G142),(Input!$G$71*(1+rvanilla)^0.5)/A9stdlife)) -> 0 | I142: =IF(A9stdlife="n/a","n/a",IF(I$3>(A9stdlife+$E142),(Input!$G$71*(1+rvanilla)^0.5)-SUM($G142:H142),(Input!$G$71*(1+rvanilla)^0.5)/A9stdlife)) -> 0 | J142: =IF(A9stdlife="n/a","n/a",IF(J$3>(A9stdlife+$E142),(Input!$G$71*(1+rvanilla)^0.5)-SUM($G142:I142),(Input!$G$71*(1+rvanilla)^0.5)/A9stdlife)) -> 0 | K142: =IF(A9stdlife="n/a","n/a",IF(K$3>(A9stdlife+$E142),(Input!$G$71*(1+rvanilla)^0.5)-SUM($G142:J142),(Input!$G$71*(1+rvanilla)^0.5)/A9stdlife)) -> 0 | L142: =IF(A9stdlife="n/a","n/a",IF(L$3>(A9stdlife+$E142),(Input!$G$71*(1+rvanilla)^0.5)-SUM($G142:K142),(Input!$G$71*(1+rvanilla)^0.5)/A9stdlife)) -> 0 | M142: =IF(A9stdlife="n/a","n/a",IF(M$3>(A9stdlife+$E142),(Input!$G$71*(1+rvanilla)^0.5)-SUM($G142:L142),(Input!$G$71*(1+rvanilla)^0.5)/A9stdlife)) -> 0 | N142: =IF(A9stdlife="n/a","n/a",IF(N$3>(A9stdlife+$E142),(Input!$G$71*(1+rvanilla)^0.5)-SUM($G142:M142),(Input!$G$71*(1+rvanilla)^0.5)/A9stdlife)) -> 0 | O142: =IF(A9stdlife="n/a","n/a",IF(O$3>(A9stdlife+$E142),(Input!$G$71*(1+rvanilla)^0.5)-SUM($G142:N142),(Input!$G$71*(1+rvanilla)^0.5)/A9stdlife)) -> 0 | P142: =IF(A9stdlife="n/a","n/a",IF(P$3>(A9stdlife+$E142),(Input!$G$71*(1+rvanilla)^0.5)-SUM($G142:O142),(Input!$G$71*(1+rvanilla)^0.5)/A9stdlife)) -> 0
E143: 2 | I143: =IF(A9stdlife="n/a","n/a",IF(I$3>(A9stdlife+$E143),(Input!$H$71*(1+rvanilla)^0.5)-SUM($H143:H143),(Input!$H$71*(1+rvanilla)^0.5)/A9stdlife)) -> 0 | J143: =IF(A9stdlife="n/a","n/a",IF(J$3>(A9stdlife+$E143),(Input!$H$71*(1+rvanilla)^0.5)-SUM($H143:I143),(Input!$H$71*(1+rvanilla)^0.5)/A9stdlife)) -> 0 | K143: =IF(A9stdlife="n/a","n/a",IF(K$3>(A9stdlife+$E143),(Input!$H$71*(1+rvanilla)^0.5)-SUM($H143:J143),(Input!$H$71*(1+rvanilla)^0.5)/A9stdlife)) -> 0 | L143: =IF(A9stdlife="n/a","n/a",IF(L$3>(A9stdlife+$E143),(Input!$H$71*(1+rvanilla)^0.5)-SUM($H143:K143),(Input!$H$71*(1+rvanilla)^0.5)/A9stdlife)) -> 0 | M143: =IF(A9stdlife="n/a","n/a",IF(M$3>(A9stdlife+$E143),(Input!$H$71*(1+rvanilla)^0.5)-SUM($H143:L143),(Input!$H$71*(1+rvanilla)^0.5)/A9stdlife)) -> 0 | N143: =IF(A9stdlife="n/a","n/a",IF(N$3>(A9stdlife+$E143),(Input!$H$71*(1+rvanilla)^0.5)-SUM($H143:M143),(Input!$H$71*(1+rvanilla)^0.5)/A9stdlife)) -> 0 | O143: =IF(A9stdlife="n/a","n/a",IF(O$3>(A9stdlife+$E143),(Input!$H$71*(1+rvanilla)^0.5)-SUM($H143:N143),(Input!$H$71*(1+rvanilla)^0.5)/A9stdlife)) -> 0 | P143: =IF(A9stdlife="n/a","n/a",IF(P$3>(A9stdlife+$E143),(Input!$H$71*(1+rvanilla)^0.5)-SUM($H143:O143),(Input!$H$71*(1+rvanilla)^0.5)/A9stdlife)) -> 0
E144: 3 | J144: =IF(A9stdlife="n/a","n/a",IF(J$3>(A9stdlife+$E144),(Input!$I$71*(1+rvanilla)^0.5)-SUM($I144:I144),(Input!$I$71*(1+rvanilla)^0.5)/A9stdlife)) -> 0 | K144: =IF(A9stdlife="n/a","n/a",IF(K$3>(A9stdlife+$E144),(Input!$I$71*(1+rvanilla)^0.5)-SUM($I144:J144),(Input!$I$71*(1+rvanilla)^0.5)/A9stdlife)) -> 0 | L144: =IF(A9stdlife="n/a","n/a",IF(L$3>(A9stdlife+$E144),(Input!$I$71*(1+rvanilla)^0.5)-SUM($I144:K144),(Input!$I$71*(1+rvanilla)^0.5)/A9stdlife)) -> 0 | M144: =IF(A9stdlife="n/a","n/a",IF(M$3>(A9stdlife+$E144),(Input!$I$71*(1+rvanilla)^0.5)-SUM($I144:L144),(Input!$I$71*(1+rvanilla)^0.5)/A9stdlife)) -> 0 | N144: =IF(A9stdlife="n/a","n/a",IF(N$3>(A9stdlife+$E144),(Input!$I$71*(1+rvanilla)^0.5)-SUM($I144:M144),(Input!$I$71*(1+rvanilla)^0.5)/A9stdlife)) -> 0 | O144: =IF(A9stdlife="n/a","n/a",IF(O$3>(A9stdlife+$E144),(Input!$I$71*(1+rvanilla)^0.5)-SUM($I144:N144),(Input!$I$71*(1+rvanilla)^0.5)/A9stdlife)) -> 0 | P144: =IF(A9stdlife="n/a","n/a",IF(P$3>(A9stdlife+$E144),(Input!$I$71*(1+rvanilla)^0.5)-SUM($I144:O144),(Input!$I$71*(1+rvanilla)^0.5)/A9stdlife)) -> 0
E145: 4 | K145: =IF(A9stdlife="n/a","n/a",IF(K$3>(A9stdlife+$E145),(Input!$J$71*(1+rvanilla)^0.5)-SUM($J145:J145),(Input!$J$71*(1+rvanilla)^0.5)/A9stdlife)) -> 0 | L145: =IF(A9stdlife="n/a","n/a",IF(L$3>(A9stdlife+$E145),(Input!$J$71*(1+rvanilla)^0.5)-SUM($J145:K145),(Input!$J$71*(1+rvanilla)^0.5)/A9stdlife)) -> 0 | M145: =IF(A9stdlife="n/a","n/a",IF(M$3>(A9stdlife+$E145),(Input!$J$71*(1+rvanilla)^0.5)-SUM($J145:L145),(Input!$J$71*(1+rvanilla)^0.5)/A9stdlife)) -> 0 | N145: =IF(A9stdlife="n/a","n/a",IF(N$3>(A9stdlife+$E145),(Input!$J$71*(1+rvanilla)^0.5)-SUM($J145:M145),(Input!$J$71*(1+rvanilla)^0.5)/A9stdlife)) -> 0 | O145: =IF(A9stdlife="n/a","n/a",IF(O$3>(A9stdlife+$E145),(Input!$J$71*(1+rvanilla)^0.5)-SUM($J145:N145),(Input!$J$71*(1+rvanilla)^0.5)/A9stdlife)) -> 0 | P145: =IF(A9stdlife="n/a","n/a",IF(P$3>(A9stdlife+$E145),(Input!$J$71*(1+rvanilla)^0.5)-SUM($J145:O145),(Input!$J$71*(1+rvanilla)^0.5)/A9stdlife)) -> 0
E146: 5 | L146: =IF(A9stdlife="n/a","n/a",IF(L$3>(A9stdlife+$E146),(Input!$K$71*(1+rvanilla)^0.5)-SUM($K146:K146),(Input!$K$71*(1+rvanilla)^0.5)/A9stdlife)) -> 0 | M146: =IF(A9stdlife="n/a","n/a",IF(M$3>(A9stdlife+$E146),(Input!$K$71*(1+rvanilla)^0.5)-SUM($K146:L146),(Input!$K$71*(1+rvanilla)^0.5)/A9stdlife)) -> 0 | N146: =IF(A9stdlife="n/a","n/a",IF(N$3>(A9stdlife+$E146),(Input!$K$71*(1+rvanilla)^0.5)-SUM($K146:M146),(Input!$K$71*(1+rvanilla)^0.5)/A9stdlife)) -> 0 | O146: =IF(A9stdlife="n/a","n/a",IF(O$3>(A9stdlife+$E146),(Input!$K$71*(1+rvanilla)^0.5)-SUM($K146:N146),(Input!$K$71*(1+rvanilla)^0.5)/A9stdlife)) -> 0 | P146: =IF(A9stdlife="n/a","n/a",IF(P$3>(A9stdlife+$E146),(Input!$K$71*(1+rvanilla)^0.5)-SUM($K146:O146),(Input!$K$71*(1+rvanilla)^0.5)/A9stdlife)) -> 0
E147: 6 | M147: =IF(A9stdlife="n/a","n/a",IF(M$3>(A9stdlife+$E147),(Input!$L$71*(1+rvanilla)^0.5)-SUM($L147:L147),(Input!$L$71*(1+rvanilla)^0.5)/A9stdlife)) -> 0 | N147: =IF(A9stdlife="n/a","n/a",IF(N$3>(A9stdlife+$E147),(Input!$L$71*(1+rvanilla)^0.5)-SUM($L147:M147),(Input!$L$71*(1+rvanilla)^0.5)/A9stdlife)) -> 0 | O147: =IF(A9stdlife="n/a","n/a",IF(O$3>(A9stdlife+$E147),(Input!$L$71*(1+rvanilla)^0.5)-SUM($L147:N147),(Input!$L$71*(1+rvanilla)^0.5)/A9stdlife)) -> 0 | P147: =IF(A9stdlife="n/a","n/a",IF(P$3>(A9stdlife+$E147),(Input!$L$71*(1+rvanilla)^0.5)-SUM($L147:O147),(Input!$L$71*(1+rvanilla)^0.5)/A9stdlife)) -> 0
E148: 7 | N148: =IF(A9stdlife="n/a","n/a",IF(N$3>(A9stdlife+$E148),(Input!$M$71*(1+rvanilla)^0.5)-SUM($M148:M148),(Input!$M$71*(1+rvanilla)^0.5)/A9stdlife)) -> 0 | O148: =IF(A9stdlife="n/a","n/a",IF(O$3>(A9stdlife+$E148),(Input!$M$71*(1+rvanilla)^0.5)-SUM($M148:N148),(Input!$M$71*(1+rvanilla)^0.5)/A9stdlife)) -> 0 | P148: =IF(A9stdlife="n/a","n/a",IF(P$3>(A9stdlife+$E148),(Input!$M$71*(1+rvanilla)^0.5)-SUM($M148:O148),(Input!$M$71*(1+rvanilla)^0.5)/A9stdlife)) -> 0
E149: 8 | O149: =IF(A9stdlife="n/a","n/a",IF(O$3>(A9stdlife+$E149),(Input!$N$71*(1+rvanilla)^0.5)-SUM($N149:N149),(Input!$N$71*(1+rvanilla)^0.5)/A9stdlife)) -> 0 | P149: =IF(A9stdlife="n/a","n/a",IF(P$3>(A9stdlife+$E149),(Input!$N$71*(1+rvanilla)^0.5)-SUM($N149:O149),(Input!$N$71*(1+rvanilla)^0.5)/A9stdlife)) -> 0
E150: 9 | P150: =IF(A9stdlife="n/a","n/a",IF(P$3>(A9stdlife+$E150),(Input!$O$71*(1+rvanilla)^0.5)-SUM($O150:O150),(Input!$O$71*(1+rvanilla)^0.5)/A9stdlife)) -> 0
E151: 10
C152: =Asset9 -> 0 | G152: =SUM(G140:G151) -> 0 | H152: =SUM(H140:H151) -> 0 | I152: 0 | J152: 0 | K152: 0 | L152: 0 | M152: 0 | N152: 0 | O152: 0 | P152: 0
B153: Real Residual RAB (end period) | F153: =F9 -> 95.10598623 | G153: =F153-G35+G10 -> 99.63281157 | H153: 101.9818069 | I153: 104.0749395 | J153: 108.4849187 | K153: 112.0682044 | L153: 104.1099156 | M153: 96.15162676 | N153: 88.19333793 | O153: 80.23504911 | P153: 72.27676029
B154: Real Residual RAB (start period) | F154: 0 | G154: =F153 -> 95.10598623 | H154: =G153 -> 99.63281157 | I154: =H153 -> 101.9818069 | J154: 104.0749395 | K154: 108.4849187 | L154: 112.0682044 | M154: 104.1099156 | N154: 96.15162676 | O154: 88.19333793 | P154: =O153 -> 80.23504911
B156: Nominal Asset Values
B158: Inflation on Opening RAB | G158: =F161*G6 -> 2.329990754 | H158: 2.551842613 | I158: 2.677306346 | J158: 2.800563326 | K158: 2.99221271 | L158: 3.168322449 | M158: 3.016913932 | N158: 2.855954789 | O158: 2.685062116 | P158: 2.503839839
B159: Nominal Straight-line Depreciation | G159: =G35*G7 -> 4.94598868 | H159: 5.72452567 | I159: 6.427373025 | J159: 7.18121432 | K159: 8.183930811 | L159: 9.224663104 | M159: 9.455279682 | N159: 9.691661674 | O159: 9.933953216 | P159: 10.18230205
B160: Nominal Regulatory Depreciation | G160: =G159-G158 -> 2.615997926 | H160: =H159-H158 -> 3.172683057 | I160: =I159-I158 -> 3.750066679 | J160: 4.380650994 | K160: 5.191718101 | L160: 6.056340656 | M160: 6.43836575 | N160: 6.835706885 | O160: 7.248891099 | P160: 7.678462207
B161: Nominal Residual RAB (end period) | F161: =F$7*F153 -> 95.10598623 | G161: =G$7*G153 -> 102.0737045 | H161: =H$7*H153 -> 107.0922538 | I161: =I$7*I153 -> 112.022533 | J161: 119.6885084 | K161: 126.7328979 | L161: 120.6765573 | M161: 114.2381915 | N161: 107.4024847 | O161: 100.1535936 | P161: 92.47513135
B162: Inflated Nominal Residual RAB (start period) | F162: =F$7*F154 -> 0 | G162: =G$7*G154 -> 97.43597699 | H162: 104.6255471 | I162: =I$7*I154 -> 109.7695602 | J162: 114.8230964 | K162: 122.6807211 | L162: 129.9012204 | M162: 123.6934712 | N162: 117.0941463 | O162: 110.0875468 | P162: 102.6574334
B164: Nominal Tax Values
B166: Tax Depreciation | G166: =G179+G192+G205+G218+G231+G244+G257+G270+G283+G296 -> 6.219272642 | H166: =H179+H192+H205+H218+H231+H244+H257+H270+H283+H296 -> 6.591275503 | I166: 7.044338449 | J166: 7.670463898 | K166: 8.286187185 | L166: 8.908971758 | M166: 8.908971758 | N166: 8.908971758 | O166: 8.908971758 | P166: 8.908971758
B167: =C179 -> Metering Capex | D167: Initial Asset Base | G167: =IF(G$3>A1taxremlife,A1taxvalue-SUM($F167:F167),IF(A1taxremlife="N/A","n/a",A1taxvalue/A1taxremlife)) -> 6.204282969 | H167: =IF(H$3>A1taxremlife,A1taxvalue-SUM($F167:G167),IF(A1taxremlife="N/A","n/a",A1taxvalue/A1taxremlife)) -> 6.204282969 | I167: =IF(I$3>A1taxremlife,A1taxvalue-SUM($F167:H167),IF(A1taxremlife="N/A","n/a",A1taxvalue/A1taxremlife)) -> 6.204282969 | J167: =IF(J$3>A1taxremlife,A1taxvalue-SUM($F167:I167),IF(A1taxremlife="N/A","n/a",A1taxvalue/A1taxremlife)) -> 6.204282969 | K167: =IF(K$3>A1taxremlife,A1taxvalue-SUM($F167:J167),IF(A1taxremlife="N/A","n/a",A1taxvalue/A1taxremlife)) -> 6.204282969 | L167: =IF(L$3>A1taxremlife,A1taxvalue-SUM($F167:K167),IF(A1taxremlife="N/A","n/a",A1taxvalue/A1taxremlife)) -> 6.204282969 | M167: =IF(M$3>A1taxremlife,A1taxvalue-SUM($F167:L167),IF(A1taxremlife="N/A","n/a",A1taxvalue/A1taxremlife)) -> 6.204282969 | N167: =IF(N$3>A1taxremlife,A1taxvalue-SUM($F167:M167),IF(A1taxremlife="N/A","n/a",A1taxvalue/A1taxremlife)) -> 6.204282969 | O167: =IF(O$3>A1taxremlife,A1taxvalue-SUM($F167:N167),IF(A1taxremlife="N/A","n/a",A1taxvalue/A1taxremlife)) -> 6.204282969 | P167: =IF(P$3>A1taxremlife,A1taxvalue-SUM($F167:O167),IF(A1taxremlife="N/A","n/a",A1taxvalue/A1taxremlife)) -> 6.204282969
D168: Capex | E168: 0
E169: 1 | H169: =IF(A1taxstdlife="n/a","n/a",IF(H$3>(A1taxstdlife+$E169),((Input!$G$63+Input!$G$49)*$G$7)-SUM($G169:G169),((Input!$G$63+Input!$G$49)*$G$7)/A1taxstdlife)) -> 0.3688836862 | I169: =IF(A1taxstdlife="n/a","n/a",IF(I$3>(A1taxstdlife+$E169),((Input!$G$63+Input!$G$49)*$G$7)-SUM($G169:H169),((Input!$G$63+Input!$G$49)*$G$7)/A1taxstdlife)) -> 0.3688836862 | J169: =IF(A1taxstdlife="n/a","n/a",IF(J$3>(A1taxstdlife+$E169),((Input!$G$63+Input!$G$49)*$G$7)-SUM($G169:I169),((Input!$G$63+Input!$G$49)*$G$7)/A1taxstdlife)) -> 0.3688836862 | K169: =IF(A1taxstdlife="n/a","n/a",IF(K$3>(A1taxstdlife+$E169),((Input!$G$63+Input!$G$49)*$G$7)-SUM($G169:J169),((Input!$G$63+Input!$G$49)*$G$7)/A1taxstdlife)) -> 0.3688836862 | L169: =IF(A1taxstdlife="n/a","n/a",IF(L$3>(A1taxstdlife+$E169),((Input!$G$63+Input!$G$49)*$G$7)-SUM($G169:K169),((Input!$G$63+Input!$G$49)*$G$7)/A1taxstdlife)) -> 0.3688836862 | M169: =IF(A1taxstdlife="n/a","n/a",IF(M$3>(A1taxstdlife+$E169),((Input!$G$63+Input!$G$49)*$G$7)-SUM($G169:L169),((Input!$G$63+Input!$G$49)*$G$7)/A1taxstdlife)) -> 0.3688836862 | N169: =IF(A1taxstdlife="n/a","n/a",IF(N$3>(A1taxstdlife+$E169),((Input!$G$63+Input!$G$49)*$G$7)-SUM($G169:M169),((Input!$G$63+Input!$G$49)*$G$7)/A1taxstdlife)) -> 0.3688836862 | O169: =IF(A1taxstdlife="n/a","n/a",IF(O$3>(A1taxstdlife+$E169),((Input!$G$63+Input!$G$49)*$G$7)-SUM($G169:N169),((Input!$G$63+Input!$G$49)*$G$7)/A1taxstdlife)) -> 0.3688836862 | P169: =IF(A1taxstdlife="n/a","n/a",IF(P$3>(A1taxstdlife+$E169),((Input!$G$63+Input!$G$49)*$G$7)-SUM($G169:O169),((Input!$G$63+Input!$G$49)*$G$7)/A1taxstdlife)) -> 0.3688836862
E170: 2 | I170: =IF(A1taxstdlife="n/a","n/a",IF(I$3>(A1taxstdlife+$E170),((Input!$H$63+Input!$H$49)*$H$7)-SUM($H170:H170),((Input!$H$63+Input!$H$49)*$H$7)/A1taxstdlife)) -> 0.4530629462 | J170: =IF(A1taxstdlife="n/a","n/a",IF(J$3>(A1taxstdlife+$E170),((Input!$H$63+Input!$H$49)*$H$7)-SUM($H170:I170),((Input!$H$63+Input!$H$49)*$H$7)/A1taxstdlife)) -> 0.4530629462 | K170: =IF(A1taxstdlife="n/a","n/a",IF(K$3>(A1taxstdlife+$E170),((Input!$H$63+Input!$H$49)*$H$7)-SUM($H170:J170),((Input!$H$63+Input!$H$49)*$H$7)/A1taxstdlife)) -> 0.4530629462 | L170: =IF(A1taxstdlife="n/a","n/a",IF(L$3>(A1taxstdlife+$E170),((Input!$H$63+Input!$H$49)*$H$7)-SUM($H170:K170),((Input!$H$63+Input!$H$49)*$H$7)/A1taxstdlife)) -> 0.4530629462 | M170: =IF(A1taxstdlife="n/a","n/a",IF(M$3>(A1taxstdlife+$E170),((Input!$H$63+Input!$H$49)*$H$7)-SUM($H170:L170),((Input!$H$63+Input!$H$49)*$H$7)/A1taxstdlife)) -> 0.4530629462 | N170: =IF(A1taxstdlife="n/a","n/a",IF(N$3>(A1taxstdlife+$E170),((Input!$H$63+Input!$H$49)*$H$7)-SUM($H170:M170),((Input!$H$63+Input!$H$49)*$H$7)/A1taxstdlife)) -> 0.4530629462 | O170: =IF(A1taxstdlife="n/a","n/a",IF(O$3>(A1taxstdlife+$E170),((Input!$H$63+Input!$H$49)*$H$7)-SUM($H170:N170),((Input!$H$63+Input!$H$49)*$H$7)/A1taxstdlife)) -> 0.4530629462 | P170: =IF(A1taxstdlife="n/a","n/a",IF(P$3>(A1taxstdlife+$E170),((Input!$H$63+Input!$H$49)*$H$7)-SUM($H170:O170),((Input!$H$63+Input!$H$49)*$H$7)/A1taxstdlife)) -> 0.4530629462
E171: 3 | J171: =IF(A1taxstdlife="n/a","n/a",IF(J$3>(A1taxstdlife+$E171),((Input!$I$63+Input!$I$49)*$I$7)-SUM($I171:I171),((Input!$I$63+Input!$I$49)*$I$7)/A1taxstdlife)) -> 0.6261254482 | K171: =IF(A1taxstdlife="n/a","n/a",IF(K$3>(A1taxstdlife+$E171),((Input!$I$63+Input!$I$49)*$I$7)-SUM($I171:J171),((Input!$I$63+Input!$I$49)*$I$7)/A1taxstdlife)) -> 0.6261254482 | L171: =IF(A1taxstdlife="n/a","n/a",IF(L$3>(A1taxstdlife+$E171),((Input!$I$63+Input!$I$49)*$I$7)-SUM($I171:K171),((Input!$I$63+Input!$I$49)*$I$7)/A1taxstdlife)) -> 0.6261254482 | M171: =IF(A1taxstdlife="n/a","n/a",IF(M$3>(A1taxstdlife+$E171),((Input!$I$63+Input!$I$49)*$I$7)-SUM($I171:L171),((Input!$I$63+Input!$I$49)*$I$7)/A1taxstdlife)) -> 0.6261254482 | N171: =IF(A1taxstdlife="n/a","n/a",IF(N$3>(A1taxstdlife+$E171),((Input!$I$63+Input!$I$49)*$I$7)-SUM($I171:M171),((Input!$I$63+Input!$I$49)*$I$7)/A1taxstdlife)) -> 0.6261254482 | O171: =IF(A1taxstdlife="n/a","n/a",IF(O$3>(A1taxstdlife+$E171),((Input!$I$63+Input!$I$49)*$I$7)-SUM($I171:N171),((Input!$I$63+Input!$I$49)*$I$7)/A1taxstdlife)) -> 0.6261254482 | P171: =IF(A1taxstdlife="n/a","n/a",IF(P$3>(A1taxstdlife+$E171),((Input!$I$63+Input!$I$49)*$I$7)-SUM($I171:O171),((Input!$I$63+Input!$I$49)*$I$7)/A1taxstdlife)) -> 0.6261254482
E172: 4 | K172: =IF(A1taxstdlife="n/a","n/a",IF(K$3>(A1taxstdlife+$E172),((Input!$J$63+Input!$J$49)*$J$7)-SUM($J172:J172),((Input!$J$63+Input!$J$49)*$J$7)/A1taxstdlife)) -> 0.6157232873 | L172: =IF(A1taxstdlife="n/a","n/a",IF(L$3>(A1taxstdlife+$E172),((Input!$J$63+Input!$J$49)*$J$7)-SUM($J172:K172),((Input!$J$63+Input!$J$49)*$J$7)/A1taxstdlife)) -> 0.6157232873 | M172: =IF(A1taxstdlife="n/a","n/a",IF(M$3>(A1taxstdlife+$E172),((Input!$J$63+Input!$J$49)*$J$7)-SUM($J172:L172),((Input!$J$63+Input!$J$49)*$J$7)/A1taxstdlife)) -> 0.6157232873 | N172: =IF(A1taxstdlife="n/a","n/a",IF(N$3>(A1taxstdlife+$E172),((Input!$J$63+Input!$J$49)*$J$7)-SUM($J172:M172),((Input!$J$63+Input!$J$49)*$J$7)/A1taxstdlife)) -> 0.6157232873 | O172: =IF(A1taxstdlife="n/a","n/a",IF(O$3>(A1taxstdlife+$E172),((Input!$J$63+Input!$J$49)*$J$7)-SUM($J172:N172),((Input!$J$63+Input!$J$49)*$J$7)/A1taxstdlife)) -> 0.6157232873 | P172: =IF(A1taxstdlife="n/a","n/a",IF(P$3>(A1taxstdlife+$E172),((Input!$J$63+Input!$J$49)*$J$7)-SUM($J172:O172),((Input!$J$63+Input!$J$49)*$J$7)/A1taxstdlife)) -> 0.6157232873
E173: 5 | L173: =IF(A1taxstdlife="n/a","n/a",IF(L$3>(A1taxstdlife+$E173),((Input!$K$63+Input!$K$49)*$K$7)-SUM($K173:K173),((Input!$K$63+Input!$K$49)*$K$7)/A1taxstdlife)) -> 0.6227845733 | M173: =IF(A1taxstdlife="n/a","n/a",IF(M$3>(A1taxstdlife+$E173),((Input!$K$63+Input!$K$49)*$K$7)-SUM($K173:L173),((Input!$K$63+Input!$K$49)*$K$7)/A1taxstdlife)) -> 0.6227845733 | N173: =IF(A1taxstdlife="n/a","n/a",IF(N$3>(A1taxstdlife+$E173),((Input!$K$63+Input!$K$49)*$K$7)-SUM($K173:M173),((Input!$K$63+Input!$K$49)*$K$7)/A1taxstdlife)) -> 0.6227845733 | O173: =IF(A1taxstdlife="n/a","n/a",IF(O$3>(A1taxstdlife+$E173),((Input!$K$63+Input!$K$49)*$K$7)-SUM($K173:N173),((Input!$K$63+Input!$K$49)*$K$7)/A1taxstdlife)) -> 0.6227845733 | P173: =IF(A1taxstdlife="n/a","n/a",IF(P$3>(A1taxstdlife+$E173),((Input!$K$63+Input!$K$49)*$K$7)-SUM($K173:O173),((Input!$K$63+Input!$K$49)*$K$7)/A1taxstdlife)) -> 0.6227845733
E174: 6 | M174: =IF(A1taxstdlife="n/a","n/a",IF(M$3>(A1taxstdlife+$E174),((Input!$L$63+Input!$L$49)*$L$7)-SUM($L174:L174),((Input!$L$63+Input!$L$49)*$L$7)/A1taxstdlife)) -> 0 | N174: =IF(A1taxstdlife="n/a","n/a",IF(N$3>(A1taxstdlife+$E174),((Input!$L$63+Input!$L$49)*$L$7)-SUM($L174:M174),((Input!$L$63+Input!$L$49)*$L$7)/A1taxstdlife)) -> 0 | O174: =IF(A1taxstdlife="n/a","n/a",IF(O$3>(A1taxstdlife+$E174),((Input!$L$63+Input!$L$49)*$L$7)-SUM($L174:N174),((Input!$L$63+Input!$L$49)*$L$7)/A1taxstdlife)) -> 0 | P174: =IF(A1taxstdlife="n/a","n/a",IF(P$3>(A1taxstdlife+$E174),((Input!$L$63+Input!$L$49)*$L$7)-SUM($L174:O174),((Input!$L$63+Input!$L$49)*$L$7)/A1taxstdlife)) -> 0
E175: 7 | N175: =IF(A1taxstdlife="n/a","n/a",IF(N$3>(A1taxstdlife+$E175),((Input!$M$63+Input!$M$49)*$M$7)-SUM($M175:M175),((Input!$M$63+Input!$M$49)*$M$7)/A1taxstdlife)) -> 0 | O175: =IF(A1taxstdlife="n/a","n/a",IF(O$3>(A1taxstdlife+$E175),((Input!$M$63+Input!$M$49)*$M$7)-SUM($M175:N175),((Input!$M$63+Input!$M$49)*$M$7)/A1taxstdlife)) -> 0 | P175: =IF(A1taxstdlife="n/a","n/a",IF(P$3>(A1taxstdlife+$E175),((Input!$M$63+Input!$M$49)*$M$7)-SUM($M175:O175),((Input!$M$63+Input!$M$49)*$M$7)/A1taxstdlife)) -> 0
E176: 8 | O176: =IF(A1taxstdlife="n/a","n/a",IF(O$3>(A1taxstdlife+$E176),((Input!$N$63+Input!$N$49)*$N$7)-SUM($N176:N176),((Input!$N$63+Input!$N$49)*$N$7)/A1taxstdlife)) -> 0 | P176: =IF(A1taxstdlife="n/a","n/a",IF(P$3>(A1taxstdlife+$E176),((Input!$N$63+Input!$N$49)*$N$7)-SUM($N176:O176),((Input!$N$63+Input!$N$49)*$N$7)/A1taxstdlife)) -> 0
E177: 9 | P177: =IF(A1taxstdlife="n/a","n/a",IF(P$3>(A1taxstdlife+$E177),((Input!$O$63+Input!$O$49)*$O$7)-SUM($O177:O177),((Input!$O$63+Input!$O$49)*$O$7)/A1taxstdlife)) -> 0
E178: 10
C179: =Asset1 -> Metering Capex | G179: =SUM(G167:G178) -> 6.204282969 | H179: =SUM(H167:H178) -> 6.573166655 | I179: 7.026229602 | J179: 7.65235505 | K179: 8.268078337 | L179: 8.89086291 | M179: 8.89086291 | N179: 8.89086291 | O179: 8.89086291 | P179: 8.89086291
B180: =C192 -> Equity raising costs | D180: Initial Asset Base | G180: =IF(G$3>A2taxremlife,A2taxvalue-SUM($F180:F180),IF(A2taxremlife="N/A","n/a",A2taxvalue/A2taxremlife)) -> 0.01498967299 | H180: =IF(H$3>A2taxremlife,A2taxvalue-SUM($F180:G180),IF(A2taxremlife="N/A","n/a",A2taxvalue/A2taxremlife)) -> 0.01498967299 | I180: =IF(I$3>A2taxremlife,A2taxvalue-SUM($F180:H180),IF(A2taxremlife="N/A","n/a",A2taxvalue/A2taxremlife)) -> 0.01498967299 | J180: =IF(J$3>A2taxremlife,A2taxvalue-SUM($F180:I180),IF(A2taxremlife="N/A","n/a",A2taxvalue/A2taxremlife)) -> 0.01498967299 | K180: =IF(K$3>A2taxremlife,A2taxvalue-SUM($F180:J180),IF(A2taxremlife="N/A","n/a",A2taxvalue/A2taxremlife)) -> 0.01498967299 | L180: =IF(L$3>A2taxremlife,A2taxvalue-SUM($F180:K180),IF(A2taxremlife="N/A","n/a",A2taxvalue/A2taxremlife)) -> 0.01498967299 | M180: =IF(M$3>A2taxremlife,A2taxvalue-SUM($F180:L180),IF(A2taxremlife="N/A","n/a",A2taxvalue/A2taxremlife)) -> 0.01498967299 | N180: =IF(N$3>A2taxremlife,A2taxvalue-SUM($F180:M180),IF(A2taxremlife="N/A","n/a",A2taxvalue/A2taxremlife)) -> 0.01498967299 | O180: =IF(O$3>A2taxremlife,A2taxvalue-SUM($F180:N180),IF(A2taxremlife="N/A","n/a",A2taxvalue/A2taxremlife)) -> 0.01498967299 | P180: =IF(P$3>A2taxremlife,A2taxvalue-SUM($F180:O180),IF(A2taxremlife="N/A","n/a",A2taxvalue/A2taxremlife)) -> 0.01498967299
D181: Capex | E181: 0
E182: 1 | H182: =IF(A2taxstdlife="n/a","n/a",IF(H$3>(A2taxstdlife+$E182),((Input!$G$64+Input!$G$50)*$G$7)-SUM($G182:G182),((Input!$G$64+Input!$G$50)*$G$7)/A2taxstdlife)) -> 0.003119174822 | I182: =IF(A2taxstdlife="n/a","n/a",IF(I$3>(A2taxstdlife+$E182),((Input!$G$64+Input!$G$50)*$G$7)-SUM($G182:H182),((Input!$G$64+Input!$G$50)*$G$7)/A2taxstdlife)) -> 0.003119174822 | J182: =IF(A2taxstdlife="n/a","n/a",IF(J$3>(A2taxstdlife+$E182),((Input!$G$64+Input!$G$50)*$G$7)-SUM($G182:I182),((Input!$G$64+Input!$G$50)*$G$7)/A2taxstdlife)) -> 0.003119174822 | K182: =IF(A2taxstdlife="n/a","n/a",IF(K$3>(A2taxstdlife+$E182),((Input!$G$64+Input!$G$50)*$G$7)-SUM($G182:J182),((Input!$G$64+Input!$G$50)*$G$7)/A2taxstdlife)) -> 0.003119174822 | L182: =IF(A2taxstdlife="n/a","n/a",IF(L$3>(A2taxstdlife+$E182),((Input!$G$64+Input!$G$50)*$G$7)-SUM($G182:K182),((Input!$G$64+Input!$G$50)*$G$7)/A2taxstdlife)) -> 0.003119174822 | M182: =IF(A2taxstdlife="n/a","n/a",IF(M$3>(A2taxstdlife+$E182),((Input!$G$64+Input!$G$50)*$G$7)-SUM($G182:L182),((Input!$G$64+Input!$G$50)*$G$7)/A2taxstdlife)) -> 0.003119174822 | N182: =IF(A2taxstdlife="n/a","n/a",IF(N$3>(A2taxstdlife+$E182),((Input!$G$64+Input!$G$50)*$G$7)-SUM($G182:M182),((Input!$G$64+Input!$G$50)*$G$7)/A2taxstdlife)) -> 0.003119174822 | O182: =IF(A2taxstdlife="n/a","n/a",IF(O$3>(A2taxstdlife+$E182),((Input!$G$64+Input!$G$50)*$G$7)-SUM($G182:N182),((Input!$G$64+Input!$G$50)*$G$7)/A2taxstdlife)) -> 0.003119174822 | P182: =IF(A2taxstdlife="n/a","n/a",IF(P$3>(A2taxstdlife+$E182),((Input!$G$64+Input!$G$50)*$G$7)-SUM($G182:O182),((Input!$G$64+Input!$G$50)*$G$7)/A2taxstdlife)) -> 0.003119174822
E183: 2 | I183: =IF(A2taxstdlife="n/a","n/a",IF(I$3>(A2taxstdlife+$E183),((Input!$H$64+Input!$H$50)*$H$7)-SUM($H183:H183),((Input!$H$64+Input!$H$50)*$H$7)/A2taxstdlife)) -> 0 | J183: =IF(A2taxstdlife="n/a","n/a",IF(J$3>(A2taxstdlife+$E183),((Input!$H$64+Input!$H$50)*$H$7)-SUM($H183:I183),((Input!$H$64+Input!$H$50)*$H$7)/A2taxstdlife)) -> 0 | K183: =IF(A2taxstdlife="n/a","n/a",IF(K$3>(A2taxstdlife+$E183),((Input!$H$64+Input!$H$50)*$H$7)-SUM($H183:J183),((Input!$H$64+Input!$H$50)*$H$7)/A2taxstdlife)) -> 0 | L183: =IF(A2taxstdlife="n/a","n/a",IF(L$3>(A2taxstdlife+$E183),((Input!$H$64+Input!$H$50)*$H$7)-SUM($H183:K183),((Input!$H$64+Input!$H$50)*$H$7)/A2taxstdlife)) -> 0 | M183: =IF(A2taxstdlife="n/a","n/a",IF(M$3>(A2taxstdlife+$E183),((Input!$H$64+Input!$H$50)*$H$7)-SUM($H183:L183),((Input!$H$64+Input!$H$50)*$H$7)/A2taxstdlife)) -> 0 | N183: =IF(A2taxstdlife="n/a","n/a",IF(N$3>(A2taxstdlife+$E183),((Input!$H$64+Input!$H$50)*$H$7)-SUM($H183:M183),((Input!$H$64+Input!$H$50)*$H$7)/A2taxstdlife)) -> 0 | O183: =IF(A2taxstdlife="n/a","n/a",IF(O$3>(A2taxstdlife+$E183),((Input!$H$64+Input!$H$50)*$H$7)-SUM($H183:N183),((Input!$H$64+Input!$H$50)*$H$7)/A2taxstdlife)) -> 0 | P183: =IF(A2taxstdlife="n/a","n/a",IF(P$3>(A2taxstdlife+$E183),((Input!$H$64+Input!$H$50)*$H$7)-SUM($H183:O183),((Input!$H$64+Input!$H$50)*$H$7)/A2taxstdlife)) -> 0
E184: 3 | J184: =IF(A2taxstdlife="n/a","n/a",IF(J$3>(A2taxstdlife+$E184),((Input!$I$64+Input!$I$50)*$I$7)-SUM($I184:I184),((Input!$I$64+Input!$I$50)*$I$7)/A2taxstdlife)) -> 0 | K184: =IF(A2taxstdlife="n/a","n/a",IF(K$3>(A2taxstdlife+$E184),((Input!$I$64+Input!$I$50)*$I$7)-SUM($I184:J184),((Input!$I$64+Input!$I$50)*$I$7)/A2taxstdlife)) -> 0 | L184: =IF(A2taxstdlife="n/a","n/a",IF(L$3>(A2taxstdlife+$E184),((Input!$I$64+Input!$I$50)*$I$7)-SUM($I184:K184),((Input!$I$64+Input!$I$50)*$I$7)/A2taxstdlife)) -> 0 | M184: =IF(A2taxstdlife="n/a","n/a",IF(M$3>(A2taxstdlife+$E184),((Input!$I$64+Input!$I$50)*$I$7)-SUM($I184:L184),((Input!$I$64+Input!$I$50)*$I$7)/A2taxstdlife)) -> 0 | N184: =IF(A2taxstdlife="n/a","n/a",IF(N$3>(A2taxstdlife+$E184),((Input!$I$64+Input!$I$50)*$I$7)-SUM($I184:M184),((Input!$I$64+Input!$I$50)*$I$7)/A2taxstdlife)) -> 0 | O184: =IF(A2taxstdlife="n/a","n/a",IF(O$3>(A2taxstdlife+$E184),((Input!$I$64+Input!$I$50)*$I$7)-SUM($I184:N184),((Input!$I$64+Input!$I$50)*$I$7)/A2taxstdlife)) -> 0 | P184: =IF(A2taxstdlife="n/a","n/a",IF(P$3>(A2taxstdlife+$E184),((Input!$I$64+Input!$I$50)*$I$7)-SUM($I184:O184),((Input!$I$64+Input!$I$50)*$I$7)/A2taxstdlife)) -> 0
E185: 4 | K185: =IF(A2taxstdlife="n/a","n/a",IF(K$3>(A2taxstdlife+$E185),((Input!$J$64+Input!$J$50)*$J$7)-SUM($J185:J185),((Input!$J$64+Input!$J$50)*$J$7)/A2taxstdlife)) -> 0 | L185: =IF(A2taxstdlife="n/a","n/a",IF(L$3>(A2taxstdlife+$E185),((Input!$J$64+Input!$J$50)*$J$7)-SUM($J185:K185),((Input!$J$64+Input!$J$50)*$J$7)/A2taxstdlife)) -> 0 | M185: =IF(A2taxstdlife="n/a","n/a",IF(M$3>(A2taxstdlife+$E185),((Input!$J$64+Input!$J$50)*$J$7)-SUM($J185:L185),((Input!$J$64+Input!$J$50)*$J$7)/A2taxstdlife)) -> 0 | N185: =IF(A2taxstdlife="n/a","n/a",IF(N$3>(A2taxstdlife+$E185),((Input!$J$64+Input!$J$50)*$J$7)-SUM($J185:M185),((Input!$J$64+Input!$J$50)*$J$7)/A2taxstdlife)) -> 0 | O185: =IF(A2taxstdlife="n/a","n/a",IF(O$3>(A2taxstdlife+$E185),((Input!$J$64+Input!$J$50)*$J$7)-SUM($J185:N185),((Input!$J$64+Input!$J$50)*$J$7)/A2taxstdlife)) -> 0 | P185: =IF(A2taxstdlife="n/a","n/a",IF(P$3>(A2taxstdlife+$E185),((Input!$J$64+Input!$J$50)*$J$7)-SUM($J185:O185),((Input!$J$64+Input!$J$50)*$J$7)/A2taxstdlife)) -> 0
E186: 5 | L186: =IF(A2taxstdlife="n/a","n/a",IF(L$3>(A2taxstdlife+$E186),((Input!$K$64+Input!$K$50)*$K$7)-SUM($K186:K186),((Input!$K$64+Input!$K$50)*$K$7)/A2taxstdlife)) -> 0 | M186: =IF(A2taxstdlife="n/a","n/a",IF(M$3>(A2taxstdlife+$E186),((Input!$K$64+Input!$K$50)*$K$7)-SUM($K186:L186),((Input!$K$64+Input!$K$50)*$K$7)/A2taxstdlife)) -> 0 | N186: =IF(A2taxstdlife="n/a","n/a",IF(N$3>(A2taxstdlife+$E186),((Input!$K$64+Input!$K$50)*$K$7)-SUM($K186:M186),((Input!$K$64+Input!$K$50)*$K$7)/A2taxstdlife)) -> 0 | O186: =IF(A2taxstdlife="n/a","n/a",IF(O$3>(A2taxstdlife+$E186),((Input!$K$64+Input!$K$50)*$K$7)-SUM($K186:N186),((Input!$K$64+Input!$K$50)*$K$7)/A2taxstdlife)) -> 0 | P186: =IF(A2taxstdlife="n/a","n/a",IF(P$3>(A2taxstdlife+$E186),((Input!$K$64+Input!$K$50)*$K$7)-SUM($K186:O186),((Input!$K$64+Input!$K$50)*$K$7)/A2taxstdlife)) -> 0
E187: 6 | M187: =IF(A2taxstdlife="n/a","n/a",IF(M$3>(A2taxstdlife+$E187),((Input!$L$64+Input!$L$50)*$L$7)-SUM($L187:L187),((Input!$L$64+Input!$L$50)*$L$7)/A2taxstdlife)) -> 0 | N187: =IF(A2taxstdlife="n/a","n/a",IF(N$3>(A2taxstdlife+$E187),((Input!$L$64+Input!$L$50)*$L$7)-SUM($L187:M187),((Input!$L$64+Input!$L$50)*$L$7)/A2taxstdlife)) -> 0 | O187: =IF(A2taxstdlife="n/a","n/a",IF(O$3>(A2taxstdlife+$E187),((Input!$L$64+Input!$L$50)*$L$7)-SUM($L187:N187),((Input!$L$64+Input!$L$50)*$L$7)/A2taxstdlife)) -> 0 | P187: =IF(A2taxstdlife="n/a","n/a",IF(P$3>(A2taxstdlife+$E187),((Input!$L$64+Input!$L$50)*$L$7)-SUM($L187:O187),((Input!$L$64+Input!$L$50)*$L$7)/A2taxstdlife)) -> 0
E188: 7 | N188: =IF(A2taxstdlife="n/a","n/a",IF(N$3>(A2taxstdlife+$E188),((Input!$M$64+Input!$M$50)*$M$7)-SUM($M188:M188),((Input!$M$64+Input!$M$50)*$M$7)/A2taxstdlife)) -> 0 | O188: =IF(A2taxstdlife="n/a","n/a",IF(O$3>(A2taxstdlife+$E188),((Input!$M$64+Input!$M$50)*$M$7)-SUM($M188:N188),((Input!$M$64+Input!$M$50)*$M$7)/A2taxstdlife)) -> 0 | P188: =IF(A2taxstdlife="n/a","n/a",IF(P$3>(A2taxstdlife+$E188),((Input!$M$64+Input!$M$50)*$M$7)-SUM($M188:O188),((Input!$M$64+Input!$M$50)*$M$7)/A2taxstdlife)) -> 0
E189: 8 | O189: =IF(A2taxstdlife="n/a","n/a",IF(O$3>(A2taxstdlife+$E189),((Input!$N$64+Input!$N$50)*$N$7)-SUM($N189:N189),((Input!$N$64+Input!$N$50)*$N$7)/A2taxstdlife)) -> 0 | P189: =IF(A2taxstdlife="n/a","n/a",IF(P$3>(A2taxstdlife+$E189),((Input!$N$64+Input!$N$50)*$N$7)-SUM($N189:O189),((Input!$N$64+Input!$N$50)*$N$7)/A2taxstdlife)) -> 0
E190: 9 | P190: =IF(A2taxstdlife="n/a","n/a",IF(P$3>(A2taxstdlife+$E190),((Input!$O$64+Input!$O$50)*$O$7)-SUM($O190:O190),((Input!$O$64+Input!$O$50)*$O$7)/A2taxstdlife)) -> 0
E191: 10
C192: =Asset2 -> Equity raising costs | G192: =SUM(G180:G191) -> 0.01498967299 | H192: =SUM(H180:H191) -> 0.01810884781 | I192: 0.01810884781 | J192: 0.01810884781 | K192: 0.01810884781 | L192: 0.01810884781 | M192: 0.01810884781 | N192: 0.01810884781 | O192: 0.01810884781 | P192: 0.01810884781
B193: =C205 -> 0 | D193: Initial Asset Base | G193: =IF(G$3>A3taxremlife,A3taxvalue-SUM($F193:F193),IF(A3taxremlife="N/A","n/a",A3taxvalue/A3taxremlife)) -> 0 | H193: =IF(H$3>A3taxremlife,A3taxvalue-SUM($F193:G193),IF(A3taxremlife="N/A","n/a",A3taxvalue/A3taxremlife)) -> 0 | I193: =IF(I$3>A3taxremlife,A3taxvalue-SUM($F193:H193),IF(A3taxremlife="N/A","n/a",A3taxvalue/A3taxremlife)) -> 0 | J193: =IF(J$3>A3taxremlife,A3taxvalue-SUM($F193:I193),IF(A3taxremlife="N/A","n/a",A3taxvalue/A3taxremlife)) -> 0 | K193: =IF(K$3>A3taxremlife,A3taxvalue-SUM($F193:J193),IF(A3taxremlife="N/A","n/a",A3taxvalue/A3taxremlife)) -> 0 | L193: =IF(L$3>A3taxremlife,A3taxvalue-SUM($F193:K193),IF(A3taxremlife="N/A","n/a",A3taxvalue/A3taxremlife)) -> 0 | M193: =IF(M$3>A3taxremlife,A3taxvalue-SUM($F193:L193),IF(A3taxremlife="N/A","n/a",A3taxvalue/A3taxremlife)) -> 0 | N193: =IF(N$3>A3taxremlife,A3taxvalue-SUM($F193:M193),IF(A3taxremlife="N/A","n/a",A3taxvalue/A3taxremlife)) -> 0 | O193: =IF(O$3>A3taxremlife,A3taxvalue-SUM($F193:N193),IF(A3taxremlife="N/A","n/a",A3taxvalue/A3taxremlife)) -> 0 | P193: =IF(P$3>A3taxremlife,A3taxvalue-SUM($F193:O193),IF(A3taxremlife="N/A","n/a",A3taxvalue/A3taxremlife)) -> 0
D194: Capex | E194: 0
E195: 1 | H195: =IF(A3taxstdlife="n/a","n/a",IF(H$3>(A3taxstdlife+$E195),((Input!$G$65+Input!$G$51)*$G$7)-SUM($G195:G195),((Input!$G$65+Input!$G$51)*$G$7)/A3taxstdlife)) -> 0 | I195: =IF(A3taxstdlife="n/a","n/a",IF(I$3>(A3taxstdlife+$E195),((Input!$G$65+Input!$G$51)*$G$7)-SUM($G195:H195),((Input!$G$65+Input!$G$51)*$G$7)/A3taxstdlife)) -> 0 | J195: =IF(A3taxstdlife="n/a","n/a",IF(J$3>(A3taxstdlife+$E195),((Input!$G$65+Input!$G$51)*$G$7)-SUM($G195:I195),((Input!$G$65+Input!$G$51)*$G$7)/A3taxstdlife)) -> 0 | K195: =IF(A3taxstdlife="n/a","n/a",IF(K$3>(A3taxstdlife+$E195),((Input!$G$65+Input!$G$51)*$G$7)-SUM($G195:J195),((Input!$G$65+Input!$G$51)*$G$7)/A3taxstdlife)) -> 0 | L195: =IF(A3taxstdlife="n/a","n/a",IF(L$3>(A3taxstdlife+$E195),((Input!$G$65+Input!$G$51)*$G$7)-SUM($G195:K195),((Input!$G$65+Input!$G$51)*$G$7)/A3taxstdlife)) -> 0 | M195: =IF(A3taxstdlife="n/a","n/a",IF(M$3>(A3taxstdlife+$E195),((Input!$G$65+Input!$G$51)*$G$7)-SUM($G195:L195),((Input!$G$65+Input!$G$51)*$G$7)/A3taxstdlife)) -> 0 | N195: =IF(A3taxstdlife="n/a","n/a",IF(N$3>(A3taxstdlife+$E195),((Input!$G$65+Input!$G$51)*$G$7)-SUM($G195:M195),((Input!$G$65+Input!$G$51)*$G$7)/A3taxstdlife)) -> 0 | O195: =IF(A3taxstdlife="n/a","n/a",IF(O$3>(A3taxstdlife+$E195),((Input!$G$65+Input!$G$51)*$G$7)-SUM($G195:N195),((Input!$G$65+Input!$G$51)*$G$7)/A3taxstdlife)) -> 0 | P195: =IF(A3taxstdlife="n/a","n/a",IF(P$3>(A3taxstdlife+$E195),((Input!$G$65+Input!$G$51)*$G$7)-SUM($G195:O195),((Input!$G$65+Input!$G$51)*$G$7)/A3taxstdlife)) -> 0
E196: 2 | I196: =IF(A3taxstdlife="n/a","n/a",IF(I$3>(A3taxstdlife+$E196),((Input!$H$65+Input!$H$51)*$H$7)-SUM($H196:H196),((Input!$H$65+Input!$H$51)*$H$7)/A3taxstdlife)) -> 0 | J196: =IF(A3taxstdlife="n/a","n/a",IF(J$3>(A3taxstdlife+$E196),((Input!$H$65+Input!$H$51)*$H$7)-SUM($H196:I196),((Input!$H$65+Input!$H$51)*$H$7)/A3taxstdlife)) -> 0 | K196: =IF(A3taxstdlife="n/a","n/a",IF(K$3>(A3taxstdlife+$E196),((Input!$H$65+Input!$H$51)*$H$7)-SUM($H196:J196),((Input!$H$65+Input!$H$51)*$H$7)/A3taxstdlife)) -> 0 | L196: =IF(A3taxstdlife="n/a","n/a",IF(L$3>(A3taxstdlife+$E196),((Input!$H$65+Input!$H$51)*$H$7)-SUM($H196:K196),((Input!$H$65+Input!$H$51)*$H$7)/A3taxstdlife)) -> 0 | M196: =IF(A3taxstdlife="n/a","n/a",IF(M$3>(A3taxstdlife+$E196),((Input!$H$65+Input!$H$51)*$H$7)-SUM($H196:L196),((Input!$H$65+Input!$H$51)*$H$7)/A3taxstdlife)) -> 0 | N196: =IF(A3taxstdlife="n/a","n/a",IF(N$3>(A3taxstdlife+$E196),((Input!$H$65+Input!$H$51)*$H$7)-SUM($H196:M196),((Input!$H$65+Input!$H$51)*$H$7)/A3taxstdlife)) -> 0 | O196: =IF(A3taxstdlife="n/a","n/a",IF(O$3>(A3taxstdlife+$E196),((Input!$H$65+Input!$H$51)*$H$7)-SUM($H196:N196),((Input!$H$65+Input!$H$51)*$H$7)/A3taxstdlife)) -> 0 | P196: =IF(A3taxstdlife="n/a","n/a",IF(P$3>(A3taxstdlife+$E196),((Input!$H$65+Input!$H$51)*$H$7)-SUM($H196:O196),((Input!$H$65+Input!$H$51)*$H$7)/A3taxstdlife)) -> 0
E197: 3 | J197: =IF(A3taxstdlife="n/a","n/a",IF(J$3>(A3taxstdlife+$E197),((Input!$I$65+Input!$I$51)*$I$7)-SUM($I197:I197),((Input!$I$65+Input!$I$51)*$I$7)/A3taxstdlife)) -> 0 | K197: =IF(A3taxstdlife="n/a","n/a",IF(K$3>(A3taxstdlife+$E197),((Input!$I$65+Input!$I$51)*$I$7)-SUM($I197:J197),((Input!$I$65+Input!$I$51)*$I$7)/A3taxstdlife)) -> 0 | L197: =IF(A3taxstdlife="n/a","n/a",IF(L$3>(A3taxstdlife+$E197),((Input!$I$65+Input!$I$51)*$I$7)-SUM($I197:K197),((Input!$I$65+Input!$I$51)*$I$7)/A3taxstdlife)) -> 0 | M197: =IF(A3taxstdlife="n/a","n/a",IF(M$3>(A3taxstdlife+$E197),((Input!$I$65+Input!$I$51)*$I$7)-SUM($I197:L197),((Input!$I$65+Input!$I$51)*$I$7)/A3taxstdlife)) -> 0 | N197: =IF(A3taxstdlife="n/a","n/a",IF(N$3>(A3taxstdlife+$E197),((Input!$I$65+Input!$I$51)*$I$7)-SUM($I197:M197),((Input!$I$65+Input!$I$51)*$I$7)/A3taxstdlife)) -> 0 | O197: =IF(A3taxstdlife="n/a","n/a",IF(O$3>(A3taxstdlife+$E197),((Input!$I$65+Input!$I$51)*$I$7)-SUM($I197:N197),((Input!$I$65+Input!$I$51)*$I$7)/A3taxstdlife)) -> 0 | P197: =IF(A3taxstdlife="n/a","n/a",IF(P$3>(A3taxstdlife+$E197),((Input!$I$65+Input!$I$51)*$I$7)-SUM($I197:O197),((Input!$I$65+Input!$I$51)*$I$7)/A3taxstdlife)) -> 0
E198: 4 | K198: =IF(A3taxstdlife="n/a","n/a",IF(K$3>(A3taxstdlife+$E198),((Input!$J$65+Input!$J$51)*$J$7)-SUM($J198:J198),((Input!$J$65+Input!$J$51)*$J$7)/A3taxstdlife)) -> 0 | L198: =IF(A3taxstdlife="n/a","n/a",IF(L$3>(A3taxstdlife+$E198),((Input!$J$65+Input!$J$51)*$J$7)-SUM($J198:K198),((Input!$J$65+Input!$J$51)*$J$7)/A3taxstdlife)) -> 0 | M198: =IF(A3taxstdlife="n/a","n/a",IF(M$3>(A3taxstdlife+$E198),((Input!$J$65+Input!$J$51)*$J$7)-SUM($J198:L198),((Input!$J$65+Input!$J$51)*$J$7)/A3taxstdlife)) -> 0 | N198: =IF(A3taxstdlife="n/a","n/a",IF(N$3>(A3taxstdlife+$E198),((Input!$J$65+Input!$J$51)*$J$7)-SUM($J198:M198),((Input!$J$65+Input!$J$51)*$J$7)/A3taxstdlife)) -> 0 | O198: =IF(A3taxstdlife="n/a","n/a",IF(O$3>(A3taxstdlife+$E198),((Input!$J$65+Input!$J$51)*$J$7)-SUM($J198:N198),((Input!$J$65+Input!$J$51)*$J$7)/A3taxstdlife)) -> 0 | P198: =IF(A3taxstdlife="n/a","n/a",IF(P$3>(A3taxstdlife+$E198),((Input!$J$65+Input!$J$51)*$J$7)-SUM($J198:O198),((Input!$J$65+Input!$J$51)*$J$7)/A3taxstdlife)) -> 0
E199: 5 | L199: =IF(A3taxstdlife="n/a","n/a",IF(L$3>(A3taxstdlife+$E199),((Input!$K$65+Input!$K$51)*$K$7)-SUM($K199:K199),((Input!$K$65+Input!$K$51)*$K$7)/A3taxstdlife)) -> 0 | M199: =IF(A3taxstdlife="n/a","n/a",IF(M$3>(A3taxstdlife+$E199),((Input!$K$65+Input!$K$51)*$K$7)-SUM($K199:L199),((Input!$K$65+Input!$K$51)*$K$7)/A3taxstdlife)) -> 0 | N199: =IF(A3taxstdlife="n/a","n/a",IF(N$3>(A3taxstdlife+$E199),((Input!$K$65+Input!$K$51)*$K$7)-SUM($K199:M199),((Input!$K$65+Input!$K$51)*$K$7)/A3taxstdlife)) -> 0 | O199: =IF(A3taxstdlife="n/a","n/a",IF(O$3>(A3taxstdlife+$E199),((Input!$K$65+Input!$K$51)*$K$7)-SUM($K199:N199),((Input!$K$65+Input!$K$51)*$K$7)/A3taxstdlife)) -> 0 | P199: =IF(A3taxstdlife="n/a","n/a",IF(P$3>(A3taxstdlife+$E199),((Input!$K$65+Input!$K$51)*$K$7)-SUM($K199:O199),((Input!$K$65+Input!$K$51)*$K$7)/A3taxstdlife)) -> 0
E200: 6 | M200: =IF(A3taxstdlife="n/a","n/a",IF(M$3>(A3taxstdlife+$E200),((Input!$L$65+Input!$L$51)*$L$7)-SUM($L200:L200),((Input!$L$65+Input!$L$51)*$L$7)/A3taxstdlife)) -> 0 | N200: =IF(A3taxstdlife="n/a","n/a",IF(N$3>(A3taxstdlife+$E200),((Input!$L$65+Input!$L$51)*$L$7)-SUM($L200:M200),((Input!$L$65+Input!$L$51)*$L$7)/A3taxstdlife)) -> 0 | O200: =IF(A3taxstdlife="n/a","n/a",IF(O$3>(A3taxstdlife+$E200),((Input!$L$65+Input!$L$51)*$L$7)-SUM($L200:N200),((Input!$L$65+Input!$L$51)*$L$7)/A3taxstdlife)) -> 0 | P200: =IF(A3taxstdlife="n/a","n/a",IF(P$3>(A3taxstdlife+$E200),((Input!$L$65+Input!$L$51)*$L$7)-SUM($L200:O200),((Input!$L$65+Input!$L$51)*$L$7)/A3taxstdlife)) -> 0
E201: 7 | N201: =IF(A3taxstdlife="n/a","n/a",IF(N$3>(A3taxstdlife+$E201),((Input!$M$65+Input!$M$51)*$M$7)-SUM($M201:M201),((Input!$M$65+Input!$M$51)*$M$7)/A3taxstdlife)) -> 0 | O201: =IF(A3taxstdlife="n/a","n/a",IF(O$3>(A3taxstdlife+$E201),((Input!$M$65+Input!$M$51)*$M$7)-SUM($M201:N201),((Input!$M$65+Input!$M$51)*$M$7)/A3taxstdlife)) -> 0 | P201: =IF(A3taxstdlife="n/a","n/a",IF(P$3>(A3taxstdlife+$E201),((Input!$M$65+Input!$M$51)*$M$7)-SUM($M201:O201),((Input!$M$65+Input!$M$51)*$M$7)/A3taxstdlife)) -> 0
E202: 8 | O202: =IF(A3taxstdlife="n/a","n/a",IF(O$3>(A3taxstdlife+$E202),((Input!$N$65+Input!$N$51)*$N$7)-SUM($N202:N202),((Input!$N$65+Input!$N$51)*$N$7)/A3taxstdlife)) -> 0 | P202: =IF(A3taxstdlife="n/a","n/a",IF(P$3>(A3taxstdlife+$E202),((Input!$N$65+Input!$N$51)*$N$7)-SUM($N202:O202),((Input!$N$65+Input!$N$51)*$N$7)/A3taxstdlife)) -> 0
E203: 9 | P203: =IF(A3taxstdlife="n/a","n/a",IF(P$3>(A3taxstdlife+$E203),((Input!$O$65+Input!$O$51)*$O$7)-SUM($O203:O203),((Input!$O$65+Input!$O$51)*$O$7)/A3taxstdlife)) -> 0
E204: 10
C205: =Asset3 -> 0 | G205: =SUM(G193:G204) -> 0 | H205: =SUM(H193:H204) -> 0 | I205: 0 | J205: 0 | K205: 0 | L205: 0 | M205: 0 | N205: 0 | O205: 0 | P205: 0
B206: =C218 -> 0 | D206: Initial Asset Base | G206: =IF(G$3>A4taxremlife,A4taxvalue-SUM($F206:F206),IF(A4taxremlife="N/A","n/a",A4taxvalue/A4taxremlife)) -> 0 | H206: =IF(H$3>A4taxremlife,A4taxvalue-SUM($F206:G206),IF(A4taxremlife="N/A","n/a",A4taxvalue/A4taxremlife)) -> 0 | I206: =IF(I$3>A4taxremlife,A4taxvalue-SUM($F206:H206),IF(A4taxremlife="N/A","n/a",A4taxvalue/A4taxremlife)) -> 0 | J206: =IF(J$3>A4taxremlife,A4taxvalue-SUM($F206:I206),IF(A4taxremlife="N/A","n/a",A4taxvalue/A4taxremlife)) -> 0 | K206: =IF(K$3>A4taxremlife,A4taxvalue-SUM($F206:J206),IF(A4taxremlife="N/A","n/a",A4taxvalue/A4taxremlife)) -> 0 | L206: =IF(L$3>A4taxremlife,A4taxvalue-SUM($F206:K206),IF(A4taxremlife="N/A","n/a",A4taxvalue/A4taxremlife)) -> 0 | M206: =IF(M$3>A4taxremlife,A4taxvalue-SUM($F206:L206),IF(A4taxremlife="N/A","n/a",A4taxvalue/A4taxremlife)) -> 0 | N206: =IF(N$3>A4taxremlife,A4taxvalue-SUM($F206:M206),IF(A4taxremlife="N/A","n/a",A4taxvalue/A4taxremlife)) -> 0 | O206: =IF(O$3>A4taxremlife,A4taxvalue-SUM($F206:N206),IF(A4taxremlife="N/A","n/a",A4taxvalue/A4taxremlife)) -> 0 | P206: =IF(P$3>A4taxremlife,A4taxvalue-SUM($F206:O206),IF(A4taxremlife="N/A","n/a",A4taxvalue/A4taxremlife)) -> 0
D207: Capex | E207: 0
E208: 1 | H208: =IF(A4taxstdlife="n/a","n/a",IF(H$3>(A4taxstdlife+$E208),((Input!$G$66+Input!$G$52)*$G$7)-SUM($G208:G208),((Input!$G$66+Input!$G$52)*$G$7)/A4taxstdlife)) -> 0 | I208: =IF(A4taxstdlife="n/a","n/a",IF(I$3>(A4taxstdlife+$E208),((Input!$G$66+Input!$G$52)*$G$7)-SUM($G208:H208),((Input!$G$66+Input!$G$52)*$G$7)/A4taxstdlife)) -> 0 | J208: =IF(A4taxstdlife="n/a","n/a",IF(J$3>(A4taxstdlife+$E208),((Input!$G$66+Input!$G$52)*$G$7)-SUM($G208:I208),((Input!$G$66+Input!$G$52)*$G$7)/A4taxstdlife)) -> 0 | K208: =IF(A4taxstdlife="n/a","n/a",IF(K$3>(A4taxstdlife+$E208),((Input!$G$66+Input!$G$52)*$G$7)-SUM($G208:J208),((Input!$G$66+Input!$G$52)*$G$7)/A4taxstdlife)) -> 0 | L208: =IF(A4taxstdlife="n/a","n/a",IF(L$3>(A4taxstdlife+$E208),((Input!$G$66+Input!$G$52)*$G$7)-SUM($G208:K208),((Input!$G$66+Input!$G$52)*$G$7)/A4taxstdlife)) -> 0 | M208: =IF(A4taxstdlife="n/a","n/a",IF(M$3>(A4taxstdlife+$E208),((Input!$G$66+Input!$G$52)*$G$7)-SUM($G208:L208),((Input!$G$66+Input!$G$52)*$G$7)/A4taxstdlife)) -> 0 | N208: =IF(A4taxstdlife="n/a","n/a",IF(N$3>(A4taxstdlife+$E208),((Input!$G$66+Input!$G$52)*$G$7)-SUM($G208:M208),((Input!$G$66+Input!$G$52)*$G$7)/A4taxstdlife)) -> 0 | O208: =IF(A4taxstdlife="n/a","n/a",IF(O$3>(A4taxstdlife+$E208),((Input!$G$66+Input!$G$52)*$G$7)-SUM($G208:N208),((Input!$G$66+Input!$G$52)*$G$7)/A4taxstdlife)) -> 0 | P208: =IF(A4taxstdlife="n/a","n/a",IF(P$3>(A4taxstdlife+$E208),((Input!$G$66+Input!$G$52)*$G$7)-SUM($G208:O208),((Input!$G$66+Input!$G$52)*$G$7)/A4taxstdlife)) -> 0
E209: 2 | I209: =IF(A4taxstdlife="n/a","n/a",IF(I$3>(A4taxstdlife+$E209),((Input!$H$66+Input!$H$52)*$H$7)-SUM($H209:H209),((Input!$H$66+Input!$H$52)*$H$7)/A4taxstdlife)) -> 0 | J209: =IF(A4taxstdlife="n/a","n/a",IF(J$3>(A4taxstdlife+$E209),((Input!$H$66+Input!$H$52)*$H$7)-SUM($H209:I209),((Input!$H$66+Input!$H$52)*$H$7)/A4taxstdlife)) -> 0 | K209: =IF(A4taxstdlife="n/a","n/a",IF(K$3>(A4taxstdlife+$E209),((Input!$H$66+Input!$H$52)*$H$7)-SUM($H209:J209),((Input!$H$66+Input!$H$52)*$H$7)/A4taxstdlife)) -> 0 | L209: =IF(A4taxstdlife="n/a","n/a",IF(L$3>(A4taxstdlife+$E209),((Input!$H$66+Input!$H$52)*$H$7)-SUM($H209:K209),((Input!$H$66+Input!$H$52)*$H$7)/A4taxstdlife)) -> 0 | M209: =IF(A4taxstdlife="n/a","n/a",IF(M$3>(A4taxstdlife+$E209),((Input!$H$66+Input!$H$52)*$H$7)-SUM($H209:L209),((Input!$H$66+Input!$H$52)*$H$7)/A4taxstdlife)) -> 0 | N209: =IF(A4taxstdlife="n/a","n/a",IF(N$3>(A4taxstdlife+$E209),((Input!$H$66+Input!$H$52)*$H$7)-SUM($H209:M209),((Input!$H$66+Input!$H$52)*$H$7)/A4taxstdlife)) -> 0 | O209: =IF(A4taxstdlife="n/a","n/a",IF(O$3>(A4taxstdlife+$E209),((Input!$H$66+Input!$H$52)*$H$7)-SUM($H209:N209),((Input!$H$66+Input!$H$52)*$H$7)/A4taxstdlife)) -> 0 | P209: =IF(A4taxstdlife="n/a","n/a",IF(P$3>(A4taxstdlife+$E209),((Input!$H$66+Input!$H$52)*$H$7)-SUM($H209:O209),((Input!$H$66+Input!$H$52)*$H$7)/A4taxstdlife)) -> 0
... 88 more rows

Sheet Analysis
B2: Post-Tax Building Block Cash Flow Model
B5: Year | F5: =Assets!F4 -> 2013-14 | G5: =Assets!G4 -> 2014-15 | H5: =Assets!H4 -> 2015-16 | I5: =Assets!I4 -> 2016-17 | J5: =Assets!J4 -> 2017-18 | K5: =Assets!K4 -> 2018-19 | L5: =Assets!L4 -> 2019-20 | M5: =Assets!M4 -> 2020-21 | N5: =Assets!N4 -> 2021-22 | O5: =Assets!O4 -> 2022-23 | P5: =Assets!P4 -> 2023-24
B7: Inflation Assumption (CPI % increase) | G7: 0.02449888641 | H7: =f -> 0.025 | I7: =H7 -> 0.025 | J7: 0.025 | K7: 0.025 | L7: 0.025 | M7: 0.025 | N7: 0.025 | O7: 0.025 | P7: 0.025
B8: Cumulative Inflation Index (CPI end period) | F8: 1 | G8: =F8*(1+G7) -> 1.024498886 | H8: =G8*(1+H7) -> 1.050111359 | I8: 1.076364143 | J8: 1.103273246 | K8: 1.130855077 | L8: 1.159126454 | M8: 1.188104616 | N8: 1.217807231 | O8: 1.248252412 | P8: =O8*(1+P7) -> 1.279458722
B10: RAB (start period) | D10: (nominal value) | G10: =Assets!F161 -> 95.10598623 | H10: =Assets!G161 -> 102.0737045 | I10: =Assets!H161 -> 107.0922538 | J10: =Assets!I161 -> 112.022533 | K10: =Assets!J161 -> 119.6885084 | L10: =Assets!K161 -> 126.7328979 | M10: =Assets!L161 -> 120.6765573 | N10: =Assets!M161 -> 114.2381915 | O10: =Assets!N161 -> 107.4024847 | P10: =Assets!O161 -> 100.1535936
B11: - Equity | D11: =WACC!F18 -> 0.4 | G11: =$D11*G$10 -> 38.04239449 | H11: =$D11*H$10 -> 40.8294818 | I11: =$D11*I$10 -> 42.83690153 | J11: 44.80901322 | K11: 47.87540336 | L11: 50.69315918 | M11: 48.27062292 | N11: 45.69527662 | O11: 42.96099386 | P11: 40.06143742
B12: - Debt | D12: =WACC!F19 -> 0.6 | G12: =$D12*G$10 -> 57.06359174 | H12: 61.2442227 | I12: 64.2553523 | J12: 67.21351983 | K12: 71.81310503 | L12: 76.03973877 | M12: 72.40593437 | N12: 68.54291492 | O12: 64.44149079 | P12: 60.09215613
B14: Revenue Building Blocks
B15: Nominal Vanilla WACC | D15: =D11*D17+D12*D18 -> 0.0884768 | G15: =SUM(G17:G18) -> 8.414673323 | H15: =SUM(H17:H18) -> 9.031154739 | I15: =SUM(I17:I18) -> 9.475179924 | J15: 9.911395252 | K15: 10.58965622 | L15: 11.21292126 | M15: 10.67707562 | N15: 10.10742963 | O15: 9.502628154 | P15: 8.861269466
B16: Return on Asset
B17: - Return on Equity | D17: =WACC!$F$25 -> 0.101492 | G17: =$D17*G11 -> 3.860998702 | H17: =$D17*H11 -> 4.143865767 | I17: =$D17*I11 -> 4.34760281 | J17: 4.54775637 | K17: 4.858970437 | L17: 5.144950111 | M17: 4.899082061 | N17: 4.637705014 | O17: 4.360197189 | P17: 4.065915407
B18: - Return on Debt | D18: =WACC!$F$11 -> 0.0798 | G18: =$D18*G12 -> 4.553674621 | H18: 4.887288972 | I18: =$D18*I12 -> 5.127577113 | J18: 5.363638882 | K18: 5.730685782 | L18: 6.067971154 | M18: 5.777993563 | N18: 5.469724611 | O18: 5.142430965 | P18: 4.795354059
B20: Return of Asset (regulatory depreciation) | G20: =Assets!G$160 -> 2.615997926 | H20: =Assets!H$160 -> 3.172683057 | I20: =Assets!I$160 -> 3.750066679 | J20: =Assets!J$160 -> 4.380650994 | K20: =Assets!K$160 -> 5.191718101 | L20: =Assets!L$160 -> 6.056340656 | M20: =Assets!M$160 -> 6.43836575 | N20: =Assets!N$160 -> 6.835706885 | O20: =Assets!O$160 -> 7.248891099 | P20: =Assets!P$160 -> 7.678462207
B22: Opex (includes carry-over amounts) | G22: =Input!G82*G$8 -> 25.26603124 | H22: =Input!H82*H$8 -> 25.75685666 | I22: =Input!I82*I$8 -> 26.27523069 | J22: =Input!J82*J$8 -> 26.64750527 | K22: =Input!K82*K$8 -> 27.4323486 | L22: =Input!L82*L$8 -> 0 | M22: =Input!M82*M$8 -> 0 | N22: =Input!N82*N$8 -> 0 | O22: =Input!O82*O$8 -> 0 | P22: =Input!P82*P$8 -> 0
B24: Tax Payable | G24: =G44 -> 0.09976412331 | H24: =H44 -> 1.588276097 | I24: =I44 -> 3.20633396 | J24: 1.920362926 | K24: 2.113608102 | L24: 0.8873492937 | M24: 0.9400552461 | N24: 0.9926865064 | O24: 1.045206399 | P24: 1.09757646
B25: Less Value of Imputation Credits | D25: =WACC!$F$17 -> 0.25 | G25: =-G24*$D$25 -> -0.02494103083 | H25: =-H24*$D$25 -> -0.3970690242 | I25: -0.8015834901 | J25: -0.4800907314 | K25: -0.5284020255 | L25: -0.2218373234 | M25: -0.2350138115 | N25: -0.2481716266 | O25: -0.2613015997 | P25: -0.2743941151
B27: Annual Revenue Requirement | G27: =SUM(G17:G26) -> 36.37152558 | H27: =SUM(H17:H26) -> 39.15190153 | I27: =SUM(I17:I26) -> 41.90522777 | J27: 42.37982371 | K27: 44.798929 | L27: 17.93477389 | M27: 17.82048281 | N27: 17.68765139 | O27: 17.53542405 | P27: 17.36291402
B29: Additional tax income
B30: - capital contributions | G30: =Input!G59*Analysis!G8 -> 0 | H30: =Input!H59*Analysis!H8 -> 3.377773263 | I30: =Input!I59*Analysis!I8 -> 7.229698358 | J30: =Input!J59*Analysis!J8 -> 3.702994092 | K30: =Input!K59*Analysis!K8 -> 3.69565291 | L30: =Input!L59*Analysis!L8 -> 0 | M30: =Input!M59*Analysis!M8 -> 0 | N30: =Input!N59*Analysis!N8 -> 0 | O30: =Input!O59*Analysis!O8 -> 0 | P30: =Input!P59*Analysis!P8 -> 0
B32: Tax Expenses
B33: - Opex | G33: =G22-(SUM(Input!G80)*G8) -> 25.26603124 | H33: =H22-(SUM(Input!H80)*H8) -> 25.75685666 | I33: =I22-(SUM(Input!I80)*I8) -> 26.27523069 | J33: =J22-(SUM(Input!J80)*J8) -> 26.64750527 | K33: =K22-(SUM(Input!K80)*K8) -> 27.4323486 | L33: =L22-(SUM(Input!L80)*L8) -> 0 | M33: =M22-(SUM(Input!M80)*M8) -> 0 | N33: =N22-(SUM(Input!N80)*N8) -> 0 | O33: =O22-(SUM(Input!O80)*O8) -> 0 | P33: =P22-(SUM(Input!P80)*P8) -> 0
B34: - Tax Depreciation | G34: =Assets!G166 -> 6.219272642 | H34: =Assets!H166 -> 6.591275503 | I34: =Assets!I166 -> 7.044338449 | J34: =Assets!J166 -> 7.670463898 | K34: =Assets!K166 -> 8.286187185 | L34: =Assets!L166 -> 8.908971758 | M34: =Assets!M166 -> 8.908971758 | N34: =Assets!N166 -> 8.908971758 | O34: =Assets!O166 -> 8.908971758 | P34: =Assets!P166 -> 8.908971758
B35: - Interest | G35: =G18 -> 4.553674621 | H35: =H18 -> 4.887288972 | I35: =I18 -> 5.127577113 | J35: 5.363638882 | K35: 5.730685782 | L35: 6.067971154 | M35: 5.777993563 | N35: 5.469724611 | O35: 5.142430965 | P35: 4.795354059
B36: Total Tax Expenses | G36: =SUM(G33:G35) -> 36.0389785 | H36: =SUM(H33:H35) -> 37.23542113 | I36: =SUM(I33:I35) -> 38.44714626 | J36: 39.68160805 | K36: 41.44922157 | L36: 14.97694291 | M36: 14.68696532 | N36: 14.37869637 | O36: 14.05140272 | P36: =SUM(P33:P35) -> 13.70432582
B38: Tax Calculation
B39: Taxable Income | G39: =G40+F41 -> 0.3325470777 | H39: =H40+G41 -> 5.294253657 | I39: =I40+H41 -> 10.68777987 | J39: 6.401209752 | K39: 7.04536034 | L39: 2.957830979 | M39: 3.133517487 | N39: 3.308955021 | O39: 3.484021329 | P39: 3.658588201
B40: - Pre-tax Income | G40: =G27+G30-G36 -> 0.3325470777 | H40: =H27+H30-H36 -> 5.294253657 | I40: =I27+I30-I36 -> 10.68777987 | J40: 6.401209752 | K40: 7.04536034 | L40: 2.957830979 | M40: 3.133517487 | N40: 3.308955021 | O40: 3.484021329 | P40: 3.658588201
B41: - Tax Loss Carried Forward | F41: 0 | G41: =IF(G39<0,G39,0) -> 0 | H41: =IF(H39<0,H39,0) -> 0 | I41: =IF(I39<0,I39,0) -> 0 | J41: =IF(J39<0,J39,0) -> 0 | K41: 0 | L41: 0 | M41: 0 | N41: 0 | O41: 0 | P41: 0
B42: Tax Payable | D42: =WACC!F14 -> 0.3 | G42: =IF(G39>0,$D$42*G39,0) -> 0.09976412331 | H42: =IF(H39>0,$D$42*H39,0) -> 1.588276097 | I42: =IF(I39>0,$D$42*I39,0) -> 3.20633396 | J42: =IF(J39>0,$D$42*J39,0) -> 1.920362926 | K42: 2.113608102 | L42: 0.8873492937 | M42: 0.9400552461 | N42: 0.9926865064 | O42: 1.045206399 | P42: 1.09757646
B43: Value of Imputation Credits | D43: =WACC!$F$17 -> 0.25 | G43: =$D$43*G42 -> 0.02494103083 | H43: 0.3970690242 | I43: 0.8015834901 | J43: 0.4800907314 | K43: 0.5284020255 | L43: 0.2218373234 | M43: 0.2350138115 | N43: 0.2481716266 | O43: 0.2613015997 | P43: 0.2743941151
D44: (intermediate tax calculation) | G44: =MAX(0,(G17+G18+G20+G22+G30-G36+F41)*$D$42/(1-(1-$D$25)*$D$42)) -> 0.09976412331 | H44: 1.588276097 | I44: 3.20633396 | J44: 1.920362926 | K44: 2.113608102 | L44: 0.8873492937 | M44: 0.9400552461 | N44: 0.9926865064 | O44: 1.045206399 | P44: 1.09757646
B46: Cash Flow Analysis Below This Line
B48: Net Present Values | G48: 1 | H48: 2 | I48: 3 | J48: 4 | K48: 5 | L48: 6 | M48: 7 | N48: 8 | O48: 9 | P48: 10
B49: RAB (start period) | D49: Project NPV Check | F49: =F50-F51-G49+F52 -> -39.6125854 | G49: =Assets!F161 -> 95.10598623 | H49: =Assets!G161 -> 102.0737045 | I49: =Assets!H161 -> 107.0922538 | J49: =Assets!I161 -> 112.022533 | K49: =Assets!J161 -> 119.6885084 | L49: =Assets!K161 -> 126.7328979 | M49: =Assets!L161 -> 120.6765573 | N49: =Assets!M161 -> 114.2381915 | O49: =Assets!N161 -> 107.4024847 | P49: =Assets!O161 -> 100.1535936
B50: PV for Returns on and of Asset Only | F50: =NPV(vanilla,OFFSET(G50,0,0,1,10+1)) -> 94.53324415 | G50: =SUM(G17:G18,G20) -> 11.03067125 | H50: =SUM(H17:H18,H20) -> 12.2038378 | I50: 13.2252466 | J50: 14.29204625 | K50: 15.78137432 | L50: 17.26926192 | M50: 17.11544137 | N50: 16.94313651 | O50: 16.75151925 | P50: 16.53973167
B51: PV for Capex Only | F51: =NPV(vanilla,OFFSET(G51,0,0,1,10+1)) -> 39.03984331 | G51: =Assets!G21 -> 9.583716195 | H51: =Assets!H21 -> 8.191232385 | I51: =Assets!I21 -> 8.680345898 | J51: =Assets!J21 -> 12.04662634 | K51: =Assets!K21 -> 12.23610765 | L51: =Assets!L21 -> 0 | M51: =Assets!M21 -> 0 | N51: =Assets!N21 -> 0 | O51: =Assets!O21 -> 0 | P51: =Assets!P21 -> 0
B52: PV for end of period assets | F52: =NPV(vanilla,G52:P52) -> 0 | G52: 0 | H52: 0 | I52: 0 | J52: 0 | K52: 0 | L52: 0 | M52: 0 | N52: 0 | O52: 0 | P52: 0
B54: Nominal Cash Flow Analysis
B55: Capital Expenditure | F55: =Assets!F9+Assets!F21 -> 95.10598623 | G55: =Assets!G9+Assets!G21 -> 9.583716195 | H55: =Assets!H9+Assets!H21 -> 8.191232385 | I55: =Assets!I9+Assets!I21 -> 8.680345898 | J55: =Assets!J9+Assets!J21 -> 12.04662634 | K55: =Assets!K9+Assets!K21 -> 12.23610765 | L55: =Assets!L9+Assets!L21 -> 0 | M55: =Assets!M9+Assets!M21 -> 0 | N55: =Assets!N9+Assets!N21 -> 0 | O55: =Assets!O9+Assets!O21 -> 0 | P55: =Assets!P9+Assets!P21 -> 0
B56: Interest Payments | F56: =F18 -> 0 | G56: =G18 -> 4.553674621 | H56: =H18 -> 4.887288972 | I56: 5.127577113 | J56: 5.363638882 | K56: 5.730685782 | L56: 6.067971154 | M56: 5.777993563 | N56: 5.469724611 | O56: 5.142430965 | P56: =P18 -> 4.795354059
B57: Repayment of Debt | F57: =F12-G12 -> -57.06359174 | G57: =G12-H12 -> -4.180630962 | H57: =H12-I12 -> -3.011129596 | I57: -2.958167532 | J57: -4.599585205 | K57: -4.226633732 | L57: 3.633804393 | M57: 3.86301945 | N57: 4.101424131 | O57: 4.34933466 | P57: 60.09215613
B59: Nominal Cash Flow to Equity Holders
B60: - Pre-tax | C60: Te = | D60: =1-E61/E60 ->  | E60: =IRR(OFFSET(F60,0,0,1,10+1)) ->  | F60: =F27-F22-F55-F56-F57 -> -38.04239449 | G60: =G27-G22-G55-G56-G57 -> 1.148734486 | H60: 3.327653109 | I60: 4.780241593 | J60: 2.921638427 | K60: 3.626420692 | L60: 8.232998344 | M60: 8.179469795 | N60: 8.116502648 | O60: 8.043658428 | P60: -47.52459617
B61: - Post-tax | E61: =IRR(OFFSET(F61,0,0,1,10+1)) ->  | F61: =F60-F42 -> -38.04239449 | G61: 1.048970363 | H61: 1.739377012 | I61: 1.573907632 | J61: 1.001275502 | K61: 1.51281259 | L61: 7.34564905 | M61: 7.239414549 | N61: 7.123816142 | O61: 6.998452029 | P61: -48.62217263
B62: - Post-tax + Value of Imputation Credits | E62: =IRR(OFFSET(F62,0,0,1,10+1)) ->  | F62: =F61-F25 -> -38.04239449 | G62: 1.073911394 | H62: 2.136446036 | I62: 2.375491122 | J62: 1.481366233 | K62: 2.041214616 | L62: 7.567486374 | M62: 7.474428361 | N62: 7.371987768 | O62: 7.259753629 | P62: -48.34777852
B63: Real Cash Flow to Equity
B64: - Pre-tax | E64: =IRR(OFFSET(F64,0,0,1,10+1)) ->  | F64: =F60/F$8 -> -38.04239449 | G64: 1.121264749 | H64: 3.168857361 | I64: 4.441100743 | J64: 2.648154877 | K64: 3.206795252 | L64: 7.102761147 | M64: 6.884469337 | N64: 6.664850103 | O64: 6.44393582 | P64: =P60/P$8 -> -37.1442981
B65: - Post-tax | E65: =IRR(OFFSET(F65,0,0,1,10+1)) ->  | F65: =F61/F$8 -> -38.04239449 | G65: 1.023886289 | H65: 1.656373867 | I65: 1.462244579 | J65: 0.9075498795 | K65: 1.337759914 | L65: 6.33722837 | M65: 6.093246718 | N65: 5.849707541 | O65: 5.606600046 | P65: =P61/P$8 -> -38.00214247
B66: - Post-tax + Value of Imputation Credits | E66: =IRR(OFFSET(F66,0,0,1,10+1)) ->  | F66: -38.04239449 | G66: 1.048230904 | H66: 2.034494741 | I66: 2.20695862 | J66: 1.342701129 | K66: 1.805018748 | L66: 6.528611565 | M66: 6.291052373 | N66: 6.053493181 | O66: 5.81593399 | P66: =P62/P$8 -> -37.78768138
B67: Net Cash Flow to Debt
B68: Deduction Utilised to Reduce Tax | G68: =MAX(0,MIN(G35+G40,F69+G35)) -> 4.553674621 | H68: 4.887288972 | I68: 5.127577113 | J68: 5.363638882 | K68: 5.730685782 | L68: 6.067971154 | M68: 5.777993563 | N68: 5.469724611 | O68: 5.142430965 | P68: 4.795354059
B69: Unutilised Deductions Carried Forward | G69: =MAX(0,F69+G35-G68) -> 0 | H69: 0 | I69: 0 | J69: 0 | K69: 0 | L69: 0 | M69: 0 | N69: 0 | O69: 0 | P69: 0
B70: Net Cash Flow to Debt | C70: Td = | D70: =1-E70/$D$18 -> 0.3 | E70: =IRR(OFFSET(F70,0,0,1,10+1)) -> 0.05586 | F70: =F57 -> -57.06359174 | G70: =G35-G68*$D$42+G57 -> -0.9930587273 | H70: 0.4099726837 | I70: 0.6311364476 | J70: -0.8450379874 | K70: -0.2151536851 | L70: 7.881384201 | M70: 7.907614944 | N70: 7.930231359 | O70: 7.949036335 | P70: 63.44890397
B71: Nominal Cash Flows to Assets
B72: Cash flow to Asset | E72: =IRR(OFFSET(F72,0,0,1,10+1)) -> 0.02222243545 | F72: =F27-F55-F22 -> -95.10598623 | G72: 1.521778145 | H72: 5.203812484 | I72: 6.949651174 | J72: 3.685692104 | K72: 5.130472742 | L72: 17.93477389 | M72: 17.82048281 | N72: 17.68765139 | O72: 17.53542405 | P72: 17.36291402
B73: Cash flow to Asset Post-tax | E73: 0.002626341981 | F73: =F72-F42 -> -95.10598623 | G73: 1.422014022 | H73: 3.615536387 | I73: 3.743317214 | J73: 1.765329179 | K73: 3.01686464 | L73: 17.0474246 | M73: 16.88042756 | N73: 16.69496488 | O73: 16.49021765 | P73: 16.26533756
B74: Cash flow to Asset Real | E74: -0.002639139509 | F74: =F72/F$8 -> -95.10598623 | G74: =G72/G$8 -> 1.485387798 | H74: =H72/H$8 -> 4.955486331 | I74: 6.456598561 | J74: 3.340688372 | K74: 4.536808336 | L74: 15.47266377 | M74: 14.99908558 | N74: 14.52417997 | O74: 14.04797931 | P74: =P72/P$8 -> 13.57051519
B75: Cash flow to Asset Real Post-tax | E75: -0.02176226273 | F75: =F73/F$8 -> -95.10598623 | G75: =G73/G$8 -> 1.388009339 | H75: 3.443002837 | I75: 3.477742398 | J75: 1.600083375 | K75: 2.667772998 | L75: 14.70713099 | M75: 14.20786296 | N75: 13.70903741 | O75: 13.21064354 | P75: =P73/P$8 -> 12.71267082
B76: Check on Vanilla WACC Cash Flow (nom) | E76: 0.007571349714 | F76: =F74/F$8 -> -95.10598623 | G76: =(G72-G42+G43) -> 1.446955053 | H76: 4.012605411 | I76: 4.544900704 | J76: 2.24541991 | K76: 3.545266665 | L76: 17.26926192 | M76: 17.11544137 | N76: 16.94313651 | O76: 16.75151925 | P76: 16.53973167
B77: Check on Vanilla WACC Cash Flow (real) | E77: -0.01693662071 | F77: =F76/F$8 -> -95.10598623 | G77: =G76/G$8 -> 1.412353954 | H77: 3.821123711 | I77: 4.222456439 | J77: 2.035234624 | K77: 3.135031833 | L77: 14.89851419 | M77: 14.40566862 | N77: 13.91282305 | O77: 13.41997748 | P77: =P76/P$8 -> 12.92713191
B79: Further Dissection of Cash Flows
B81: Return on Equity
B82: Cash flow with Imputation | G82: =G62 -> 1.073911394 | H82: =H62 -> 2.136446036 | I82: 2.375491122 | J82: 1.481366233 | K82: 2.041214616 | L82: 7.567486374 | M82: 7.474428361 | N82: 7.371987768 | O82: 7.259753629 | P82: -48.34777852
B83: Add back Capex | G83: =G55 -> 9.583716195 | H83: =H55 -> 8.191232385 | I83: 8.680345898 | J83: 12.04662634 | K83: 12.23610765 | L83: 0 | M83: 0 | N83: 0 | O83: 0 | P83: 0
B84: Less Nominal Depreciation of RAB | G84: =-Assets!G160 -> -2.615997926 | H84: =-Assets!H160 -> -3.172683057 | I84: =-Assets!I160 -> -3.750066679 | J84: =-Assets!J160 -> -4.380650994 | K84: =-Assets!K160 -> -5.191718101 | L84: =-Assets!L160 -> -6.056340656 | M84: =-Assets!M160 -> -6.43836575 | N84: =-Assets!N160 -> -6.835706885 | O84: =-Assets!O160 -> -7.248891099 | P84: =-Assets!P160 -> -7.678462207
B85: Add Debt Repayment | G85: =G57 -> -4.180630962 | H85: =H57 -> -3.011129596 | I85: -2.958167532 | J85: -4.599585205 | K85: -4.226633732 | L85: 3.633804393 | M85: 3.86301945 | N85: 4.101424131 | O85: 4.34933466 | P85: 60.09215613
B86: Gives Nominal Return to Equity | G86: =SUM(G82:G85) -> 3.860998702 | H86: 4.143865767 | I86: 4.34760281 | J86: 4.54775637 | K86: 4.858970437 | L86: 5.144950111 | M86: 4.899082061 | N86: 4.637705014 | O86: 4.360197189 | P86: 4.065915407
B87: Less Inflation in Equity Component | G87: =-$D$11*(Assets!G162-Assets!F161) -> -0.9319963016 | H87: =-$D$11*(Assets!H162-Assets!G161) -> -1.020737045 | I87: =-$D$11*(Assets!I162-Assets!H161) -> -1.070922538 | J87: =-$D$11*(Assets!J162-Assets!I161) -> -1.12022533 | K87: =-$D$11*(Assets!K162-Assets!J161) -> -1.196885084 | L87: =-$D$11*(Assets!L162-Assets!K161) -> -1.267328979 | M87: =-$D$11*(Assets!M162-Assets!L161) -> -1.206765573 | N87: =-$D$11*(Assets!N162-Assets!M161) -> -1.142381915 | O87: =-$D$11*(Assets!O162-Assets!N161) -> -1.074024847 | P87: =-$D$11*(Assets!P162-Assets!O161) -> -1.001535936
B88: Gives Real Return to Equity | G88: =G86+G87 -> 2.9290024 | H88: =H86+H87 -> 3.123128722 | I88: 3.276680272 | J88: 3.427531039 | K88: 3.662085354 | L88: 3.877621132 | M88: 3.692316488 | N88: 3.495323099 | O88: 3.286172342 | P88: =P86+P87 -> 3.064379471
B89: %ROE (1 year) | G89: =G86/G92 -> 0.101492 | H89: 0.101492 | I89: 0.101492 | J89: 0.101492 | K89: 0.101492 | L89: 0.101492 | M89: 0.101492 | N89: 0.101492 | O89: 0.101492 | P89: 0.101492
B90: %real ROE (1 year) | G90: =G88/G92/(1+G$7) -> 0.07515197391 | H90: =H88/H92/(1+H$7) -> 0.07462634146 | I90: 0.07462634146 | J90: 0.07462634146 | K90: 0.07462634146 | L90: 0.07462634146 | M90: 0.07462634146 | N90: 0.07462634146 | O90: 0.07462634146 | P90: 0.07462634146
B92: Equity at Start of Period | G92: =G11 -> 38.04239449 | H92: =H11 -> 40.8294818 | I92: 42.83690153 | J92: 44.80901322 | K92: 47.87540336 | L92: 50.69315918 | M92: 48.27062292 | N92: 45.69527662 | O92: 42.96099386 | P92: 40.06143742
B94: Regulatory Control Period Analysis
B96: Revenue | F96: =F27 -> 0 | G96: =G27 -> 36.37152558 | H96: 39.15190153 | I96: 41.90522777 | J96: 42.37982371 | K96: 44.798929 | L96: 17.93477389 | M96: 17.82048281 | N96: 17.68765139 | O96: 17.53542405 | P96: 17.36291402
B97: Less Opex | F97: =-F22 -> 0 | G97: =-G22 -> -25.26603124 | H97: -25.75685666 | I97: -26.27523069 | J97: -26.64750527 | K97: -27.4323486 | L97: 0 | M97: 0 | N97: 0 | O97: 0 | P97: 0
B98: Less Interest | G98: =-G35 -> -4.553674621 | H98: =-H35 -> -4.887288972 | I98: -5.127577113 | J98: -5.363638882 | K98: -5.730685782 | L98: -6.067971154 | M98: -5.777993563 | N98: -5.469724611 | O98: -5.142430965 | P98: -4.795354059
B99: Less Tax | F99: =-F42 -> 0 | G99: =-G42 -> -0.09976412331 | H99: -1.588276097 | I99: -3.20633396 | J99: -1.920362926 | K99: -2.113608102 | L99: -0.8873492937 | M99: -0.9400552461 | N99: -0.9926865064 | O99: -1.045206399 | P99: -1.09757646
B100: Plus Imputation Credits | F100: =+F43 -> 0 | G100: =+G43 -> 0.02494103083 | H100: 0.3970690242 | I100: 0.8015834901 | J100: 0.4800907314 | K100: 0.5284020255 | L100: 0.2218373234 | M100: 0.2350138115 | N100: 0.2481716266 | O100: 0.2613015997 | P100: 0.2743941151
B101: Less Capex | F101: =-F55 -> -95.10598623 | G101: -9.583716195 | H101: -8.191232385 | I101: -8.680345898 | J101: -12.04662634 | K101: -12.23610765 | L101: 0 | M101: 0 | N101: 0 | O101: 0 | P101: 0
B102: Less Loan Repayments | F102: =-F57 -> 57.06359174 | G102: =-G57 -> 4.180630962 | H102: 3.011129596 | I102: 2.958167532 | J102: 4.599585205 | K102: 4.226633732 | L102: -3.633804393 | M102: -3.86301945 | N102: -4.101424131 | O102: -4.34933466 | P102: -60.09215613
B103: RAB Residual Value | K103: =IF(L97=0, L11, 0) -> 50.69315918 | L103: =IF(M97=0, IF(L97=0, 0, M11), 0) -> 0 | M103: =IF(N97=0, IF(M97=0, 0, N11), 0) -> 0 | N103: =IF(O97=0, IF(N97=0, 0, O11), 0) -> 0 | O103: =IF(P97=0, IF(O97=0, 0, P11), 0) -> 0 | P103: =IF(#REF!=0, IF(P97=0, 0,#REF!), 0) -> 
B104: Post-tax Return on Equity | F104: =SUM(F96:F103) -> -38.04239449 | G104: 1.073911394 | H104: 2.136446036 | I104: 2.375491122 | J104: 1.481366233 | K104: 52.73437379 | L104: =IF(L97=0, 0, SUM(L96:L103)) -> 0 | M104: =IF(M97=0, 0, SUM(M96:M103)) -> 0 | N104: =IF(N97=0, 0, SUM(N96:N103)) -> 0 | O104: =IF(O97=0, 0, SUM(O96:O103)) -> 0 | P104: =IF(P97=0, 0, SUM(P96:P103)) -> 0
B106: IRR (during regulatory control period) | E106: =IRR(F104:P104) -> 0.101492
B107: Target (during regulatory control period) | E107: =WACC!F25 -> 0.101492
B110: GRAPH DATA | F110: Return on Capital | G110: =G17+G18 -> 8.414673323 | H110: 9.031154739 | I110: 9.475179924 | J110: 9.911395252 | K110: 10.58965622 | L110: 11.21292126 | M110: 10.67707562 | N110: 10.10742963 | O110: 9.502628154 | P110: 8.861269466
F111: Opex (excludes carry-over amounts) | G111: =G22-G112 -> 25.26603124 | H111: =H22-H112 -> 25.75685666 | I111: 26.27523069 | J111: 26.64750527 | K111: 27.4323486 | L111: 0 | M111: 0 | N111: 0 | O111: 0 | P111: 0
F112: carry-over amounts | G112: =G8*Input!G80 -> 0 | H112: =H8*Input!H80 -> 0 | I112: =I8*Input!I80 -> 0 | J112: =J8*Input!J80 -> 0 | K112: =K8*Input!K80 -> 0 | L112: =L8*Input!L80 -> 0 | M112: =M8*Input!M80 -> 0 | N112: =N8*Input!N80 -> 0 | O112: =O8*Input!O80 -> 0 | P112: =P8*Input!P80 -> 0
F113: Return of Capital | G113: =G20 -> 2.615997926 | H113: =H20 -> 3.172683057 | I113: 3.750066679 | J113: 4.380650994 | K113: 5.191718101 | L113: 6.056340656 | M113: 6.43836575 | N113: 6.835706885 | O113: 7.248891099 | P113: 7.678462207
F114: Net Tax Costs | G114: =G24+G25 -> 0.07482309248 | H114: 1.191207073 | I114: 2.40475047 | J114: 1.440272194 | K114: 1.585206076 | L114: 0.6655119703 | M114: 0.7050414345 | N114: 0.7445148798 | O114: 0.7839047991 | P114: 0.8231823452
F116: Revenue Forecasts in Absence of Corporate Tax | G116: =G110+G111+G113 -> 36.29670249 | H116: 37.96069445 | I116: 39.5004773 | J116: 40.93955151 | K116: 43.21372292 | L116: 17.26926192 | M116: 17.11544137 | N116: 16.94313651 | O116: 16.75151925 | P116: 16.53973167

Sheet Forecast revenues
B2: Forecast Revenues
C6: =Input!F$20 -> 2013-14 | D6: =Input!G$20 -> 2014-15 | E6: =Input!H$20 -> 2015-16 | F6: =Input!I$20 -> 2016-17 | G6: =Input!J$20 -> 2017-18 | H6: =Input!K$20 -> 2018-19
B7: TOTAL REVENUE | C7: =C62 -> 0 | D7: 0 | E7: 0 | F7: 0 | G7: 0 | H7: 0

Sheet Equity raising cost-capex
F1: Essential Energy
F2: ="Equity Raising Costs - PTRM "&[1]Intro!L4 -> Equity Raising Costs - PTRM Version: 2.0
F3: Regulatory Control Period Cash Flow Analysis | S3: Regulatory Control Period Cash Flow Analysis
F5: =[1]Assets!B4 -> Year | G5: =Assets!G4 -> 2014-15 | H5: =Assets!H4 -> 2015-16 | I5: =Assets!I4 -> 2016-17 | J5: =Assets!J4 -> 2017-18 | K5: =Assets!K4 -> 2018-19 | L5: =Assets!L4 -> 2019-20 | M5: =Assets!M4 -> 2020-21 | N5: =Assets!N4 -> 2021-22 | O5: =Assets!O4 -> 2022-23 | P5: =Assets!P4 -> 2023-24 | Q5: Total | S5: =[1]Assets!B4 -> Year | T5: =[1]Assets!G4 -> 2012-13 | U5: =[1]Assets!H4 -> 2013-14 | V5: =[1]Assets!I4 -> 2014-15 | W5: =[1]Assets!J4 -> 2015-16 | X5: =[1]Assets!K4 -> 2016-17 | Y5: =[1]Assets!L4 -> 2017-18 | Z5: =[1]Assets!M4 -> 2018-19 | AA5: =[1]Assets!N4 -> 2019-20 | AB5: =[1]Assets!O4 -> 2020-21 | AC5: =[1]Assets!P4 -> 2021-22 | AD5: Total
F6: RAB and Capex ($m Nominal) | S6: RAB and Capex ($m Nominal)
F8: Opening RAB | G8: =Assets!F161 -> 95.10598623 | H8: =Assets!G161 -> 102.0737045 | I8: =Assets!H161 -> 107.0922538 | J8: =Assets!I161 -> 112.022533 | K8: =Assets!J161 -> 119.6885084 | L8: =IF(COUNT($G$8:K8)>=[1]Input!$R$7,0,[1]Assets!K474) -> 0 | M8: =IF(COUNT($G$8:L8)>=[1]Input!$R$7,0,[1]Assets!L474) -> 0 | N8: =IF(COUNT($G$8:M8)>=[1]Input!$R$7,0,[1]Assets!M474) -> 0 | O8: =IF(COUNT($G$8:N8)>=[1]Input!$R$7,0,[1]Assets!N474) -> 0 | P8: =IF(COUNT($G$8:O8)>=[1]Input!$R$7,0,[1]Assets!O474) -> 0 | Q8: =SUM(G8:P8) -> 535.982986 | S8: Opening RAB | T8: =[1]Assets!F474 -> 6428.784298 | U8: =[1]Assets!G474 -> 7096.149444 | V8: =[1]Assets!H474 -> 7641.993222 | W8: =[1]Assets!I474 -> 8002.506192 | X8: =[1]Assets!J474 -> 8406.867474 | Y8: =IF(COUNT($T$8:X8)>=[1]Input!$R$7,0,[1]Assets!K474) -> 0 | Z8: =IF(COUNT($T$8:Y8)>=[1]Input!$R$7,0,[1]Assets!L474) -> 0 | AA8: =IF(COUNT($T$8:Z8)>=[1]Input!$R$7,0,[1]Assets!M474) -> 0 | AB8: =IF(COUNT($T$8:AA8)>=[1]Input!$R$7,0,[1]Assets!N474) -> 0 | AC8: =IF(COUNT($T$8:AB8)>=[1]Input!$R$7,0,[1]Assets!O474) -> 0 | AD8: =SUM(T8:AC8) -> 37576.30063
F9: Capex | G9: =Assets!G21 -> 9.583716195 | H9: =Assets!H21 -> 8.191232385 | I9: =Assets!I21 -> 8.680345898 | J9: =Assets!J21 -> 12.04662634 | K9: =Assets!K21 -> 12.23610765 | L9: =IF(COUNT($G$9:K9)>=[1]Input!$R$7,0,[1]Assets!L41) -> 0 | M9: =IF(COUNT($G$9:L9)>=[1]Input!$R$7,0,[1]Assets!M41) -> 0 | N9: =IF(COUNT($G$9:M9)>=[1]Input!$R$7,0,[1]Assets!N41) -> 0 | O9: =IF(COUNT($G$9:N9)>=[1]Input!$R$7,0,[1]Assets!O41) -> 0 | P9: =IF(COUNT($G$9:O9)>=[1]Input!$R$7,0,[1]Assets!P41) -> 0 | Q9: =SUM(G9:P9) -> 50.73802847 | S9: Capex | T9: =[1]Assets!G41 -> 708.3200256 | U9: =[1]Assets!H41 -> 599.4374152 | V9: =[1]Assets!I41 -> 437.7813842 | W9: =[1]Assets!J41 -> 499.6016375 | X9: =[1]Assets!K41 -> 580.3973731 | Y9: =IF(COUNT($T$9:X9)>=[1]Input!$R$7,0,[1]Assets!L41) -> 0 | Z9: =IF(COUNT($T$9:Y9)>=[1]Input!$R$7,0,[1]Assets!M41) -> 0 | AA9: =IF(COUNT($T$9:Z9)>=[1]Input!$R$7,0,[1]Assets!N41) -> 0 | AB9: =IF(COUNT($T$9:AA9)>=[1]Input!$R$7,0,[1]Assets!O41) -> 0 | AC9: =IF(COUNT($T$9:AB9)>=[1]Input!$R$7,0,[1]Assets!P41) -> 0 | AD9: =SUM(T9:AC9) -> 2825.537836
F10: Capex Rate | G10: =G9/G8 -> 0.1007688009 | H10: =H9/H8 -> 0.08024821304 | I10: =I9/I8 -> 0.08105484373 | J10: =J9/J8 -> 0.1075375285 | K10: =K9/K8 -> 0.1022329363 | L10: =IF(COUNT($G$10:K10)>=[1]Input!$R$7,0,L9/L8) -> 0 | M10: =IF(COUNT($G$10:L10)>=[1]Input!$R$7,0,M9/M8) -> 0 | N10: =IF(COUNT($G$10:M10)>=[1]Input!$R$7,0,N9/N8) -> 0 | O10: =IF(COUNT($G$10:N10)>=[1]Input!$R$7,0,O9/O8) -> 0 | P10: =IF(COUNT($G$10:O10)>=[1]Input!$R$7,0,P9/P8) -> 0 | Q10: =Q9/Q8 -> 0.09466350573 | S10: Capex Rate | T10: =T9/T8 -> 0.1101794667 | U10: =U9/U8 -> 0.08447361768 | V10: =V9/V8 -> 0.05728628272 | W10: =W9/W8 -> 0.06243064679 | X10: =X9/X8 -> 0.06903848252 | Y10: =IF(COUNT($G$10:X10)>=[1]Input!$R$7,0,Y9/Y8) -> 0 | Z10: =IF(COUNT($G$10:Y10)>=[1]Input!$R$7,0,Z9/Z8) -> 0 | AA10: =IF(COUNT($G$10:Z10)>=[1]Input!$R$7,0,AA9/AA8) -> 0 | AB10: =IF(COUNT($G$10:AA10)>=[1]Input!$R$7,0,AB9/AB8) -> 0 | AC10: =IF(COUNT($G$10:AB10)>=[1]Input!$R$7,0,AC9/AC8) -> 0 | AD10: =AD9/AD8 -> 0.07519467825
F12: Dividend Assessment ($m Nominal) | S12: Dividend Assessment ($m Nominal)
F14: Tax Payable | G14: =Analysis!G24 -> 0.09976412331 | H14: =Analysis!H24 -> 1.588276097 | I14: =Analysis!I24 -> 3.20633396 | J14: =Analysis!J24 -> 1.920362926 | K14: =Analysis!K24 -> 2.113608102 | L14: =IF(COUNT($G$14:K14)>=[1]Input!$R$7,0,[1]Analysis!L26) -> 0 | M14: =IF(COUNT($G$14:L14)>=[1]Input!$R$7,0,[1]Analysis!M26) -> 0 | N14: =IF(COUNT($G$14:M14)>=[1]Input!$R$7,0,[1]Analysis!N26) -> 0 | O14: =IF(COUNT($G$14:N14)>=[1]Input!$R$7,0,[1]Analysis!O26) -> 0 | P14: =IF(COUNT($G$14:O14)>=[1]Input!$R$7,0,[1]Analysis!P26) -> 0 | Q14: =SUM(G14:P14) -> 8.928345208 | S14: Tax Payable | T14: =[1]Analysis!G26 -> 32.79106334 | U14: =[1]Analysis!H26 -> 35.60822519 | V14: =[1]Analysis!I26 -> 38.33042147 | W14: =[1]Analysis!J26 -> 43.98646699 | X14: =[1]Analysis!K26 -> 48.53499426 | Y14: =IF(COUNT($T$14:X14)>=[1]Input!$R$7,0,[1]Analysis!L26) -> 0 | Z14: =IF(COUNT($T$14:Y14)>=[1]Input!$R$7,0,[1]Analysis!M26) -> 0 | AA14: =IF(COUNT($T$14:Z14)>=[1]Input!$R$7,0,[1]Analysis!N26) -> 0 | AB14: =IF(COUNT($T$14:AA14)>=[1]Input!$R$7,0,[1]Analysis!O26) -> 0 | AC14: =IF(COUNT($T$14:AB14)>=[1]Input!$R$7,0,[1]Analysis!P26) -> 0 | AD14: =SUM(T14:AC14) -> 199.2511712
F15: Dividends | G15: =(G14/WACC!$G$16)*(1-WACC!$G$16)*0.7 -> 0.1629480681 | H15: =(H14/WACC!$G$16)*(1-WACC!$G$16)*0.7 -> 2.594184292 | I15: =(I14/WACC!$G$16)*(1-WACC!$G$16)*0.7 -> 5.237012135 | J15: =(J14/WACC!$G$16)*(1-WACC!$G$16)*0.7 -> 3.136592778 | K15: =(K14/WACC!$G$16)*(1-WACC!$G$16)*0.7 -> 3.452226566 | L15: 0 | M15: 0 | N15: 0 | O15: 0 | P15: 0 | Q15: =SUM(G15:P15) -> 14.58296384 | S15: Dividends | T15: 0.2327829544 | U15: 3.70597756 | V15: 7.481445907 | W15: 4.480846826 | X15: 4.931752238 | Y15: 0 | Z15: 0 | AA15: 0 | AB15: 0 | AC15: 0 | AD15: =SUM(T15:AC15) -> 20.83280549
F16: Dividend Reinvestment | G16: =G15*$H$57 -> 0.04888442042 | H16: =H15*$H$57 -> 0.7782552875 | I16: =I15*$H$57 -> 1.571103641 | J16: =J15*$H$57 -> 0.9409778335 | K16: =K15*$H$57 -> 1.03566797 | L16: 0 | M16: 0 | N16: 0 | O16: 0 | P16: 0 | Q16: =SUM(G16:P16) -> 4.374889152 | S16: Dividend Reinvestment | T16: 0.06983488632 | U16: 1.111793268 | V16: 2.244433772 | W16: 1.344254048 | X16: 1.479525671 | Y16: 0 | Z16: 0 | AA16: 0 | AB16: 0 | AC16: 0 | AD16: =SUM(T16:AC16) -> 6.249841646
F18: Benchmark Cash Flows ($m Nominal) | S18: Benchmark Cash Flows ($m Nominal)
F20: Revenue (smoothed) | G20: ='X factor'!E$16 -> 36.37152558 | H20: ='X factor'!F$16 -> 39.15190153 | I20: ='X factor'!G$16 -> 41.90522777 | J20: ='X factor'!H$16 -> 42.37982371 | K20: ='X factor'!I$16 -> 44.798929 | L20: ='[1]Revenue summary'!L21 -> 0 | M20: ='[1]Revenue summary'!M21 -> 0 | N20: ='[1]Revenue summary'!N21 -> 0 | O20: ='[1]Revenue summary'!O21 -> 0 | P20: ='[1]Revenue summary'!P21 -> 0 | Q20: =SUM(G20:P20) -> 204.6074076 | S20: Revenue (smoothed) | T20: ='[1]Revenue summary'!G21 -> 835 | U20: ='[1]Revenue summary'!H21 -> 882.6190644 | V20: ='[1]Revenue summary'!I21 -> 932.9537878 | W20: ='[1]Revenue summary'!J21 -> 986.1590411 | X20: ='[1]Revenue summary'!K21 -> 1042.398527 | Y20: ='[1]Revenue summary'!L21 -> 0 | Z20: ='[1]Revenue summary'!M21 -> 0 | AA20: ='[1]Revenue summary'!N21 -> 0 | AB20: ='[1]Revenue summary'!O21 -> 0 | AC20: ='[1]Revenue summary'!P21 -> 0 | AD20: =SUM(T20:AC20) -> 4679.13042
F21: Opex | G21: =Analysis!G$111 -> 25.26603124 | H21: =Analysis!H$111 -> 25.75685666 | I21: =Analysis!I$111 -> 26.27523069 | J21: =Analysis!J$111 -> 26.64750527 | K21: =Analysis!K$111 -> 27.4323486 | L21: =IF(COUNT($G$21:K21)>=[1]Input!$R$7,0,[1]Analysis!L110) -> 0 | M21: =IF(COUNT($G$21:L21)>=[1]Input!$R$7,0,[1]Analysis!M110) -> 0 | N21: =IF(COUNT($G$21:M21)>=[1]Input!$R$7,0,[1]Analysis!N110) -> 0 | O21: =IF(COUNT($G$21:N21)>=[1]Input!$R$7,0,[1]Analysis!O110) -> 0 | P21: =IF(COUNT($G$21:O21)>=[1]Input!$R$7,0,[1]Analysis!P110) -> 0 | Q21: 131.3779725 | S21: Opex | T21: =[1]Analysis!G110 -> 181.8289896 | U21: =[1]Analysis!H110 -> 193.6521487 | V21: =[1]Analysis!I110 -> 203.743695 | W21: =[1]Analysis!J110 -> 216.8685266 | X21: =[1]Analysis!K110 -> 228.9571163 | Y21: =IF(COUNT($T$21:X21)>=[1]Input!$R$7,0,[1]Analysis!L110) -> 0 | Z21: =IF(COUNT($T$21:Y21)>=[1]Input!$R$7,0,[1]Analysis!M110) -> 0 | AA21: =IF(COUNT($T$21:Z21)>=[1]Input!$R$7,0,[1]Analysis!N110) -> 0 | AB21: =IF(COUNT($T$21:AA21)>=[1]Input!$R$7,0,[1]Analysis!O110) -> 0 | AC21: =IF(COUNT($T$21:AB21)>=[1]Input!$R$7,0,[1]Analysis!P110) -> 0 | AD21: 1025.050476
F22: Interest Payment | G22: =Analysis!G$56 -> 4.553674621 | H22: =Analysis!H$56 -> 4.887288972 | I22: =Analysis!I$56 -> 5.127577113 | J22: =Analysis!J$56 -> 5.363638882 | K22: =Analysis!K$56 -> 5.730685782 | L22: =IF(COUNT($G$22:K22)>=[1]Input!$R$7,0,[1]Analysis!L55) -> 0 | M22: =IF(COUNT($G$22:L22)>=[1]Input!$R$7,0,[1]Analysis!M55) -> 0 | N22: =IF(COUNT($G$22:M22)>=[1]Input!$R$7,0,[1]Analysis!N55) -> 0 | O22: =IF(COUNT($G$22:N22)>=[1]Input!$R$7,0,[1]Analysis!O55) -> 0 | P22: =IF(COUNT($G$22:O22)>=[1]Input!$R$7,0,[1]Analysis!P55) -> 0 | Q22: 25.66286537 | S22: Interest Payment | T22: =[1]Analysis!G55 -> 312.3926296 | U22: =[1]Analysis!H55 -> 344.8217707 | V22: =[1]Analysis!I55 -> 371.3458482 | W22: =[1]Analysis!J55 -> 388.8641829 | X22: =[1]Analysis!K55 -> 408.5132298 | Y22: =IF(COUNT($T$22:X22)>=[1]Input!$R$7,0,[1]Analysis!L55) -> 0 | Z22: =IF(COUNT($G$22:Y22)>=[1]Input!$R$7,0,[1]Analysis!Z55) -> 0 | AA22: =IF(COUNT($G$22:Z22)>=[1]Input!$R$7,0,[1]Analysis!AA55) -> 0 | AB22: =IF(COUNT($G$22:AA22)>=[1]Input!$R$7,0,[1]Analysis!AB55) -> 0 | AC22: =IF(COUNT($G$22:AB22)>=[1]Input!$R$7,0,[1]Analysis!AC55) -> 0 | AD22: 1825.937661
F23: Tax Payable | G23: =Analysis!G$24 -> 0.09976412331 | H23: =Analysis!H$24 -> 1.588276097 | I23: =Analysis!I$24 -> 3.20633396 | J23: =Analysis!J$24 -> 1.920362926 | K23: =Analysis!K$24 -> 2.113608102 | L23: =IF(COUNT($G$23:K23)>=[1]Input!$R$7,0,[1]Analysis!L26) -> 0 | M23: =IF(COUNT($G$23:L23)>=[1]Input!$R$7,0,[1]Analysis!M26) -> 0 | N23: =IF(COUNT($G$23:M23)>=[1]Input!$R$7,0,[1]Analysis!N26) -> 0 | O23: =IF(COUNT($G$23:N23)>=[1]Input!$R$7,0,[1]Analysis!O26) -> 0 | P23: =IF(COUNT($G$23:O23)>=[1]Input!$R$7,0,[1]Analysis!P26) -> 0 | Q23: 8.928345208 | S23: Tax Payable | T23: =[1]Analysis!G26 -> 32.79106334 | U23: =[1]Analysis!H26 -> 35.60822519 | V23: =[1]Analysis!I26 -> 38.33042147 | W23: =[1]Analysis!J26 -> 43.98646699 | X23: =[1]Analysis!K26 -> 48.53499426 | Y23: =IF(COUNT($T$23:X23)>=[1]Input!$R$7,0,[1]Analysis!L26) -> 0 | Z23: =IF(COUNT($T$23:Y23)>=[1]Input!$R$7,0,[1]Analysis!M26) -> 0 | AA23: =IF(COUNT($T$23:Z23)>=[1]Input!$R$7,0,[1]Analysis!N26) -> 0 | AB23: =IF(COUNT($T$23:AA23)>=[1]Input!$R$7,0,[1]Analysis!O26) -> 0 | AC23: =IF(COUNT($T$23:AB23)>=[1]Input!$R$7,0,[1]Analysis!P26) -> 0 | AD23: 199.2511712
F24: Internal Cash Flow | G24: =G20-G21-G22-G23 -> 6.452055597 | H24: 6.9194798 | I24: 7.296085999 | J24: 8.448316632 | K24: 9.522286513 | L24: 0 | M24: 0 | N24: 0 | O24: 0 | P24: 0 | Q24: 38.63822454 | S24: Internal Cash Flow | T24: =T20-T21-T22-T23 -> 307.9873175 | U24: 308.5369197 | V24: 319.5338231 | W24: 336.4398646 | X24: 356.3931868 | Y24: 0 | Z24: 0 | AA24: 0 | AB24: 0 | AC24: 0 | AD24: 1628.891112
F25: Dividends | G25: =G15 -> 0.1629480681 | H25: =H15 -> 2.594184292 | I25: 5.237012135 | J25: 3.136592778 | K25: 3.452226566 | L25: 0 | M25: 0 | N25: 0 | O25: 0 | P25: 0 | Q25: 14.58296384 | S25: Dividends | T25: =T15 -> 0.2327829544 | U25: =U15 -> 3.70597756 | V25: 7.481445907 | W25: 4.480846826 | X25: 4.931752238 | Y25: 0 | Z25: 0 | AA25: 0 | AB25: 0 | AC25: 0 | AD25: 20.83280549
F26: Retained Cash Flow (excl. dividend reinvestment) | G26: =G24-G25 -> 6.289107528 | H26: =H24-H25 -> 4.325295508 | I26: 2.059073864 | J26: 5.311723854 | K26: 6.070059947 | L26: 0 | M26: 0 | N26: 0 | O26: 0 | P26: 0 | Q26: 24.0552607 | S26: Dividend Reinvestment | T26: =T16 -> 0.06983488632 | U26: 1.111793268 | V26: 2.244433772 | W26: 1.344254048 | X26: 1.479525671 | Y26: 0 | Z26: 0 | AA26: 0 | AB26: 0 | AC26: 0 | AD26: 6.249841646
S27: Retained Cash Flow | T27: =T24-T25+T26 -> 307.8243694 | U27: 305.9427354 | V27: 314.296811 | W27: 333.3032718 | X27: 352.9409602 | Y27: 0 | Z27: 0 | AA27: 0 | AB27: 0 | AC27: 0 | AD27: 1614.308148
F28: Benchmark Capex Funding ($m Nominal)
S29: Benchmark Capex Funding ($m Nominal)
F30: Capex Funding Requirement | G30: 9.196137062 | H30: 7.85996728 | I30: 8.329300346 | J30: 11.55944361 | K30: 11.74126203 | L30: 0 | M30: 0 | N30: 0 | O30: 0 | P30: 0 | Q30: =SUM(G30:P30) -> 48.68611033
F31: Debt Component | G31: =-Analysis!G$57 -> 4.180630962 | H31: =-Analysis!H$57 -> 3.011129596 | I31: =-Analysis!I$57 -> 2.958167532 | J31: =-Analysis!J$57 -> 4.599585205 | K31: =-Analysis!K$57 -> 4.226633732 | L31: =IF(COUNT($G$31:K31)>=[1]Input!$R$7,0,-[1]Analysis!L56) -> 0 | M31: =IF(COUNT($G$31:L31)>=[1]Input!$R$7,0,-[1]Analysis!M56) -> 0 | N31: =IF(COUNT($G$31:M31)>=[1]Input!$R$7,0,-[1]Analysis!N56) -> 0 | O31: =IF(COUNT($G$31:N31)>=[1]Input!$R$7,0,-[1]Analysis!O56) -> 0 | P31: =IF(COUNT($G$31:O31)>=[1]Input!$R$7,0,-[1]Analysis!P56) -> 0 | Q31: =SUM(G31:P31) -> 18.97614703 | S31: Capex Funding Requirement | T31: 679.6745548 | U31: 575.1953123 | V31: 420.0768815 | W31: 479.3970356 | X31: 556.9252767 | Y31: 0 | Z31: 0 | AA31: 0 | AB31: 0 | AC31: 0 | AD31: =SUM(T31:AC31) -> 2711.269061
F32: Equity Component | G32: =G30-G31 -> 5.0155061 | H32: 4.848837683 | I32: 5.371132814 | J32: 6.959858402 | K32: 7.5146283 | L32: 0 | M32: 0 | N32: 0 | O32: 0 | P32: 0 | Q32: =SUM(G32:P32) -> 29.7099633 | S32: Debt Component | T32: =-[1]Analysis!G56 -> 400.4190877 | U32: =-[1]Analysis!H56 -> 327.5062662 | V32: =-[1]Analysis!I56 -> 216.3077825 | W32: =-[1]Analysis!J56 -> 242.6167688 | X32: =-[1]Analysis!K56 -> 285.3990586 | Y32: =IF(COUNT($T$32:X32)>=[1]Input!$R$7,0,-[1]Analysis!L56) -> 0 | Z32: =IF(COUNT($T$32:Y32)>=[1]Input!$R$7,0,-[1]Analysis!M56) -> 0 | AA32: =IF(COUNT($T$32:Z32)>=[1]Input!$R$7,0,-[1]Analysis!N56) -> 0 | AB32: =IF(COUNT($T$32:AA32)>=[1]Input!$R$7,0,-[1]Analysis!O56) -> 0 | AC32: =IF(COUNT($T$32:AB32)>=[1]Input!$R$7,0,-[1]Analysis!P56) -> 0 | AD32: =SUM(T32:AC32) -> 1472.248964
F33: Retained Cash Flow (excl. dividend reinvestment) | G33: =G26 -> 6.289107528 | H33: =H26 -> 4.325295508 | I33: 2.059073864 | J33: 5.311723854 | K33: 6.070059947 | L33: 0 | M33: 0 | N33: 0 | O33: 0 | P33: 0 | Q33: =SUM(G33:P33) -> 24.0552607 | S33: Equity Component | T33: =T31-T32 -> 279.2554671 | U33: 247.689046 | V33: 203.769099 | W33: 236.7802668 | X33: 271.526218 | Y33: 0 | Z33: 0 | AA33: 0 | AB33: 0 | AC33: 0 | AD33: =SUM(T33:AC33) -> 1239.020097
F34: Equity Requirement | G34: =G32-G33 -> -1.273601429 | H34: 0.5235421749 | I34: 3.312058951 | J34: 1.648134549 | K34: 1.444568354 | L34: 0 | M34: 0 | N34: 0 | O34: 0 | P34: 0 | Q34: =SUM(G34:P34) -> 5.654702599 | S34: Retained Cash Flows | T34: =T27 -> 307.8243694 | U34: =U27 -> 305.9427354 | V34: 314.296811 | W34: 333.3032718 | X34: 352.9409602 | Y34: 0 | Z34: 0 | AA34: 0 | AB34: 0 | AC34: 0 | AD34: =SUM(T34:AC34) -> 1614.308148
S35: Equity Requirement (SEO) | T35: =T33-T34 -> -28.56890225 | U35: -58.25368941 | V35: -110.527712 | W35: -96.52300498 | X35: -81.41474218 | Y35: 0 | Z35: 0 | AA35: 0 | AB35: 0 | AC35: 0 | AD35: =SUM(T35:AC35) -> -375.2880508
F36: Benchmark Capex Funding ($m Real 2013-14)
S37: Equity Raising Costs ($m Nominal)
F38: Equity Component | G38: =G32/Analysis!G$8 -> 4.895570084 | H38: =H32/Analysis!H$8 -> 4.617450943 | I38: =I32/Analysis!I$8 -> 4.990070369 | J38: =J32/Analysis!J$8 -> 6.308372316 | K38: =K32/Analysis!K$8 -> 6.645085167 | L38: =L32/[1]Analysis!L8 -> 0 | M38: =M32/[1]Analysis!M8 -> 0 | N38: =N32/[1]Analysis!N8 -> 0 | O38: =O32/[1]Analysis!O8 -> 0 | P38: =P32/[1]Analysis!P8 -> 0 | Q38: =SUM(G38:P38) -> 27.45654888
F39: Retained Cash Flow (excl. dividend reinvestment) | G39: =G33/Analysis!G$8 -> 6.138715827 | H39: =H33/Analysis!H$8 -> 4.118892223 | I39: =I33/Analysis!I$8 -> 1.912990021 | J39: =J33/Analysis!J$8 -> 4.814513424 | K39: =K33/Analysis!K$8 -> 5.367672718 | L39: =L33/[1]Analysis!L8 -> 0 | M39: =M33/[1]Analysis!M8 -> 0 | N39: =N33/[1]Analysis!N8 -> 0 | O39: =O33/[1]Analysis!O8 -> 0 | P39: =P33/[1]Analysis!P8 -> 0 | Q39: =SUM(G39:P39) -> 22.35278421 | S39: External Equity Raising Cost | T39: -0.8570670676 | U39: -1.747610682 | V39: -3.31583136 | W39: -2.895690149 | X39: -2.442442265 | Y39: 0 | Z39: 0 | AA39: 0 | AB39: 0 | AC39: 0 | AD39: =SUM(T39:AC39) -> -11.25864152
F40: Equity Requirement | G40: =G38-G39 -> -1.243145742 | H40: =H38-H39 -> 0.4985587201 | I40: 3.077080348 | J40: 1.493858892 | K40: 1.277412449 | L40: 0 | M40: 0 | N40: 0 | O40: 0 | P40: 0 | Q40: =SUM(G40:P40) -> 5.103764667 | S40: Dividend Reinvestment Plan Cost | T40: 0.0006983488632 | U40: 0.01111793268 | V40: 0.02244433772 | W40: 0.01344254048 | X40: 0.01479525671 | Y40: 0 | Z40: 0 | AA40: 0 | AB40: 0 | AC40: 0 | AD40: =SUM(T40:AC40) -> 0.06249841646
S41: Total Cost of Investing Equity | T41: =+T39+T40 -> -0.8563687187 | U41: -1.73649275 | V41: -3.293387022 | W41: -2.882247609 | X41: -2.427647009 | Y41: 0 | Z41: 0 | AA41: 0 | AB41: 0 | AC41: 0 | AD41: =SUM(T41:AC41) -> -11.19614311
F42: Dividend Reinvestment | G42: =G16/Analysis!G$8 -> 0.04771544515 | H42: =H16/Analysis!H$8 -> 0.7411169122 | I42: =I16/Analysis!I$8 -> 1.45963952 | J42: =J16/Analysis!J$8 -> 0.8528964487 | K42: =K16/Analysis!K$8 -> 0.9158273158 | L42: =L16/[1]Analysis!L8 -> 0 | M42: =M16/[1]Analysis!M8 -> 0 | N42: =N16/[1]Analysis!N8 -> 0 | O42: =O16/[1]Analysis!O8 -> 0 | P42: =P16/[1]Analysis!P8 -> 0 | Q42: =SUM(G42:P42) -> 4.017195642
S43: ="Equity Raising Costs "&[1]Smoothing!D22 -> Equity Raising Costs ($m Real 2011-12)
F44: Equity Raising Costs ($m Real 2013-14)
S45: Equity Raising Cost | T45: =T41/(1+[1]WACC!$F$9)^1 -> -0.8346673672 | U45: =U41/(1+[1]WACC!$F$9)^2 -> -1.649598499 | V45: =V41/(1+[1]WACC!$F$9)^3 -> -3.049303747 | W45: =W41/(1+[1]WACC!$F$9)^4 -> -2.601008937 | X45: =X41/(1+[1]WACC!$F$9)^5 -> -2.13525002 | Y45: =Y41/(1+[1]WACC!$F$9)^6 -> 0 | Z45: =Z41/(1+[1]WACC!$F$9)^7 -> 0 | AA45: =AA41/(1+[1]WACC!$F$9)^8 -> 0 | AB45: =AB41/(1+[1]WACC!$F$9)^9 -> 0 | AC45: =AC41/(1+[1]WACC!$F$9)^10 -> 0 | AD45: =SUM(T45:AC45) -> -10.26982857
F46: Dividend Reinvestment Plan Requirement | Q46: =IF(Q40>0,MIN(Q40,Q42),0) -> 4.017195642
F47: External Equity (SEO) Requirement | Q47: =IF((Q40-Q42)>0,(Q40-Q42),0) -> 1.086569025
F48: Total Equity Requirement | Q48: =SUM(Q46:Q47) -> 5.103764667
F50: Dividend Reinvestment Plan Cost | Q50: =Q46*H56 -> 0.04017195642
F51: External Equity Raising (SEO) Cost | Q51: =Q47*H55 -> 0.03259707074
F52: Total Equity Raising Cost | Q52: =SUM(Q50:Q51) -> 0.07276902716
F55: Subsequent Equity Raising Cost SEO | H55: 0.03
F56: Dividend Reinvestment Plan Cost DRPC | H56: 0.01
F57: Dividend Reinvestment Plan Take Up DRPT | H57: 0.3

Sheet X factor
B2: X factor calculations
B4: Year | D4: =Input!F20 -> 2013-14 | E4: =Input!G20 -> 2014-15 | F4: =Input!H20 -> 2015-16 | G4: =Input!I20 -> 2016-17 | H4: =Input!J20 -> 2017-18 | I4: =Input!K20 -> 2018-19
B7: Discount rate | C7: =WACC!$F$27 -> 0.0884768
B8: Forecast inflation | C8: =f -> 0.025
C10: Building block components
C11: Return on capital | E11: =Analysis!G17+Analysis!G18 -> 8.414673323 | F11: =Analysis!H17+Analysis!H18 -> 9.031154739 | G11: =Analysis!I17+Analysis!I18 -> 9.475179924 | H11: =Analysis!J17+Analysis!J18 -> 9.911395252 | I11: =Analysis!K17+Analysis!K18 -> 10.58965622
C12: Return of capital | E12: =Analysis!G20 -> 2.615997926 | F12: =Analysis!H20 -> 3.172683057 | G12: =Analysis!I20 -> 3.750066679 | H12: =Analysis!J20 -> 4.380650994 | I12: =Analysis!K20 -> 5.191718101
C13: O&M | E13: =Analysis!G111 -> 25.26603124 | F13: =Analysis!H111 -> 25.75685666 | G13: =Analysis!I111 -> 26.27523069 | H13: =Analysis!J111 -> 26.64750527 | I13: =Analysis!K111 -> 27.4323486
C14: Carry-over amounts | E14: =Analysis!G112 -> 0 | F14: =Analysis!H112 -> 0 | G14: =Analysis!I112 -> 0 | H14: =Analysis!J112 -> 0 | I14: =Analysis!K112 -> 0
C15: Benchmark Tax liability | E15: =Analysis!G24+Analysis!G25 -> 0.07482309248 | F15: =Analysis!H24+Analysis!H25 -> 1.191207073 | G15: =Analysis!I24+Analysis!I25 -> 2.40475047 | H15: =Analysis!J24+Analysis!J25 -> 1.440272194 | I15: =Analysis!K24+Analysis!K25 -> 1.585206076
E16: =SUM(E11:E15) -> 36.37152558 | F16: =SUM(F11:F15) -> 39.15190153 | G16: =SUM(G11:G15) -> 41.90522777 | H16: =SUM(H11:H15) -> 42.37982371 | I16: =SUM(I11:I15) -> 44.798929
B20: Price cap calculation
B22: Building block requirement ($m) | E22: =E16 -> 36.37152558 | F22: =F16 -> 39.15190153 | G22: =G16 -> 41.90522777 | H22: =H16 -> 42.37982371 | I22: =I16 -> 44.798929 | J22: =SUM(E22:I22) -> 204.6074076
C23: NPV | D23: =NPV($C$7,E22:I22) -> 158.467163
B25: Smoothed Forecast Revenue ($m) | D25: ='Forecast revenues'!C7/1000000 -> 0 | E25: ='Forecast revenues'!D7/1000000 -> 0 | F25: ='Forecast revenues'!E7/1000000 -> 0 | G25: ='Forecast revenues'!F7/1000000 -> 0 | H25: ='Forecast revenues'!G7/1000000 -> 0 | I25: ='Forecast revenues'!H7/1000000 -> 0 | J25: =SUM(E25:I25) -> 0
C26: NPV | D26: =NPV($C$7,E25:I25) -> 0
C28: Difference in NPVs | D28: =(D23-D26) -> 158.467163 | H28: Difference between final year revenue and requirement | I28: =I25/I22-1 -> -1
B29: WACC
B30: 0.0885 | E30: P_0 | F30: X_1 | G30: X_2 | H30: X_3 | I30: X_4
K31: positive P0, X imply real decrease in price/ revenue constraint
B38: Revenue cap calculation
B40: =B22 -> Building block requirement ($m) | E40: =E22 -> 36.37152558 | F40: =F22 -> 39.15190153 | G40: =G22 -> 41.90522777 | H40: =H22 -> 42.37982371 | I40: =I22 -> 44.798929
C41: NPV | D41: =NPV($C$7,E40:I40) -> 158.467163
B43: Smoothed revenue cap ($m) | D43: =Input!G97 -> 0 | E43: =D43*(1-E50)*(1+$C$8) -> 0 | F43: =E43*(1-F50)*(1+$C$8) -> 0 | G43: =F43*(1-G50)*(1+$C$8) -> 0 | H43: =G43*(1-H50)*(1+$C$8) -> 0 | I43: =H43*(1-I50)*(1+$C$8) -> 0
C44: NPV | D44: =NPV($C$7,E43:I43) -> 0
C46: Difference in NPVs | D46: =D44-D41 -> -158.467163 | H46: Difference between final year revenue and requirement | I46: =I43/I40-1 -> -1
E49: P_0 | F49: X_1 | G49: X_2 | H49: X_3 | I49: X_4
J50: positive P0, X imply real decrease in price/ revenue constraint
B54: Revenue yield/ Average revenue cap calculation
B56: =B40 -> Building block requirement ($m) | E56: =E40 -> 36.37152558 | F56: =F40 -> 39.15190153 | G56: =G40 -> 41.90522777 | H56: =H40 -> 42.37982371 | I56: =I40 -> 44.798929
C57: NPV | D57: =NPV($C$7,E56:I56) -> 158.467163
B60: Forecast energy throughput (MWh)
B62: Revenue yield ($/MWh) | D62: =Input!G98 -> 0 | E62: =D62*(1-E70)*(1+$C$8) -> 0 | F62: =E62*(1-F70)*(1+$C$8) -> 0 | G62: =F62*(1-G70)*(1+$C$8) -> 0 | H62: =G62*(1-H70)*(1+$C$8) -> 0 | I62: =H62*(1-I70)*(1+$C$8) -> 0
B64: Smoothed revenue requirement ($M) | D64: =D62*D60/1000000 -> 0 | E64: =E62*E60/1000000 -> 0 | F64: 0 | G64: =G62*G60/1000000 -> 0 | H64: 0 | I64: 0
C65: NPV | D65: =NPV($C$7,E64:I64) -> 0
C67: Difference in NPVs | D67: =D65-D57 -> -158.467163 | H67: Difference between final year revenue and requirement | I67: =I64/I56-1 -> -1
E69: P_0 | F69: X_1 | G69: X_2 | H69: X_3 | I69: X_4
J70: positive P0, X imply real decrease in price/ revenue constraint
B75: Summary
B77: Revenues ($m, nominal) | D77: NPV | E77: =E4 -> 2014-15 | F77: =F4 -> 2015-16 | G77: =G4 -> 2016-17 | H77: =H4 -> 2017-18 | I77: =I4 -> 2018-19
B78: WAPC | D78: =NPV($C$7,E78:I78) -> 0 | E78: =E25 -> 0 | F78: =F25 -> 0 | G78: =G25 -> 0 | H78: =H25 -> 0 | I78: =I25 -> 0
B79: Revenue cap | D79: =NPV($C$7,E79:I79) -> 0 | E79: =E43 -> 0 | F79: =F43 -> 0 | G79: =G43 -> 0 | H79: =H43 -> 0 | I79: =I43 -> 0
B80: Revenue yield | D80: =NPV($C$7,E80:I80) -> 0 | E80: =E64 -> 0 | F80: =F64 -> 0 | G80: =G64 -> 0 | H80: =H64 -> 0 | I80: =I64 -> 0
B81: Building block requirement | D81: =NPV($C$7,E81:I81) -> 158.467163 | E81: =E22 -> 36.37152558 | F81: =F22 -> 39.15190153 | G81: =G22 -> 41.90522777 | H81: =H22 -> 42.37982371 | I81: =I22 -> 44.798929
D83: X factors | E83: =E77 -> 2014-15 | F83: =F77 -> 2015-16 | G83: =G77 -> 2016-17 | H83: =H77 -> 2017-18 | I83: =I77 -> 2018-19
D84: =B78 -> WAPC | E84: =P_0 -> 0 | F84: =x_1 -> 0 | G84: =X_2 -> 0 | H84: =X_3 -> 0 | I84: =X_4 -> 0
D85: =B79 -> Revenue cap | E85: =E50 -> 0 | F85: =F50 -> 0 | G85: =G50 -> 0 | H85: =H50 -> 0 | I85: =I50 -> 0
D86: =B80 -> Revenue yield | E86: =E70 -> 0 | F86: =F70 -> 0 | G86: =G70 -> 0 | H86: =H70 -> 0 | I86: =I70 -> 0
D88: =D4 -> 2013-14 | E88: 2014-15 | F88: 2015-16 | G88: 2016-17 | H88: 2017-18 | I88: 2018-19
B89: Nominal unsmoothed revenues ($M) | D89: ='X factor'!D25 -> 0 | E89: ='X factor'!E22 -> 36.37152558 | F89: ='X factor'!F22 -> 39.15190153 | G89: ='X factor'!G22 -> 41.90522777 | H89: ='X factor'!H22 -> 42.37982371 | I89: ='X factor'!I22 -> 44.798929
B90: Nominal smoothed revenues ($M) | D90: ='X factor'!D25 -> 0 | E90: ='X factor'!E25 -> 0 | F90: ='X factor'!F25 -> 0 | G90: ='X factor'!G25 -> 0 | H90: ='X factor'!H25 -> 0 | I90: ='X factor'!I25 -> 0
B91: Nominal price path $/MWh | D91: ='X factor'!D62 -> 0 | E91: ='X factor'!E62 -> 0 | F91: ='X factor'!F62 -> 0 | G91: ='X factor'!G62 -> 0 | H91: ='X factor'!H62 -> 0 | I91: ='X factor'!I62 -> 0
B93: inflation index | D93: =Analysis!F8 -> 1 | E93: =Analysis!G8 -> 1.024498886 | F93: =Analysis!H8 -> 1.050111359 | G93: =Analysis!I8 -> 1.076364143 | H93: =Analysis!J8 -> 1.103273246 | I93: =Analysis!K8 -> 1.130855077
B95: ="Real unsmoothed revenues ($M "&CONCATENATE(LEFT(Input!Q7, 4)-1 &"-" & "0"& RIGHT(Input!Q7,2)-1)&")" -> Real unsmoothed revenues ($M 2013-014) | D95: =D89/D93 -> 0 | E95: =E89/E93 -> 35.50177171 | F95: 37.28357113 | G95: =G89/G93 -> 38.93220343 | H95: 38.4128083 | I95: 39.61509295
B96: ="Real smoothed revenues ($M "&CONCATENATE(LEFT(Input!Q7, 4)-1 &"-" & "0"& RIGHT(Input!Q7,2)-1)&")" -> Real smoothed revenues ($M 2013-014) | D96: =D90/D93 -> 0 | E96: 0 | F96: 0 | G96: =G90/G93 -> 0 | H96: 0 | I96: 0
B97: ="Real price path ($/MWh "&CONCATENATE(LEFT(Input!Q7, 4)-1 &"-" & "0"& RIGHT(Input!Q7,2)-1)&")" -> Real price path ($/MWh 2013-014) | D97: =D91/D93 -> 0 | E97: 0 | F97: 0 | G97: 0 | H97: 0 | I97: 0
